Workbook

Sheet Instructions
A1: InterAct Ministries of Canada
A2: 2023-2024 Budget
A3: =TODAY() -> 2024-06-20
A7: Instructions
A8: Step 1 | B8: To display individual budgt pages, on the Main Budget worksheet click the GoTo button below the name of the budget you want to open.
A11: Step 2 | B11: Enter each segment of a project on a separate line according to the account description. When you enter an account number the account description will fill in automatically. It is not necessary to enter the items in any particular sequence, but if you start each line of a project with the same word they can be sorted accordingly (such as Conf. Travel, Conf. Food, Conf. Speaker, etc.)
B16: Current data on the form is for illustration only. You can delete any data you don't need. For additional lines you may use open lines at the bottom or insert new lines into the form.
A19: Step 3 | B19: Enter a detailed description of each item (how many at how much each). Use as many lines as necessary to descript each item.
A22: Step 4 | B22: Enter the amount of income or cost for each line
A24: Click the GoTo Main BGT button below to continue
A30: Notes
A32: 1. Lodging calculated at $125 per night

Sheet Vision

Sheet Summary
B1: USE OF FUNDS - SUMMARY
A2: 2023-2024 | B2: 2024-2025 | I2: 2023-2024
B3: Expenses by Department
A4: 1132769 | B4: ='S1'!E3 -> 1162738.5 | D4: Native Ministries
A5: 12150 | B5: ='S2'!E3 -> 11750 | D5: EnGage!
A6: 98343 | B6: ='S3'!E3 -> 102590 | D6: Muslim Ministries
A7: 117588 | B7: ='S4'!E3 -> 111240 | D7: East Indian Ministries
A8: 38057 | B8: ='S5'!E3 -> 28249 | D8: Anchored Warriors
A9: 130688 | B9: ='S6'!E3 -> 64158.5 | D9: Native Bible Centre
A10: 118385 | B10: ='S7'!E3 -> 116160 | D10: Collaborative Ministries
A11: 107177 | B11: ='S8'!E3 -> 104703 | D11: Member Care
A12: 463574 | B12: ='S9'!E3 -> 290647.5 | D12: Admin & General*
A13: 21743 | B13: ='S10'!E3 -> 22075 | D13: Mobilization
A14: 803625 | B14: ='S11'!E3 -> 660050 | D14: Midway Ministries
A15: 22500 | B15: ='S12'!E3 -> 20000 | D15: Development
A16: 15880 | B16: ='S13'!E3 -> 11450 | D16: Urban Fire
A17: 89900 | B17: ='S14'!E3 -> 89712 | D17: Restora
A18: =SUM(A4:A17) -> 3172379 | B18: =SUM(B4:B17) -> 2795523.5 | D18: Total

Sheet Main_BGT
F1: Program Ministries | O1: Program Ministries | R1: Management & General
F2: Church Planting & Evangelism | O2: Schools | P2: Other Programs | Q2: Support | R2: Operations | T2: Fund Raising
C3: InterAct Canada | D3: Total | E3: Total | F3: ='S1'!$C$1 -> 50 | G3: ='S2'!$C$1 -> 40 | H3: ='S3'!$C$1 -> 85 | I3: ='S4'!$C$1 -> 20 | J3: ='S5'!$C$1 -> 15 | K3: 51 | L3: 52 | M3: 53 | O3: ='S6'!$C$1 -> 10 | P3: ='S7'!$C$1 -> 60 | Q3: ='S8'!$C$1 -> 30 | R3: ='S9'!$C$1 -> 70 | S3: ='S10'!$C$1 -> 80 | T3: ='S12'!$C$1 -> 81
D4: Canada | E4: Canada | F4: ='S1'!$B$1 -> Native Ministries | G4: ='S2'!$B$1 -> EnGage! | H4: ='S3'!$B$1 -> Muslim Ministries | I4: ='S4'!$B$1 -> East Indian | J4: ='S5'!$B$1 -> Anchored Warriors | K4: ='S11'!$B$1 -> Midway Ministries | L4: ='S13'!$B$1 -> Urban Fire | M4: ='S14'!B1 -> Restora Property Care | O4: ='S6'!$B$1 -> Native Bible Centre | P4: ='S7'!$A$1 -> Collaborative Ministries | Q4: ='S8'!$B$1 -> Member Care | R4: ='S9'!$B$1 -> Admin & General | S4: ='S10'!$B$1 -> Mobilization | T4: ='S12'!$B$1 -> Development
A5: US No | B5: Acct | D5: 2023-2024 | E5: 2024-2025
C6: Total Income | D6: 3291667.5 | E6: =SUM(F6:T6) -> 3087800 | F6: ='S1'!$E$2 -> 1169990.5 | G6: ='S2'!$E$2 -> 12150 | H6: ='S3'!$E$2 -> 102560 | I6: ='S4'!$E$2 -> 110984 | J6: ='S5'!$E$2 -> 29138 | K6: ='S11'!$E$2 -> 859800 | L6: ='S13'!$E$2 -> 23400 | M6: ='S14'!E2 -> 108620 | N6: =C6 -> Total Income | O6: ='S6'!$E$2 -> 87881 | P6: ='S7'!$E$2 -> 115000 | Q6: ='S8'!$E$2 -> 106158 | R6: ='S9'!$E$2 -> 360318.5 | S6: ='S10'!$E$2 -> 1800 | T6: ='S12'!$E$2 -> 0
C7: Total Expense | D7: 3172379 | E7: =SUM(F7:T7) -> 2795523.5 | F7: ='S1'!$E$3 -> 1162738.5 | G7: ='S2'!$E$3 -> 11750 | H7: ='S3'!$E$3 -> 102590 | I7: ='S4'!$E$3 -> 111240 | J7: ='S5'!$E$3 -> 28249 | K7: ='S11'!$E$3 -> 660050 | L7: ='S13'!$E$3 -> 11450 | M7: ='S14'!E3 -> 89712 | N7: =C7 -> Total Expense | O7: ='S6'!$E$3 -> 64158.5 | P7: ='S7'!$E$3 -> 116160 | Q7: ='S8'!$E$3 -> 104703 | R7: ='S9'!$E$3 -> 290647.5 | S7: ='S10'!$E$3 -> 22075 | T7: ='S12'!$E$3 -> 20000
C9: Excess (Deficit) | D9: 119288.5 | E9: =E6-E7 -> 292276.5 | F9: 7252 | G9: 400 | H9: -30 | I9: -256 | J9: 889 | K9: =K6-K7 -> 199750 | L9: =L6-L7 -> 11950 | M9: =M6-M7 -> 18908 | N9: =C9 -> Excess (Deficit) | O9: =O6-O7 -> 23722.5 | P9: -1160 | Q9: 1455 | R9: 69671 | S9: -20275 | T9: -20000
A11: 502 | C11: <--Highest or last Income | N11: =C11 -> <--Highest or last Income
C12: Account No | N12: Account No
A13: 1000 | B13: 101 | C13: Cash in Bank | D13: 0 | E13: =SUM(F13:T13) -> 0 | F13: =SUM(IF(S1AccNO=B13,IF(S1FieldRank<=S1Choice,S1Amount,0),0)) -> 0 | G13: =SUM(IF(S_2AccNO=$B13,IF(S_2FieldRank<=S_2Choice,S_2Amount,0),0)) -> 0 | H13: =SUM(IF(S_3AccNO=$B13,IF(S_3FieldRank<=S_3Choice,S_3Amount,0),0)) -> 0 | I13: =SUM(IF(S_4AccNO=$B13,IF(S_4FieldRank<=S_4Choice,S_4Amount,0),0)) -> 0 | J13: =SUM(IF(S_5AccNO=$B13,IF(S_5FieldRank<=S_5Choice,S_5Amount,0),0)) -> 0 | K13: =SUM(IF(S_5AccNO=$B13,IF(S_5FieldRank<=S_5Choice,S_5Amount,0),0)) -> 0 | L13: =SUM(IF(S_5AccNO=$B13,IF(S_5FieldRank<=S_5Choice,S_5Amount,0),0)) -> 0 | N13: Cash in Bank | O13: =SUM(IF(S_6AccNO=$B13,IF(S_6FieldRank<=S_6Choice,S_6Amount,0),0)) -> 0 | P13: =SUM(IF(S_7AccNO=$B13,IF(S_7FieldRank<=S_7Choice,S_7Amount,0),0)) -> 0 | Q13: =SUM(IF(S_8AccNO=$B13,IF(S_8FieldRank<=S_8Choice,S_8Amount,0),0)) -> 0 | R13: =SUM(IF(S_9AccNO=$B13,IF(S_9FieldRank<=S_9Choice,S_9Amount,0),0)) -> 0 | S13: =SUM(IF(S_10AccNO=$B13,IF(S_10FieldRank<=S_10Choice,S_10Amount,0),0)) -> 0 | T13: =SUM(IF(S_12AccNO=$B13,IF(S_12FieldRank<=S_12Choice,S_12Amount,0),0)) -> 0
A14: 1000 | B14: 103 | C14: Cash on Hand | D14: 0 | E14: 0 | F14: =SUM(IF(S1AccNO=B14,IF(S1FieldRank<=S1Choice,S1Amount,0),0)) -> 0 | G14: =SUM(IF(S_2AccNO=$B14,IF(S_2FieldRank<=S_2Choice,S_2Amount,0),0)) -> 0 | H14: =SUM(IF(S_3AccNO=$B14,IF(S_3FieldRank<=S_3Choice,S_3Amount,0),0)) -> 0 | I14: =SUM(IF(S_4AccNO=$B14,IF(S_4FieldRank<=S_4Choice,S_4Amount,0),0)) -> 0 | J14: =SUM(IF(S_5AccNO=$B14,IF(S_5FieldRank<=S_5Choice,S_5Amount,0),0)) -> 0 | K14: =SUM(IF(S_5AccNO=$B14,IF(S_5FieldRank<=S_5Choice,S_5Amount,0),0)) -> 0 | L14: =SUM(IF(S_5AccNO=$B14,IF(S_5FieldRank<=S_5Choice,S_5Amount,0),0)) -> 0 | N14: Cash on Hand | O14: =SUM(IF(S_6AccNO=$B14,IF(S_6FieldRank<=S_6Choice,S_6Amount,0),0)) -> 0 | P14: =SUM(IF(S_7AccNO=$B14,IF(S_7FieldRank<=S_7Choice,S_7Amount,0),0)) -> 0 | Q14: =SUM(IF(S_8AccNO=$B14,IF(S_8FieldRank<=S_8Choice,S_8Amount,0),0)) -> 0 | R14: =SUM(IF(S_9AccNO=$B14,IF(S_9FieldRank<=S_9Choice,S_9Amount,0),0)) -> 0 | S14: =SUM(IF(S_10AccNO=$B14,IF(S_10FieldRank<=S_10Choice,S_10Amount,0),0)) -> 0 | T14: =SUM(IF(S_12AccNO=$B14,IF(S_12FieldRank<=S_12Choice,S_12Amount,0),0)) -> 0
A15: 1200 | B15: 110 | C15: Accounts Receivable | D15: 0 | E15: 0 | F15: =SUM(IF(S1AccNO=B15,IF(S1FieldRank<=S1Choice,S1Amount,0),0)) -> 0 | G15: =SUM(IF(S_2AccNO=$B15,IF(S_2FieldRank<=S_2Choice,S_2Amount,0),0)) -> 0 | H15: =SUM(IF(S_3AccNO=$B15,IF(S_3FieldRank<=S_3Choice,S_3Amount,0),0)) -> 0 | I15: =SUM(IF(S_4AccNO=$B15,IF(S_4FieldRank<=S_4Choice,S_4Amount,0),0)) -> 0 | J15: =SUM(IF(S_5AccNO=$B15,IF(S_5FieldRank<=S_5Choice,S_5Amount,0),0)) -> 0 | K15: =SUM(IF(S_5AccNO=$B15,IF(S_5FieldRank<=S_5Choice,S_5Amount,0),0)) -> 0 | L15: =SUM(IF(S_5AccNO=$B15,IF(S_5FieldRank<=S_5Choice,S_5Amount,0),0)) -> 0 | N15: Accounts Receivable | O15: =SUM(IF(S_6AccNO=$B15,IF(S_6FieldRank<=S_6Choice,S_6Amount,0),0)) -> 0 | P15: =SUM(IF(S_7AccNO=$B15,IF(S_7FieldRank<=S_7Choice,S_7Amount,0),0)) -> 0 | Q15: =SUM(IF(S_8AccNO=$B15,IF(S_8FieldRank<=S_8Choice,S_8Amount,0),0)) -> 0 | R15: =SUM(IF(S_9AccNO=$B15,IF(S_9FieldRank<=S_9Choice,S_9Amount,0),0)) -> 0 | S15: =SUM(IF(S_10AccNO=$B15,IF(S_10FieldRank<=S_10Choice,S_10Amount,0),0)) -> 0 | T15: =SUM(IF(S_12AccNO=$B15,IF(S_12FieldRank<=S_12Choice,S_12Amount,0),0)) -> 0
D16: 0 | E16: 0 | F16: =SUM(IF(S1AccNO=B16,IF(S1FieldRank<=S1Choice,S1Amount,0),0)) -> 0 | G16: =SUM(IF(S_2AccNO=$B16,IF(S_2FieldRank<=S_2Choice,S_2Amount,0),0)) -> 0 | H16: =SUM(IF(S_3AccNO=$B16,IF(S_3FieldRank<=S_3Choice,S_3Amount,0),0)) -> 0 | I16: =SUM(IF(S_4AccNO=$B16,IF(S_4FieldRank<=S_4Choice,S_4Amount,0),0)) -> 0 | J16: =SUM(IF(S_5AccNO=$B16,IF(S_5FieldRank<=S_5Choice,S_5Amount,0),0)) -> 0 | L16: =SUM(IF(S_5AccNO=$B16,IF(S_5FieldRank<=S_5Choice,S_5Amount,0),0)) -> 0 | N16: 0 | O16: =SUM(IF(S_6AccNO=$B16,IF(S_6FieldRank<=S_6Choice,S_6Amount,0),0)) -> 0 | P16: =SUM(IF(S_7AccNO=$B16,IF(S_7FieldRank<=S_7Choice,S_7Amount,0),0)) -> 0 | Q16: =SUM(IF(S_8AccNO=$B16,IF(S_8FieldRank<=S_8Choice,S_8Amount,0),0)) -> 0 | R16: =SUM(IF(S_9AccNO=$B16,IF(S_9FieldRank<=S_9Choice,S_9Amount,0),0)) -> 0 | S16: =SUM(IF(S_10AccNO=$B16,IF(S_10FieldRank<=S_10Choice,S_10Amount,0),0)) -> 0 | T16: =SUM(IF(S_12AccNO=$B16,IF(S_12FieldRank<=S_12Choice,S_12Amount,0),0)) -> 0
B17: 400 | C17: Gifts in hand | D17: 433595 | E17: 544125 | F17: =SUM(IF(S1AccNO=B17,IF(S1FieldRank<=S1Choice,S1Amount,0),0)) -> 9550 | G17: =SUM(IF(S_2AccNO=$B17,IF(S_2FieldRank<=S_2Choice,S_2Amount,0),0)) -> 0 | H17: =SUM(IF(S_3AccNO=$B17,IF(S_3FieldRank<=S_3Choice,S_3Amount,0),0)) -> 0 | I17: =SUM(IF(S_4AccNO=$B17,IF(S_4FieldRank<=S_4Choice,S_4Amount,0),0)) -> 13405 | J17: =SUM(IF(S_5AccNO=$B17,IF(S_5FieldRank<=S_5Choice,S_5Amount,0),0)) -> 14090 | K17: =SUM(IF(S_11AccNO=$B17,IF(S_11FieldRank<=S_11Choice,S_11Amount,0),0)) -> 389400 | L17: =SUM(IF(S_13AccNO=$B17,IF(S_13FieldRank<=S_13Choice,S_13Amount,0),0)) -> 18000 | M17: =SUM(IF(S_14AccNO=$B17,IF(S_14FieldRank<=S_14Choice,S_14Amount,0),0)) -> 13500 | N17: Gifts in hand | O17: =SUM(IF(S_6AccNO=$B17,IF(S_6FieldRank<=S_6Choice,S_6Amount,0),0)) -> 11000 | P17: =SUM(IF(S_7AccNO=$B17,IF(S_7FieldRank<=S_7Choice,S_7Amount,0),0)) -> 0 | Q17: =SUM(IF(S_8AccNO=$B17,IF(S_8FieldRank<=S_8Choice,S_8Amount,0),0)) -> 75180 | R17: =SUM(IF(S_9AccNO=$B17,IF(S_9FieldRank<=S_9Choice,S_9Amount,0),0)) -> 0 | S17: =SUM(IF(S_10AccNO=$B17,IF(S_10FieldRank<=S_10Choice,S_10Amount,0),0)) -> 0 | T17: =SUM(IF(S_12AccNO=$B17,IF(S_12FieldRank<=S_12Choice,S_12Amount,0),0)) -> 0
B18: 410 | C18: Canadian Gifts-Staff | D18: 1130975 | E18: 1020475 | F18: =SUM(IF(S1AccNO=B18,IF(S1FieldRank<=S1Choice,S1Amount,0),0)) -> 679030 | G18: =SUM(IF(S_2AccNO=$B18,IF(S_2FieldRank<=S_2Choice,S_2Amount,0),0)) -> 0 | H18: =SUM(IF(S_3AccNO=$B18,IF(S_3FieldRank<=S_3Choice,S_3Amount,0),0)) -> 59840 | I18: =SUM(IF(S_4AccNO=$B18,IF(S_4FieldRank<=S_4Choice,S_4Amount,0),0)) -> 79975 | J18: =SUM(IF(S_5AccNO=$B18,IF(S_5FieldRank<=S_5Choice,S_5Amount,0),0)) -> 0 | K18: =SUM(IF(S_11AccNO=$B18,IF(S_11FieldRank<=S_11Choice,S_11Amount,0),0)) -> 0 | L18: =SUM(IF(S_13AccNO=$B18,IF(S_13FieldRank<=S_13Choice,S_13Amount,0),0)) -> 0 | M18: =SUM(IF(S_14AccNO=$B18,IF(S_14FieldRank<=S_14Choice,S_14Amount,0),0)) -> 0 | N18: Canadian Gifts-Staff | O18: =SUM(IF(S_6AccNO=$B18,IF(S_6FieldRank<=S_6Choice,S_6Amount,0),0)) -> 31015 | P18: =SUM(IF(S_7AccNO=$B18,IF(S_7FieldRank<=S_7Choice,S_7Amount,0),0)) -> 115000 | Q18: =SUM(IF(S_8AccNO=$B18,IF(S_8FieldRank<=S_8Choice,S_8Amount,0),0)) -> 16700 | R18: =SUM(IF(S_9AccNO=$B18,IF(S_9FieldRank<=S_9Choice,S_9Amount,0),0)) -> 38915 | S18: =SUM(IF(S_10AccNO=$B18,IF(S_10FieldRank<=S_10Choice,S_10Amount,0),0)) -> 0 | T18: =SUM(IF(S_12AccNO=$B18,IF(S_12FieldRank<=S_12Choice,S_12Amount,0),0)) -> 0
A19: 5001 | B19: 430 | C19: US Gifts | D19: 747495 | E19: 739565 | F19: =SUM(IF(S1AccNO=B19,IF(S1FieldRank<=S1Choice,S1Amount,0),0)) -> 555235 | G19: =SUM(IF(S_2AccNO=$B19,IF(S_2FieldRank<=S_2Choice,S_2Amount,0),0)) -> 0 | H19: =SUM(IF(S_3AccNO=$B19,IF(S_3FieldRank<=S_3Choice,S_3Amount,0),0)) -> 49560 | I19: =SUM(IF(S_4AccNO=$B19,IF(S_4FieldRank<=S_4Choice,S_4Amount,0),0)) -> 21250 | J19: =SUM(IF(S_5AccNO=$B19,IF(S_5FieldRank<=S_5Choice,S_5Amount,0),0)) -> 0 | K19: =SUM(IF(S_11AccNO=$B19,IF(S_11FieldRank<=S_11Choice,S_11Amount,0),0)) -> 0 | L19: =SUM(IF(S_13AccNO=$B19,IF(S_13FieldRank<=S_13Choice,S_13Amount,0),0)) -> 0 | M19: =SUM(IF(S_14AccNO=$B19,IF(S_14FieldRank<=S_14Choice,S_14Amount,0),0)) -> 0 | N19: US Gifts | O19: =SUM(IF(S_6AccNO=$B19,IF(S_6FieldRank<=S_6Choice,S_6Amount,0),0)) -> 49750 | P19: =SUM(IF(S_7AccNO=$B19,IF(S_7FieldRank<=S_7Choice,S_7Amount,0),0)) -> 0 | Q19: =SUM(IF(S_8AccNO=$B19,IF(S_8FieldRank<=S_8Choice,S_8Amount,0),0)) -> 16520 | R19: =SUM(IF(S_9AccNO=$B19,IF(S_9FieldRank<=S_9Choice,S_9Amount,0),0)) -> 47250 | S19: =SUM(IF(S_10AccNO=$B19,IF(S_10FieldRank<=S_10Choice,S_10Amount,0),0)) -> 0 | T19: =SUM(IF(S_12AccNO=$B19,IF(S_12FieldRank<=S_12Choice,S_12Amount,0),0)) -> 0
B20: 440 | C20: Project Income - CND Ind | D20: 284460 | E20: 210060 | F20: =SUM(IF(S1AccNO=B20,IF(S1FieldRank<=S1Choice,S1Amount,0),0)) -> 4500 | G20: =SUM(IF(S_2AccNO=$B20,IF(S_2FieldRank<=S_2Choice,S_2Amount,0),0)) -> 0 | H20: =SUM(IF(S_3AccNO=$B20,IF(S_3FieldRank<=S_3Choice,S_3Amount,0),0)) -> 1400 | I20: =SUM(IF(S_4AccNO=$B20,IF(S_4FieldRank<=S_4Choice,S_4Amount,0),0)) -> 7260 | J20: =SUM(IF(S_5AccNO=$B20,IF(S_5FieldRank<=S_5Choice,S_5Amount,0),0)) -> 7500 | K20: =SUM(IF(S_11AccNO=$B20,IF(S_11FieldRank<=S_11Choice,S_11Amount,0),0)) -> 117000 | L20: =SUM(IF(S_13AccNO=$B20,IF(S_13FieldRank<=S_13Choice,S_13Amount,0),0)) -> 3000 | M20: =SUM(IF(S_14AccNO=$B20,IF(S_14FieldRank<=S_14Choice,S_14Amount,0),0)) -> 1600 | N20: Project Income - CND Ind | O20: =SUM(IF(S_6AccNO=$B20,IF(S_6FieldRank<=S_6Choice,S_6Amount,0),0)) -> 600 | P20: =SUM(IF(S_7AccNO=$B20,IF(S_7FieldRank<=S_7Choice,S_7Amount,0),0)) -> 0 | Q20: =SUM(IF(S_8AccNO=$B20,IF(S_8FieldRank<=S_8Choice,S_8Amount,0),0)) -> 1200 | R20: =SUM(IF(S_9AccNO=$B20,IF(S_9FieldRank<=S_9Choice,S_9Amount,0),0)) -> 65000 | S20: =SUM(IF(S_10AccNO=$B20,IF(S_10FieldRank<=S_10Choice,S_10Amount,0),0)) -> 1000 | T20: =SUM(IF(S_12AccNO=$B20,IF(S_12FieldRank<=S_12Choice,S_12Amount,0),0)) -> 0
B21: 441 | C21: Project Income - CDN Churches | D21: 291467 | E21: 234900 | F21: =SUM(IF(S1AccNO=B21,IF(S1FieldRank<=S1Choice,S1Amount,0),0)) -> 5000 | G21: =SUM(IF(S_2AccNO=$B21,IF(S_2FieldRank<=S_2Choice,S_2Amount,0),0)) -> 13500 | H21: =SUM(IF(S_3AccNO=$B21,IF(S_3FieldRank<=S_3Choice,S_3Amount,0),0)) -> 800 | I21: =SUM(IF(S_4AccNO=$B21,IF(S_4FieldRank<=S_4Choice,S_4Amount,0),0)) -> 0 | J21: =SUM(IF(S_5AccNO=$B21,IF(S_5FieldRank<=S_5Choice,S_5Amount,0),0)) -> 7700 | K21: =SUM(IF(S_11AccNO=$B21,IF(S_11FieldRank<=S_11Choice,S_11Amount,0),0)) -> 187000 | L21: =SUM(IF(S_13AccNO=$B21,IF(S_13FieldRank<=S_13Choice,S_13Amount,0),0)) -> 3000 | M21: =SUM(IF(S_14AccNO=$B21,IF(S_14FieldRank<=S_14Choice,S_14Amount,0),0)) -> 1600 | N21: Project Income - CDN Churches | O21: =SUM(IF(S_6AccNO=$B21,IF(S_6FieldRank<=S_6Choice,S_6Amount,0),0)) -> 300 | P21: =SUM(IF(S_7AccNO=$B21,IF(S_7FieldRank<=S_7Choice,S_7Amount,0),0)) -> 0 | Q21: =SUM(IF(S_8AccNO=$B21,IF(S_8FieldRank<=S_8Choice,S_8Amount,0),0)) -> 0 | R21: =SUM(IF(S_9AccNO=$B21,IF(S_9FieldRank<=S_9Choice,S_9Amount,0),0)) -> 15000 | S21: =SUM(IF(S_10AccNO=$B21,IF(S_10FieldRank<=S_10Choice,S_10Amount,0),0)) -> 1000 | T21: =SUM(IF(S_12AccNO=$B21,IF(S_12FieldRank<=S_12Choice,S_12Amount,0),0)) -> 0
B22: 442 | C22: Project Income - US | D22: 53975 | E22: 13600 | F22: =SUM(IF(S1AccNO=B22,IF(S1FieldRank<=S1Choice,S1Amount,0),0)) -> 0 | G22: =SUM(IF(S_2AccNO=$B22,IF(S_2FieldRank<=S_2Choice,S_2Amount,0),0)) -> 0 | H22: =SUM(IF(S_3AccNO=$B22,IF(S_3FieldRank<=S_3Choice,S_3Amount,0),0)) -> 0 | I22: =SUM(IF(S_4AccNO=$B22,IF(S_4FieldRank<=S_4Choice,S_4Amount,0),0)) -> 0 | J22: =SUM(IF(S_5AccNO=$B22,IF(S_5FieldRank<=S_5Choice,S_5Amount,0),0)) -> 0 | K22: =SUM(IF(S_11AccNO=$B22,IF(S_11FieldRank<=S_11Choice,S_11Amount,0),0)) -> 2000 | L22: =SUM(IF(S_13AccNO=$B22,IF(S_13FieldRank<=S_13Choice,S_13Amount,0),0)) -> 0 | M22: =SUM(IF(S_14AccNO=$B22,IF(S_14FieldRank<=S_14Choice,S_14Amount,0),0)) -> 1600 | N22: Project Income - US | O22: =SUM(IF(S_6AccNO=$B22,IF(S_6FieldRank<=S_6Choice,S_6Amount,0),0)) -> 0 | P22: =SUM(IF(S_7AccNO=$B22,IF(S_7FieldRank<=S_7Choice,S_7Amount,0),0)) -> 0 | Q22: =SUM(IF(S_8AccNO=$B22,IF(S_8FieldRank<=S_8Choice,S_8Amount,0),0)) -> 0 | R22: =SUM(IF(S_9AccNO=$B22,IF(S_9FieldRank<=S_9Choice,S_9Amount,0),0)) -> 10000 | S22: =SUM(IF(S_10AccNO=$B22,IF(S_10FieldRank<=S_10Choice,S_10Amount,0),0)) -> 0 | T22: =SUM(IF(S_12AccNO=$B22,IF(S_12FieldRank<=S_12Choice,S_12Amount,0),0)) -> 0
A23: 6200 | B23: 445 | C23: Tuition Income | D23: 50 | E23: 50 | F23: =SUM(IF(S1AccNO=B23,IF(S1FieldRank<=S1Choice,S1Amount,0),0)) -> 0 | G23: =SUM(IF(S_2AccNO=$B23,IF(S_2FieldRank<=S_2Choice,S_2Amount,0),0)) -> 0 | H23: =SUM(IF(S_3AccNO=$B23,IF(S_3FieldRank<=S_3Choice,S_3Amount,0),0)) -> 0 | I23: =SUM(IF(S_4AccNO=$B23,IF(S_4FieldRank<=S_4Choice,S_4Amount,0),0)) -> 0 | J23: =SUM(IF(S_5AccNO=$B23,IF(S_5FieldRank<=S_5Choice,S_5Amount,0),0)) -> 0 | K23: =SUM(IF(S_11AccNO=$B23,IF(S_11FieldRank<=S_11Choice,S_11Amount,0),0)) -> 0 | L23: =SUM(IF(S_13AccNO=$B23,IF(S_13FieldRank<=S_13Choice,S_13Amount,0),0)) -> 0 | M23: =SUM(IF(S_14AccNO=$B23,IF(S_14FieldRank<=S_14Choice,S_14Amount,0),0)) -> 0 | N23: Tuition Income | O23: =SUM(IF(S_6AccNO=$B23,IF(S_6FieldRank<=S_6Choice,S_6Amount,0),0)) -> 50 | P23: =SUM(IF(S_7AccNO=$B23,IF(S_7FieldRank<=S_7Choice,S_7Amount,0),0)) -> 0 | Q23: =SUM(IF(S_8AccNO=$B23,IF(S_8FieldRank<=S_8Choice,S_8Amount,0),0)) -> 0 | R23: =SUM(IF(S_9AccNO=$B23,IF(S_9FieldRank<=S_9Choice,S_9Amount,0),0)) -> 0 | S23: =SUM(IF(S_10AccNO=$B23,IF(S_10FieldRank<=S_10Choice,S_10Amount,0),0)) -> 0 | T23: =SUM(IF(S_12AccNO=$B23,IF(S_12FieldRank<=S_12Choice,S_12Amount,0),0)) -> 0
A24: 6500 | B24: 450 | C24: Interest Income | D24: 400 | E24: 400 | F24: =SUM(IF(S1AccNO=B24,IF(S1FieldRank<=S1Choice,S1Amount,0),0)) -> 0 | G24: =SUM(IF(S_2AccNO=$B24,IF(S_2FieldRank<=S_2Choice,S_2Amount,0),0)) -> 0 | H24: =SUM(IF(S_3AccNO=$B24,IF(S_3FieldRank<=S_3Choice,S_3Amount,0),0)) -> 0 | I24: =SUM(IF(S_4AccNO=$B24,IF(S_4FieldRank<=S_4Choice,S_4Amount,0),0)) -> 0 | J24: =SUM(IF(S_5AccNO=$B24,IF(S_5FieldRank<=S_5Choice,S_5Amount,0),0)) -> 0 | K24: =SUM(IF(S_11AccNO=$B24,IF(S_11FieldRank<=S_11Choice,S_11Amount,0),0)) -> 0 | L24: =SUM(IF(S_13AccNO=$B24,IF(S_13FieldRank<=S_13Choice,S_13Amount,0),0)) -> 0 | M24: =SUM(IF(S_14AccNO=$B24,IF(S_14FieldRank<=S_14Choice,S_14Amount,0),0)) -> 0 | N24: Interest Income | O24: =SUM(IF(S_6AccNO=$B24,IF(S_6FieldRank<=S_6Choice,S_6Amount,0),0)) -> 0 | P24: =SUM(IF(S_7AccNO=$B24,IF(S_7FieldRank<=S_7Choice,S_7Amount,0),0)) -> 0 | Q24: =SUM(IF(S_8AccNO=$B24,IF(S_8FieldRank<=S_8Choice,S_8Amount,0),0)) -> 0 | R24: =SUM(IF(S_9AccNO=$B24,IF(S_9FieldRank<=S_9Choice,S_9Amount,0),0)) -> 400 | S24: =SUM(IF(S_10AccNO=$B24,IF(S_10FieldRank<=S_10Choice,S_10Amount,0),0)) -> 0 | T24: =SUM(IF(S_12AccNO=$B24,IF(S_12FieldRank<=S_12Choice,S_12Amount,0),0)) -> 0
B25: 460 | C25: Sales | D25: 90200 | E25: 90700 | F25: =SUM(IF(S1AccNO=B25,IF(S1FieldRank<=S1Choice,S1Amount,0),0)) -> 0 | G25: =SUM(IF(S_2AccNO=$B25,IF(S_2FieldRank<=S_2Choice,S_2Amount,0),0)) -> 0 | H25: =SUM(IF(S_3AccNO=$B25,IF(S_3FieldRank<=S_3Choice,S_3Amount,0),0)) -> 0 | I25: =SUM(IF(S_4AccNO=$B25,IF(S_4FieldRank<=S_4Choice,S_4Amount,0),0)) -> 0 | J25: =SUM(IF(S_5AccNO=$B25,IF(S_5FieldRank<=S_5Choice,S_5Amount,0),0)) -> 0 | K25: =SUM(IF(S_11AccNO=$B25,IF(S_11FieldRank<=S_11Choice,S_11Amount,0),0)) -> 0 | L25: =SUM(IF(S_13AccNO=$B25,IF(S_13FieldRank<=S_13Choice,S_13Amount,0),0)) -> 0 | M25: =SUM(IF(S_14AccNO=$B25,IF(S_14FieldRank<=S_14Choice,S_14Amount,0),0)) -> 90000 | N25: Sales | O25: =SUM(IF(S_6AccNO=$B25,IF(S_6FieldRank<=S_6Choice,S_6Amount,0),0)) -> 700 | P25: =SUM(IF(S_7AccNO=$B25,IF(S_7FieldRank<=S_7Choice,S_7Amount,0),0)) -> 0 | Q25: =SUM(IF(S_8AccNO=$B25,IF(S_8FieldRank<=S_8Choice,S_8Amount,0),0)) -> 0 | R25: =SUM(IF(S_9AccNO=$B25,IF(S_9FieldRank<=S_9Choice,S_9Amount,0),0)) -> 0 | S25: =SUM(IF(S_10AccNO=$B25,IF(S_10FieldRank<=S_10Choice,S_10Amount,0),0)) -> 0 | T25: =SUM(IF(S_12AccNO=$B25,IF(S_12FieldRank<=S_12Choice,S_12Amount,0),0)) -> 0
A26: 6900 | B26: 455 | C26: Other income | D26: 259050 | E26: 233925 | F26: =SUM(IF(S1AccNO=B26,IF(S1FieldRank<=S1Choice,S1Amount,0),0)) -> 31125 | G26: =SUM(IF(S_2AccNO=$B26,IF(S_2FieldRank<=S_2Choice,S_2Amount,0),0)) -> 0 | H26: =SUM(IF(S_3AccNO=$B26,IF(S_3FieldRank<=S_3Choice,S_3Amount,0),0)) -> 0 | I26: =SUM(IF(S_4AccNO=$B26,IF(S_4FieldRank<=S_4Choice,S_4Amount,0),0)) -> 0 | J26: =SUM(IF(S_5AccNO=$B26,IF(S_5FieldRank<=S_5Choice,S_5Amount,0),0)) -> 0 | K26: =SUM(IF(S_11AccNO=$B26,IF(S_11FieldRank<=S_11Choice,S_11Amount,0),0)) -> 195000 | L26: =SUM(IF(S_13AccNO=$B26,IF(S_13FieldRank<=S_13Choice,S_13Amount,0),0)) -> 0 | M26: =SUM(IF(S_14AccNO=$B26,IF(S_14FieldRank<=S_14Choice,S_14Amount,0),0)) -> 800 | N26: Other income | O26: =SUM(IF(S_6AccNO=$B26,IF(S_6FieldRank<=S_6Choice,S_6Amount,0),0)) -> 0 | P26: =SUM(IF(S_7AccNO=$B26,IF(S_7FieldRank<=S_7Choice,S_7Amount,0),0)) -> 0 | Q26: =SUM(IF(S_8AccNO=$B26,IF(S_8FieldRank<=S_8Choice,S_8Amount,0),0)) -> 0 | R26: =SUM(IF(S_9AccNO=$B26,IF(S_9FieldRank<=S_9Choice,S_9Amount,0),0)) -> 7000 | S26: =SUM(IF(S_10AccNO=$B26,IF(S_10FieldRank<=S_10Choice,S_10Amount,0),0)) -> 0 | T26: =SUM(IF(S_12AccNO=$B26,IF(S_12FieldRank<=S_12Choice,S_12Amount,0),0)) -> 0
B27: 484 | C27: Operations Assessment | D27: 0.5 | E27: 0 | F27: =SUM(IF(S1AccNO=B27,IF(S1FieldRank<=S1Choice,S1Amount,0),0)) -> -114449.5 | G27: =SUM(IF(S_2AccNO=$B27,IF(S_2FieldRank<=S_2Choice,S_2Amount,0),0)) -> -1350 | H27: =SUM(IF(S_3AccNO=$B27,IF(S_3FieldRank<=S_3Choice,S_3Amount,0),0)) -> -9040 | I27: =SUM(IF(S_4AccNO=$B27,IF(S_4FieldRank<=S_4Choice,S_4Amount,0),0)) -> -10906 | J27: =SUM(IF(S_5AccNO=$B27,IF(S_5FieldRank<=S_5Choice,S_5Amount,0),0)) -> -152 | K27: =SUM(IF(S_11AccNO=$B27,IF(S_11FieldRank<=S_11Choice,S_11Amount,0),0)) -> -30600 | L27: =SUM(IF(S_13AccNO=$B27,IF(S_13FieldRank<=S_13Choice,S_13Amount,0),0)) -> -600 | M27: =SUM(IF(S_14AccNO=$B27,IF(S_14FieldRank<=S_14Choice,S_14Amount,0),0)) -> -480 | N27: Operations Assessment | O27: =SUM(IF(S_6AccNO=$B27,IF(S_6FieldRank<=S_6Choice,S_6Amount,0),0)) -> -5534 | P27: =SUM(IF(S_7AccNO=$B27,IF(S_7FieldRank<=S_7Choice,S_7Amount,0),0)) -> 0 | Q27: =SUM(IF(S_8AccNO=$B27,IF(S_8FieldRank<=S_8Choice,S_8Amount,0),0)) -> -3442 | R27: =SUM(IF(S_9AccNO=$B27,IF(S_9FieldRank<=S_9Choice,S_9Amount,0),0)) -> 176753.5 | S27: =SUM(IF(S_10AccNO=$B27,IF(S_10FieldRank<=S_10Choice,S_10Amount,0),0)) -> -200 | T27: =SUM(IF(S_12AccNO=$B27,IF(S_12FieldRank<=S_12Choice,S_12Amount,0),0)) -> 0
K28: =SUM(IF(S_11AccNO=$B28,IF(S_11FieldRank<=S_11Choice,S_11Amount,0),0)) -> 0 | M28: =SUM(IF(S_14AccNO=$B28,IF(S_14FieldRank<=S_14Choice,S_14Amount,0),0)) -> 0
A29: 8608 | B29: 503 | C29: Advertising | D29: 2390 | E29: =SUM(F29:T29) -> 2800 | F29: =SUM(IF(S1AccNO=B29,IF(S1FieldRank<=S1Choice,S1Amount,0),0)) -> 0 | G29: =SUM(IF(S_2AccNO=$B29,IF(S_2FieldRank<=S_2Choice,S_2Amount,0),0)) -> 0 | H29: =SUM(IF(S_3AccNO=$B29,IF(S_3FieldRank<=S_3Choice,S_3Amount,0),0)) -> 0 | I29: =SUM(IF(S_4AccNO=$B29,IF(S_4FieldRank<=S_4Choice,S_4Amount,0),0)) -> 0 | J29: =SUM(IF(S_5AccNO=$B29,IF(S_5FieldRank<=S_5Choice,S_5Amount,0),0)) -> 100 | K29: =SUM(IF(S_11AccNO=$B29,IF(S_11FieldRank<=S_11Choice,S_11Amount,0),0)) -> 2600 | L29: =SUM(IF(S_13AccNO=$B29,IF(S_13FieldRank<=S_13Choice,S_13Amount,0),0)) -> 0 | M29: =SUM(IF(S_14AccNO=$B29,IF(S_14FieldRank<=S_14Choice,S_14Amount,0),0)) -> 0 | N29: =C29 -> Advertising | O29: =SUM(IF(S_6AccNO=$B29,IF(S_6FieldRank<=S_6Choice,S_6Amount,0),0)) -> 0 | P29: =SUM(IF(S_7AccNO=$B29,IF(S_7FieldRank<=S_7Choice,S_7Amount,0),0)) -> 0 | Q29: =SUM(IF(S_8AccNO=$B29,IF(S_8FieldRank<=S_8Choice,S_8Amount,0),0)) -> 0 | R29: =SUM(IF(S_9AccNO=$B29,IF(S_9FieldRank<=S_9Choice,S_9Amount,0),0)) -> 0 | S29: =SUM(IF(S_10AccNO=$B29,IF(S_10FieldRank<=S_10Choice,S_10Amount,0),0)) -> 100 | T29: =SUM(IF(S_12AccNO=$B29,IF(S_12FieldRank<=S_12Choice,S_12Amount,0),0)) -> 0
A30: 8975 | B30: 508 | C30: Depreciation Expense | D30: 0 | E30: 0 | F30: =SUM(IF(S1AccNO=B30,IF(S1FieldRank<=S1Choice,S1Amount,0),0)) -> 0 | G30: =SUM(IF(S_2AccNO=$B30,IF(S_2FieldRank<=S_2Choice,S_2Amount,0),0)) -> 0 | H30: =SUM(IF(S_3AccNO=$B30,IF(S_3FieldRank<=S_3Choice,S_3Amount,0),0)) -> 0 | I30: =SUM(IF(S_4AccNO=$B30,IF(S_4FieldRank<=S_4Choice,S_4Amount,0),0)) -> 0 | J30: =SUM(IF(S_5AccNO=$B30,IF(S_5FieldRank<=S_5Choice,S_5Amount,0),0)) -> 0 | K30: =SUM(IF(S_11AccNO=$B30,IF(S_11FieldRank<=S_11Choice,S_11Amount,0),0)) -> 0 | L30: =SUM(IF(S_13AccNO=$B30,IF(S_13FieldRank<=S_13Choice,S_13Amount,0),0)) -> 0 | M30: =SUM(IF(S_14AccNO=$B30,IF(S_14FieldRank<=S_14Choice,S_14Amount,0),0)) -> 0 | N30: Depreciation Expense | O30: =SUM(IF(S_6AccNO=$B30,IF(S_6FieldRank<=S_6Choice,S_6Amount,0),0)) -> 0 | P30: =SUM(IF(S_7AccNO=$B30,IF(S_7FieldRank<=S_7Choice,S_7Amount,0),0)) -> 0 | Q30: =SUM(IF(S_8AccNO=$B30,IF(S_8FieldRank<=S_8Choice,S_8Amount,0),0)) -> 0 | R30: =SUM(IF(S_9AccNO=$B30,IF(S_9FieldRank<=S_9Choice,S_9Amount,0),0)) -> 0 | S30: =SUM(IF(S_10AccNO=$B30,IF(S_10FieldRank<=S_10Choice,S_10Amount,0),0)) -> 0 | T30: =SUM(IF(S_12AccNO=$B30,IF(S_12FieldRank<=S_12Choice,S_12Amount,0),0)) -> 0
A31: 8510 | B31: 511 | C31: Small Equip. Purchase | D31: 15600 | E31: 14200 | F31: =SUM(IF(S1AccNO=B31,IF(S1FieldRank<=S1Choice,S1Amount,0),0)) -> 0 | G31: =SUM(IF(S_2AccNO=$B31,IF(S_2FieldRank<=S_2Choice,S_2Amount,0),0)) -> 0 | H31: =SUM(IF(S_3AccNO=$B31,IF(S_3FieldRank<=S_3Choice,S_3Amount,0),0)) -> 0 | I31: =SUM(IF(S_4AccNO=$B31,IF(S_4FieldRank<=S_4Choice,S_4Amount,0),0)) -> 0 | J31: =SUM(IF(S_5AccNO=$B31,IF(S_5FieldRank<=S_5Choice,S_5Amount,0),0)) -> 0 | K31: =SUM(IF(S_11AccNO=$B31,IF(S_11FieldRank<=S_11Choice,S_11Amount,0),0)) -> 3200 | L31: =SUM(IF(S_13AccNO=$B31,IF(S_13FieldRank<=S_13Choice,S_13Amount,0),0)) -> 0 | M31: =SUM(IF(S_14AccNO=$B31,IF(S_14FieldRank<=S_14Choice,S_14Amount,0),0)) -> 0 | N31: Small Equip. Purchase | O31: =SUM(IF(S_6AccNO=$B31,IF(S_6FieldRank<=S_6Choice,S_6Amount,0),0)) -> 0 | P31: =SUM(IF(S_7AccNO=$B31,IF(S_7FieldRank<=S_7Choice,S_7Amount,0),0)) -> 0 | Q31: =SUM(IF(S_8AccNO=$B31,IF(S_8FieldRank<=S_8Choice,S_8Amount,0),0)) -> 0 | R31: =SUM(IF(S_9AccNO=$B31,IF(S_9FieldRank<=S_9Choice,S_9Amount,0),0)) -> 11000 | S31: =SUM(IF(S_10AccNO=$B31,IF(S_10FieldRank<=S_10Choice,S_10Amount,0),0)) -> 0 | T31: =SUM(IF(S_12AccNO=$B31,IF(S_12FieldRank<=S_12Choice,S_12Amount,0),0)) -> 0
A32: 8803 | B32: 515 | C32: Food for Outreach/Meetings | D32: 28765 | E32: 44314 | F32: =SUM(IF(S1AccNO=B32,IF(S1FieldRank<=S1Choice,S1Amount,0),0)) -> 0 | G32: =SUM(IF(S_2AccNO=$B32,IF(S_2FieldRank<=S_2Choice,S_2Amount,0),0)) -> 0 | H32: =SUM(IF(S_3AccNO=$B32,IF(S_3FieldRank<=S_3Choice,S_3Amount,0),0)) -> 0 | I32: =SUM(IF(S_4AccNO=$B32,IF(S_4FieldRank<=S_4Choice,S_4Amount,0),0)) -> 0 | J32: =SUM(IF(S_5AccNO=$B32,IF(S_5FieldRank<=S_5Choice,S_5Amount,0),0)) -> 1964 | K32: =SUM(IF(S_11AccNO=$B32,IF(S_11FieldRank<=S_11Choice,S_11Amount,0),0)) -> 39000 | L32: =SUM(IF(S_13AccNO=$B32,IF(S_13FieldRank<=S_13Choice,S_13Amount,0),0)) -> 0 | M32: =SUM(IF(S_14AccNO=$B32,IF(S_14FieldRank<=S_14Choice,S_14Amount,0),0)) -> 0 | N32: Food for Outreach/Meetings | O32: =SUM(IF(S_6AccNO=$B32,IF(S_6FieldRank<=S_6Choice,S_6Amount,0),0)) -> 0 | P32: =SUM(IF(S_7AccNO=$B32,IF(S_7FieldRank<=S_7Choice,S_7Amount,0),0)) -> 0 | Q32: =SUM(IF(S_8AccNO=$B32,IF(S_8FieldRank<=S_8Choice,S_8Amount,0),0)) -> 900 | R32: =SUM(IF(S_9AccNO=$B32,IF(S_9FieldRank<=S_9Choice,S_9Amount,0),0)) -> 2350 | S32: =SUM(IF(S_10AccNO=$B32,IF(S_10FieldRank<=S_10Choice,S_10Amount,0),0)) -> 100 | T32: =SUM(IF(S_12AccNO=$B32,IF(S_12FieldRank<=S_12Choice,S_12Amount,0),0)) -> 0
A33: 8951 | B33: 517 | C33: Gifts to Affiliated Org. | D33: 288490 | E33: 124800 | F33: =SUM(IF(S1AccNO=B33,IF(S1FieldRank<=S1Choice,S1Amount,0),0)) -> 0 | G33: =SUM(IF(S_2AccNO=$B33,IF(S_2FieldRank<=S_2Choice,S_2Amount,0),0)) -> 0 | H33: =SUM(IF(S_3AccNO=$B33,IF(S_3FieldRank<=S_3Choice,S_3Amount,0),0)) -> 0 | I33: =SUM(IF(S_4AccNO=$B33,IF(S_4FieldRank<=S_4Choice,S_4Amount,0),0)) -> 0 | J33: =SUM(IF(S_5AccNO=$B33,IF(S_5FieldRank<=S_5Choice,S_5Amount,0),0)) -> 0 | K33: =SUM(IF(S_11AccNO=$B33,IF(S_11FieldRank<=S_11Choice,S_11Amount,0),0)) -> 0 | L33: =SUM(IF(S_13AccNO=$B33,IF(S_13FieldRank<=S_13Choice,S_13Amount,0),0)) -> 0 | M33: =SUM(IF(S_14AccNO=$B33,IF(S_14FieldRank<=S_14Choice,S_14Amount,0),0)) -> 0 | N33: Gifts to Affiliated Org. | O33: =SUM(IF(S_6AccNO=$B33,IF(S_6FieldRank<=S_6Choice,S_6Amount,0),0)) -> 0 | P33: =SUM(IF(S_7AccNO=$B33,IF(S_7FieldRank<=S_7Choice,S_7Amount,0),0)) -> 115000 | Q33: =SUM(IF(S_8AccNO=$B33,IF(S_8FieldRank<=S_8Choice,S_8Amount,0),0)) -> 0 | R33: =SUM(IF(S_9AccNO=$B33,IF(S_9FieldRank<=S_9Choice,S_9Amount,0),0)) -> 0 | S33: =SUM(IF(S_10AccNO=$B33,IF(S_10FieldRank<=S_10Choice,S_10Amount,0),0)) -> 9800 | T33: =SUM(IF(S_12AccNO=$B33,IF(S_12FieldRank<=S_12Choice,S_12Amount,0),0)) -> 0
A34: 8403 | B34: 519 | C34: Bldg, Equip & Liab. Ins. | D34: 32745 | E34: 31465 | F34: =SUM(IF(S1AccNO=B34,IF(S1FieldRank<=S1Choice,S1Amount,0),0)) -> 1500 | G34: =SUM(IF(S_2AccNO=$B34,IF(S_2FieldRank<=S_2Choice,S_2Amount,0),0)) -> 150 | H34: =SUM(IF(S_3AccNO=$B34,IF(S_3FieldRank<=S_3Choice,S_3Amount,0),0)) -> 0 | I34: =SUM(IF(S_4AccNO=$B34,IF(S_4FieldRank<=S_4Choice,S_4Amount,0),0)) -> 0 | J34: =SUM(IF(S_5AccNO=$B34,IF(S_5FieldRank<=S_5Choice,S_5Amount,0),0)) -> 2575 | K34: =SUM(IF(S_11AccNO=$B34,IF(S_11FieldRank<=S_11Choice,S_11Amount,0),0)) -> 17000 | L34: =SUM(IF(S_13AccNO=$B34,IF(S_13FieldRank<=S_13Choice,S_13Amount,0),0)) -> 750 | M34: =SUM(IF(S_14AccNO=$B34,IF(S_14FieldRank<=S_14Choice,S_14Amount,0),0)) -> 2440 | N34: Bldg, Equip & Liab. Ins. | O34: =SUM(IF(S_6AccNO=$B34,IF(S_6FieldRank<=S_6Choice,S_6Amount,0),0)) -> 0 | P34: =SUM(IF(S_7AccNO=$B34,IF(S_7FieldRank<=S_7Choice,S_7Amount,0),0)) -> 0 | Q34: =SUM(IF(S_8AccNO=$B34,IF(S_8FieldRank<=S_8Choice,S_8Amount,0),0)) -> 0 | R34: =SUM(IF(S_9AccNO=$B34,IF(S_9FieldRank<=S_9Choice,S_9Amount,0),0)) -> 7050 | S34: =SUM(IF(S_10AccNO=$B34,IF(S_10FieldRank<=S_10Choice,S_10Amount,0),0)) -> 0 | T34: =SUM(IF(S_12AccNO=$B34,IF(S_12FieldRank<=S_12Choice,S_12Amount,0),0)) -> 0
A35: 8008 | B35: 521 | C35: Audit & Legal Fees | D35: 15300 | E35: 15300 | F35: =SUM(IF(S1AccNO=B35,IF(S1FieldRank<=S1Choice,S1Amount,0),0)) -> 0 | G35: =SUM(IF(S_2AccNO=$B35,IF(S_2FieldRank<=S_2Choice,S_2Amount,0),0)) -> 0 | H35: =SUM(IF(S_3AccNO=$B35,IF(S_3FieldRank<=S_3Choice,S_3Amount,0),0)) -> 0 | I35: =SUM(IF(S_4AccNO=$B35,IF(S_4FieldRank<=S_4Choice,S_4Amount,0),0)) -> 0 | J35: =SUM(IF(S_5AccNO=$B35,IF(S_5FieldRank<=S_5Choice,S_5Amount,0),0)) -> 0 | K35: =SUM(IF(S_11AccNO=$B35,IF(S_11FieldRank<=S_11Choice,S_11Amount,0),0)) -> 0 | L35: =SUM(IF(S_13AccNO=$B35,IF(S_13FieldRank<=S_13Choice,S_13Amount,0),0)) -> 0 | M35: =SUM(IF(S_14AccNO=$B35,IF(S_14FieldRank<=S_14Choice,S_14Amount,0),0)) -> 0 | N35: Audit & Legal Fees | O35: =SUM(IF(S_6AccNO=$B35,IF(S_6FieldRank<=S_6Choice,S_6Amount,0),0)) -> 0 | P35: =SUM(IF(S_7AccNO=$B35,IF(S_7FieldRank<=S_7Choice,S_7Amount,0),0)) -> 0 | Q35: =SUM(IF(S_8AccNO=$B35,IF(S_8FieldRank<=S_8Choice,S_8Amount,0),0)) -> 0 | R35: =SUM(IF(S_9AccNO=$B35,IF(S_9FieldRank<=S_9Choice,S_9Amount,0),0)) -> 15000 | S35: =SUM(IF(S_10AccNO=$B35,IF(S_10FieldRank<=S_10Choice,S_10Amount,0),0)) -> 300 | T35: =SUM(IF(S_12AccNO=$B35,IF(S_12FieldRank<=S_12Choice,S_12Amount,0),0)) -> 0
A36: 8606 | B36: 523 | C36: Subscription & Perd. | D36: 0 | E36: 0 | F36: =SUM(IF(S1AccNO=B36,IF(S1FieldRank<=S1Choice,S1Amount,0),0)) -> 0 | G36: =SUM(IF(S_2AccNO=$B36,IF(S_2FieldRank<=S_2Choice,S_2Amount,0),0)) -> 0 | H36: =SUM(IF(S_3AccNO=$B36,IF(S_3FieldRank<=S_3Choice,S_3Amount,0),0)) -> 0 | I36: =SUM(IF(S_4AccNO=$B36,IF(S_4FieldRank<=S_4Choice,S_4Amount,0),0)) -> 0 | J36: =SUM(IF(S_5AccNO=$B36,IF(S_5FieldRank<=S_5Choice,S_5Amount,0),0)) -> 0 | K36: =SUM(IF(S_11AccNO=$B36,IF(S_11FieldRank<=S_11Choice,S_11Amount,0),0)) -> 0 | L36: =SUM(IF(S_13AccNO=$B36,IF(S_13FieldRank<=S_13Choice,S_13Amount,0),0)) -> 0 | M36: =SUM(IF(S_14AccNO=$B36,IF(S_14FieldRank<=S_14Choice,S_14Amount,0),0)) -> 0 | N36: Subscription & Perd. | O36: =SUM(IF(S_6AccNO=$B36,IF(S_6FieldRank<=S_6Choice,S_6Amount,0),0)) -> 0 | P36: =SUM(IF(S_7AccNO=$B36,IF(S_7FieldRank<=S_7Choice,S_7Amount,0),0)) -> 0 | Q36: =SUM(IF(S_8AccNO=$B36,IF(S_8FieldRank<=S_8Choice,S_8Amount,0),0)) -> 0 | R36: =SUM(IF(S_9AccNO=$B36,IF(S_9FieldRank<=S_9Choice,S_9Amount,0),0)) -> 0 | S36: =SUM(IF(S_10AccNO=$B36,IF(S_10FieldRank<=S_10Choice,S_10Amount,0),0)) -> 0 | T36: =SUM(IF(S_12AccNO=$B36,IF(S_12FieldRank<=S_12Choice,S_12Amount,0),0)) -> 0
A37: 8413 | B37: 525 | C37: Bldg. Maint. | D37: 8300 | E37: 6800 | F37: =SUM(IF(S1AccNO=B37,IF(S1FieldRank<=S1Choice,S1Amount,0),0)) -> 0 | G37: =SUM(IF(S_2AccNO=$B37,IF(S_2FieldRank<=S_2Choice,S_2Amount,0),0)) -> 0 | H37: =SUM(IF(S_3AccNO=$B37,IF(S_3FieldRank<=S_3Choice,S_3Amount,0),0)) -> 0 | I37: =SUM(IF(S_4AccNO=$B37,IF(S_4FieldRank<=S_4Choice,S_4Amount,0),0)) -> 0 | J37: =SUM(IF(S_5AccNO=$B37,IF(S_5FieldRank<=S_5Choice,S_5Amount,0),0)) -> 0 | K37: =SUM(IF(S_11AccNO=$B37,IF(S_11FieldRank<=S_11Choice,S_11Amount,0),0)) -> 4000 | L37: =SUM(IF(S_13AccNO=$B37,IF(S_13FieldRank<=S_13Choice,S_13Amount,0),0)) -> 0 | M37: =SUM(IF(S_14AccNO=$B37,IF(S_14FieldRank<=S_14Choice,S_14Amount,0),0)) -> 0 | N37: Bldg. Maint. | O37: =SUM(IF(S_6AccNO=$B37,IF(S_6FieldRank<=S_6Choice,S_6Amount,0),0)) -> 0 | P37: =SUM(IF(S_7AccNO=$B37,IF(S_7FieldRank<=S_7Choice,S_7Amount,0),0)) -> 0 | Q37: =SUM(IF(S_8AccNO=$B37,IF(S_8FieldRank<=S_8Choice,S_8Amount,0),0)) -> 0 | R37: =SUM(IF(S_9AccNO=$B37,IF(S_9FieldRank<=S_9Choice,S_9Amount,0),0)) -> 2800 | S37: =SUM(IF(S_10AccNO=$B37,IF(S_10FieldRank<=S_10Choice,S_10Amount,0),0)) -> 0 | T37: =SUM(IF(S_12AccNO=$B37,IF(S_12FieldRank<=S_12Choice,S_12Amount,0),0)) -> 0
A38: 8502 | B38: 527 | C38: Equip. Maint. | D38: 7770 | E38: 8470 | F38: =SUM(IF(S1AccNO=B38,IF(S1FieldRank<=S1Choice,S1Amount,0),0)) -> 0 | G38: =SUM(IF(S_2AccNO=$B38,IF(S_2FieldRank<=S_2Choice,S_2Amount,0),0)) -> 70 | H38: =SUM(IF(S_3AccNO=$B38,IF(S_3FieldRank<=S_3Choice,S_3Amount,0),0)) -> 0 | I38: =SUM(IF(S_4AccNO=$B38,IF(S_4FieldRank<=S_4Choice,S_4Amount,0),0)) -> 0 | J38: =SUM(IF(S_5AccNO=$B38,IF(S_5FieldRank<=S_5Choice,S_5Amount,0),0)) -> 0 | K38: =SUM(IF(S_11AccNO=$B38,IF(S_11FieldRank<=S_11Choice,S_11Amount,0),0)) -> 2000 | L38: =SUM(IF(S_13AccNO=$B38,IF(S_13FieldRank<=S_13Choice,S_13Amount,0),0)) -> 0 | M38: =SUM(IF(S_14AccNO=$B38,IF(S_14FieldRank<=S_14Choice,S_14Amount,0),0)) -> 0 | N38: Equip. Maint. | O38: =SUM(IF(S_6AccNO=$B38,IF(S_6FieldRank<=S_6Choice,S_6Amount,0),0)) -> 400 | P38: =SUM(IF(S_7AccNO=$B38,IF(S_7FieldRank<=S_7Choice,S_7Amount,0),0)) -> 0 | Q38: =SUM(IF(S_8AccNO=$B38,IF(S_8FieldRank<=S_8Choice,S_8Amount,0),0)) -> 0 | R38: =SUM(IF(S_9AccNO=$B38,IF(S_9FieldRank<=S_9Choice,S_9Amount,0),0)) -> 6000 | S38: =SUM(IF(S_10AccNO=$B38,IF(S_10FieldRank<=S_10Choice,S_10Amount,0),0)) -> 0 | T38: =SUM(IF(S_12AccNO=$B38,IF(S_12FieldRank<=S_12Choice,S_12Amount,0),0)) -> 0
A39: 8941 | B39: 529 | C39: Banking Charges | D39: 10200 | E39: 1600 | F39: =SUM(IF(S1AccNO=B39,IF(S1FieldRank<=S1Choice,S1Amount,0),0)) -> 0 | G39: =SUM(IF(S_2AccNO=$B39,IF(S_2FieldRank<=S_2Choice,S_2Amount,0),0)) -> 0 | H39: =SUM(IF(S_3AccNO=$B39,IF(S_3FieldRank<=S_3Choice,S_3Amount,0),0)) -> 0 | I39: =SUM(IF(S_4AccNO=$B39,IF(S_4FieldRank<=S_4Choice,S_4Amount,0),0)) -> 0 | J39: =SUM(IF(S_5AccNO=$B39,IF(S_5FieldRank<=S_5Choice,S_5Amount,0),0)) -> 0 | K39: =SUM(IF(S_11AccNO=$B39,IF(S_11FieldRank<=S_11Choice,S_11Amount,0),0)) -> 250 | L39: =SUM(IF(S_13AccNO=$B39,IF(S_13FieldRank<=S_13Choice,S_13Amount,0),0)) -> 0 | M39: =SUM(IF(S_14AccNO=$B39,IF(S_14FieldRank<=S_14Choice,S_14Amount,0),0)) -> 0 | N39: Banking Charges | O39: =SUM(IF(S_6AccNO=$B39,IF(S_6FieldRank<=S_6Choice,S_6Amount,0),0)) -> 0 | P39: =SUM(IF(S_7AccNO=$B39,IF(S_7FieldRank<=S_7Choice,S_7Amount,0),0)) -> 0 | Q39: =SUM(IF(S_8AccNO=$B39,IF(S_8FieldRank<=S_8Choice,S_8Amount,0),0)) -> 0 | R39: =SUM(IF(S_9AccNO=$B39,IF(S_9FieldRank<=S_9Choice,S_9Amount,0),0)) -> 1350 | S39: =SUM(IF(S_10AccNO=$B39,IF(S_10FieldRank<=S_10Choice,S_10Amount,0),0)) -> 0 | T39: =SUM(IF(S_12AccNO=$B39,IF(S_12FieldRank<=S_12Choice,S_12Amount,0),0)) -> 0
A40: 8902 | B40: 530 | C40: Royalties/Fees | D40: 8725 | E40: 6615 | F40: =SUM(IF(S1AccNO=B40,IF(S1FieldRank<=S1Choice,S1Amount,0),0)) -> 50 | G40: =SUM(IF(S_2AccNO=$B40,IF(S_2FieldRank<=S_2Choice,S_2Amount,0),0)) -> 280 | H40: =SUM(IF(S_3AccNO=$B40,IF(S_3FieldRank<=S_3Choice,S_3Amount,0),0)) -> 0 | I40: =SUM(IF(S_4AccNO=$B40,IF(S_4FieldRank<=S_4Choice,S_4Amount,0),0)) -> 0 | J40: =SUM(IF(S_5AccNO=$B40,IF(S_5FieldRank<=S_5Choice,S_5Amount,0),0)) -> 2685 | K40: =SUM(IF(S_11AccNO=$B40,IF(S_11FieldRank<=S_11Choice,S_11Amount,0),0)) -> 200 | L40: =SUM(IF(S_13AccNO=$B40,IF(S_13FieldRank<=S_13Choice,S_13Amount,0),0)) -> 0 | M40: =SUM(IF(S_14AccNO=$B40,IF(S_14FieldRank<=S_14Choice,S_14Amount,0),0)) -> 0 | N40: Royalties/Fees | O40: =SUM(IF(S_6AccNO=$B40,IF(S_6FieldRank<=S_6Choice,S_6Amount,0),0)) -> 150 | P40: =SUM(IF(S_7AccNO=$B40,IF(S_7FieldRank<=S_7Choice,S_7Amount,0),0)) -> 0 | Q40: =SUM(IF(S_8AccNO=$B40,IF(S_8FieldRank<=S_8Choice,S_8Amount,0),0)) -> 0 | R40: =SUM(IF(S_9AccNO=$B40,IF(S_9FieldRank<=S_9Choice,S_9Amount,0),0)) -> 3150 | S40: =SUM(IF(S_10AccNO=$B40,IF(S_10FieldRank<=S_10Choice,S_10Amount,0),0)) -> 100 | T40: =SUM(IF(S_12AccNO=$B40,IF(S_12FieldRank<=S_12Choice,S_12Amount,0),0)) -> 0
A41: 8940 | B41: 531 | C41: Moving Expense | D41: 0 | E41: 0 | F41: =SUM(IF(S1AccNO=B41,IF(S1FieldRank<=S1Choice,S1Amount,0),0)) -> 0 | G41: =SUM(IF(S_2AccNO=$B41,IF(S_2FieldRank<=S_2Choice,S_2Amount,0),0)) -> 0 | H41: =SUM(IF(S_3AccNO=$B41,IF(S_3FieldRank<=S_3Choice,S_3Amount,0),0)) -> 0 | I41: =SUM(IF(S_4AccNO=$B41,IF(S_4FieldRank<=S_4Choice,S_4Amount,0),0)) -> 0 | J41: =SUM(IF(S_5AccNO=$B41,IF(S_5FieldRank<=S_5Choice,S_5Amount,0),0)) -> 0 | K41: =SUM(IF(S_11AccNO=$B41,IF(S_11FieldRank<=S_11Choice,S_11Amount,0),0)) -> 0 | L41: =SUM(IF(S_13AccNO=$B41,IF(S_13FieldRank<=S_13Choice,S_13Amount,0),0)) -> 0 | M41: =SUM(IF(S_14AccNO=$B41,IF(S_14FieldRank<=S_14Choice,S_14Amount,0),0)) -> 0 | N41: Moving Expense | O41: =SUM(IF(S_6AccNO=$B41,IF(S_6FieldRank<=S_6Choice,S_6Amount,0),0)) -> 0 | P41: =SUM(IF(S_7AccNO=$B41,IF(S_7FieldRank<=S_7Choice,S_7Amount,0),0)) -> 0 | Q41: =SUM(IF(S_8AccNO=$B41,IF(S_8FieldRank<=S_8Choice,S_8Amount,0),0)) -> 0 | R41: =SUM(IF(S_9AccNO=$B41,IF(S_9FieldRank<=S_9Choice,S_9Amount,0),0)) -> 0 | S41: =SUM(IF(S_10AccNO=$B41,IF(S_10FieldRank<=S_10Choice,S_10Amount,0),0)) -> 0 | T41: =SUM(IF(S_12AccNO=$B41,IF(S_12FieldRank<=S_12Choice,S_12Amount,0),0)) -> 0
A42: 8106 | B42: 532 | C42: Office Supply | D42: 4300 | E42: 3350 | F42: =SUM(IF(S1AccNO=B42,IF(S1FieldRank<=S1Choice,S1Amount,0),0)) -> 0 | G42: =SUM(IF(S_2AccNO=$B42,IF(S_2FieldRank<=S_2Choice,S_2Amount,0),0)) -> 0 | H42: =SUM(IF(S_3AccNO=$B42,IF(S_3FieldRank<=S_3Choice,S_3Amount,0),0)) -> 0 | I42: =SUM(IF(S_4AccNO=$B42,IF(S_4FieldRank<=S_4Choice,S_4Amount,0),0)) -> 0 | J42: =SUM(IF(S_5AccNO=$B42,IF(S_5FieldRank<=S_5Choice,S_5Amount,0),0)) -> 50 | K42: =SUM(IF(S_11AccNO=$B42,IF(S_11FieldRank<=S_11Choice,S_11Amount,0),0)) -> 1000 | L42: =SUM(IF(S_13AccNO=$B42,IF(S_13FieldRank<=S_13Choice,S_13Amount,0),0)) -> 0 | M42: =SUM(IF(S_14AccNO=$B42,IF(S_14FieldRank<=S_14Choice,S_14Amount,0),0)) -> 0 | N42: Office Supply | O42: =SUM(IF(S_6AccNO=$B42,IF(S_6FieldRank<=S_6Choice,S_6Amount,0),0)) -> 600 | P42: =SUM(IF(S_7AccNO=$B42,IF(S_7FieldRank<=S_7Choice,S_7Amount,0),0)) -> 0 | Q42: =SUM(IF(S_8AccNO=$B42,IF(S_8FieldRank<=S_8Choice,S_8Amount,0),0)) -> 0 | R42: =SUM(IF(S_9AccNO=$B42,IF(S_9FieldRank<=S_9Choice,S_9Amount,0),0)) -> 1700 | S42: =SUM(IF(S_10AccNO=$B42,IF(S_10FieldRank<=S_10Choice,S_10Amount,0),0)) -> 0 | T42: =SUM(IF(S_12AccNO=$B42,IF(S_12FieldRank<=S_12Choice,S_12Amount,0),0)) -> 0
A43: 8301 | B43: 533 | C43: Postage & Parcels | D43: 23370 | E43: =SUM(F43:T43) -> 24400 | F43: =SUM(IF(S1AccNO=B43,IF(S1FieldRank<=S1Choice,S1Amount,0),0)) -> 0 | G43: =SUM(IF(S_2AccNO=$B43,IF(S_2FieldRank<=S_2Choice,S_2Amount,0),0)) -> 0 | H43: =SUM(IF(S_3AccNO=$B43,IF(S_3FieldRank<=S_3Choice,S_3Amount,0),0)) -> 0 | I43: =SUM(IF(S_4AccNO=$B43,IF(S_4FieldRank<=S_4Choice,S_4Amount,0),0)) -> 0 | J43: =SUM(IF(S_5AccNO=$B43,IF(S_5FieldRank<=S_5Choice,S_5Amount,0),0)) -> 0 | K43: =SUM(IF(S_11AccNO=$B43,IF(S_11FieldRank<=S_11Choice,S_11Amount,0),0)) -> 1350 | L43: =SUM(IF(S_13AccNO=$B43,IF(S_13FieldRank<=S_13Choice,S_13Amount,0),0)) -> 0 | M43: =SUM(IF(S_14AccNO=$B43,IF(S_14FieldRank<=S_14Choice,S_14Amount,0),0)) -> 0 | N43: Postage & Parcels | O43: =SUM(IF(S_6AccNO=$B43,IF(S_6FieldRank<=S_6Choice,S_6Amount,0),0)) -> 450 | P43: =SUM(IF(S_7AccNO=$B43,IF(S_7FieldRank<=S_7Choice,S_7Amount,0),0)) -> 0 | Q43: =SUM(IF(S_8AccNO=$B43,IF(S_8FieldRank<=S_8Choice,S_8Amount,0),0)) -> 0 | R43: =SUM(IF(S_9AccNO=$B43,IF(S_9FieldRank<=S_9Choice,S_9Amount,0),0)) -> 2500 | S43: =SUM(IF(S_10AccNO=$B43,IF(S_10FieldRank<=S_10Choice,S_10Amount,0),0)) -> 100 | T43: =SUM(IF(S_12AccNO=$B43,IF(S_12FieldRank<=S_12Choice,S_12Amount,0),0)) -> 20000
A44: 8803 | B44: 537 | C44: Staff Training | D44: 16795 | E44: 16920 | F44: =SUM(IF(S1AccNO=B44,IF(S1FieldRank<=S1Choice,S1Amount,0),0)) -> 540 | G44: =SUM(IF(S_2AccNO=$B44,IF(S_2FieldRank<=S_2Choice,S_2Amount,0),0)) -> 900 | H44: =SUM(IF(S_3AccNO=$B44,IF(S_3FieldRank<=S_3Choice,S_3Amount,0),0)) -> 60 | I44: =SUM(IF(S_4AccNO=$B44,IF(S_4FieldRank<=S_4Choice,S_4Amount,0),0)) -> 120 | J44: =SUM(IF(S_5AccNO=$B44,IF(S_5FieldRank<=S_5Choice,S_5Amount,0),0)) -> 0 | K44: =SUM(IF(S_11AccNO=$B44,IF(S_11FieldRank<=S_11Choice,S_11Amount,0),0)) -> 800 | L44: =SUM(IF(S_13AccNO=$B44,IF(S_13FieldRank<=S_13Choice,S_13Amount,0),0)) -> 0 | M44: =SUM(IF(S_14AccNO=$B44,IF(S_14FieldRank<=S_14Choice,S_14Amount,0),0)) -> 0 | N44: Staff Training | O44: =SUM(IF(S_6AccNO=$B44,IF(S_6FieldRank<=S_6Choice,S_6Amount,0),0)) -> 40 | P44: =SUM(IF(S_7AccNO=$B44,IF(S_7FieldRank<=S_7Choice,S_7Amount,0),0)) -> 0 | Q44: =SUM(IF(S_8AccNO=$B44,IF(S_8FieldRank<=S_8Choice,S_8Amount,0),0)) -> 12000 | R44: =SUM(IF(S_9AccNO=$B44,IF(S_9FieldRank<=S_9Choice,S_9Amount,0),0)) -> 2330 | S44: =SUM(IF(S_10AccNO=$B44,IF(S_10FieldRank<=S_10Choice,S_10Amount,0),0)) -> 130 | T44: =SUM(IF(S_12AccNO=$B44,IF(S_12FieldRank<=S_12Choice,S_12Amount,0),0)) -> 0
A45: 8806 | B45: 538 | C45: Seminars & Registration | D45: 1050 | E45: 950 | F45: =SUM(IF(S1AccNO=B45,IF(S1FieldRank<=S1Choice,S1Amount,0),0)) -> 0 | G45: =SUM(IF(S_2AccNO=$B45,IF(S_2FieldRank<=S_2Choice,S_2Amount,0),0)) -> 0 | H45: =SUM(IF(S_3AccNO=$B45,IF(S_3FieldRank<=S_3Choice,S_3Amount,0),0)) -> 0 | I45: =SUM(IF(S_4AccNO=$B45,IF(S_4FieldRank<=S_4Choice,S_4Amount,0),0)) -> 0 | J45: =SUM(IF(S_5AccNO=$B45,IF(S_5FieldRank<=S_5Choice,S_5Amount,0),0)) -> 0 | K45: =SUM(IF(S_11AccNO=$B45,IF(S_11FieldRank<=S_11Choice,S_11Amount,0),0)) -> 0 | L45: =SUM(IF(S_13AccNO=$B45,IF(S_13FieldRank<=S_13Choice,S_13Amount,0),0)) -> 0 | M45: =SUM(IF(S_14AccNO=$B45,IF(S_14FieldRank<=S_14Choice,S_14Amount,0),0)) -> 0 | N45: Seminars & Registration | O45: =SUM(IF(S_6AccNO=$B45,IF(S_6FieldRank<=S_6Choice,S_6Amount,0),0)) -> 100 | P45: =SUM(IF(S_7AccNO=$B45,IF(S_7FieldRank<=S_7Choice,S_7Amount,0),0)) -> 0 | Q45: =SUM(IF(S_8AccNO=$B45,IF(S_8FieldRank<=S_8Choice,S_8Amount,0),0)) -> 0 | R45: =SUM(IF(S_9AccNO=$B45,IF(S_9FieldRank<=S_9Choice,S_9Amount,0),0)) -> 850 | S45: =SUM(IF(S_10AccNO=$B45,IF(S_10FieldRank<=S_10Choice,S_10Amount,0),0)) -> 0 | T45: =SUM(IF(S_12AccNO=$B45,IF(S_12FieldRank<=S_12Choice,S_12Amount,0),0)) -> 0
A46: 8004 | B46: 542 | C46: Member Care | D46: 2300 | E46: 2300 | F46: =SUM(IF(S1AccNO=B46,IF(S1FieldRank<=S1Choice,S1Amount,0),0)) -> 0 | G46: =SUM(IF(S_2AccNO=$B46,IF(S_2FieldRank<=S_2Choice,S_2Amount,0),0)) -> 0 | H46: =SUM(IF(S_3AccNO=$B46,IF(S_3FieldRank<=S_3Choice,S_3Amount,0),0)) -> 0 | I46: =SUM(IF(S_4AccNO=$B46,IF(S_4FieldRank<=S_4Choice,S_4Amount,0),0)) -> 0 | J46: =SUM(IF(S_5AccNO=$B46,IF(S_5FieldRank<=S_5Choice,S_5Amount,0),0)) -> 0 | K46: =SUM(IF(S_11AccNO=$B46,IF(S_11FieldRank<=S_11Choice,S_11Amount,0),0)) -> 0 | L46: =SUM(IF(S_13AccNO=$B46,IF(S_13FieldRank<=S_13Choice,S_13Amount,0),0)) -> 0 | M46: =SUM(IF(S_14AccNO=$B46,IF(S_14FieldRank<=S_14Choice,S_14Amount,0),0)) -> 0 | N46: Member Care | O46: =SUM(IF(S_6AccNO=$B46,IF(S_6FieldRank<=S_6Choice,S_6Amount,0),0)) -> 0 | P46: =SUM(IF(S_7AccNO=$B46,IF(S_7FieldRank<=S_7Choice,S_7Amount,0),0)) -> 0 | Q46: =SUM(IF(S_8AccNO=$B46,IF(S_8FieldRank<=S_8Choice,S_8Amount,0),0)) -> 2300 | R46: =SUM(IF(S_9AccNO=$B46,IF(S_9FieldRank<=S_9Choice,S_9Amount,0),0)) -> 0 | S46: =SUM(IF(S_10AccNO=$B46,IF(S_10FieldRank<=S_10Choice,S_10Amount,0),0)) -> 0 | T46: =SUM(IF(S_12AccNO=$B46,IF(S_12FieldRank<=S_12Choice,S_12Amount,0),0)) -> 0
A47: 8402 | B47: 543 | C47: Rent Expense | D47: 20625 | E47: 19700 | F47: =SUM(IF(S1AccNO=B47,IF(S1FieldRank<=S1Choice,S1Amount,0),0)) -> 0 | G47: =SUM(IF(S_2AccNO=$B47,IF(S_2FieldRank<=S_2Choice,S_2Amount,0),0)) -> 0 | H47: =SUM(IF(S_3AccNO=$B47,IF(S_3FieldRank<=S_3Choice,S_3Amount,0),0)) -> 0 | I47: =SUM(IF(S_4AccNO=$B47,IF(S_4FieldRank<=S_4Choice,S_4Amount,0),0)) -> 0 | J47: =SUM(IF(S_5AccNO=$B47,IF(S_5FieldRank<=S_5Choice,S_5Amount,0),0)) -> 0 | K47: =SUM(IF(S_11AccNO=$B47,IF(S_11FieldRank<=S_11Choice,S_11Amount,0),0)) -> 7000 | L47: =SUM(IF(S_13AccNO=$B47,IF(S_13FieldRank<=S_13Choice,S_13Amount,0),0)) -> 0 | M47: =SUM(IF(S_14AccNO=$B47,IF(S_14FieldRank<=S_14Choice,S_14Amount,0),0)) -> 0 | N47: Rent Expense | O47: =SUM(IF(S_6AccNO=$B47,IF(S_6FieldRank<=S_6Choice,S_6Amount,0),0)) -> 0 | P47: =SUM(IF(S_7AccNO=$B47,IF(S_7FieldRank<=S_7Choice,S_7Amount,0),0)) -> 0 | Q47: =SUM(IF(S_8AccNO=$B47,IF(S_8FieldRank<=S_8Choice,S_8Amount,0),0)) -> 0 | R47: =SUM(IF(S_9AccNO=$B47,IF(S_9FieldRank<=S_9Choice,S_9Amount,0),0)) -> 12700 | S47: =SUM(IF(S_10AccNO=$B47,IF(S_10FieldRank<=S_10Choice,S_10Amount,0),0)) -> 0 | T47: =SUM(IF(S_12AccNO=$B47,IF(S_12FieldRank<=S_12Choice,S_12Amount,0),0)) -> 0
A48: 8108 | B48: 545 | C48: General Supply & Service | D48: 60575 | E48: 64380 | F48: =SUM(IF(S1AccNO=B48,IF(S1FieldRank<=S1Choice,S1Amount,0),0)) -> 2150 | G48: =SUM(IF(S_2AccNO=$B48,IF(S_2FieldRank<=S_2Choice,S_2Amount,0),0)) -> 500 | H48: =SUM(IF(S_3AccNO=$B48,IF(S_3FieldRank<=S_3Choice,S_3Amount,0),0)) -> 150 | I48: =SUM(IF(S_4AccNO=$B48,IF(S_4FieldRank<=S_4Choice,S_4Amount,0),0)) -> 0 | J48: =SUM(IF(S_5AccNO=$B48,IF(S_5FieldRank<=S_5Choice,S_5Amount,0),0)) -> 2150 | K48: =SUM(IF(S_11AccNO=$B48,IF(S_11FieldRank<=S_11Choice,S_11Amount,0),0)) -> 14050 | L48: =SUM(IF(S_13AccNO=$B48,IF(S_13FieldRank<=S_13Choice,S_13Amount,0),0)) -> 0 | M48: =SUM(IF(S_14AccNO=$B48,IF(S_14FieldRank<=S_14Choice,S_14Amount,0),0)) -> 44880 | N48: General Supply & Service | O48: =SUM(IF(S_6AccNO=$B48,IF(S_6FieldRank<=S_6Choice,S_6Amount,0),0)) -> 200 | P48: =SUM(IF(S_7AccNO=$B48,IF(S_7FieldRank<=S_7Choice,S_7Amount,0),0)) -> 0 | Q48: =SUM(IF(S_8AccNO=$B48,IF(S_8FieldRank<=S_8Choice,S_8Amount,0),0)) -> 0 | R48: =SUM(IF(S_9AccNO=$B48,IF(S_9FieldRank<=S_9Choice,S_9Amount,0),0)) -> 200 | S48: =SUM(IF(S_10AccNO=$B48,IF(S_10FieldRank<=S_10Choice,S_10Amount,0),0)) -> 100 | T48: =SUM(IF(S_12AccNO=$B48,IF(S_12FieldRank<=S_12Choice,S_12Amount,0),0)) -> 0
A49: 8711 | B49: 546 | C49: Motel/Hotel | D49: 22735 | E49: 16280 | F49: =SUM(IF(S1AccNO=B49,IF(S1FieldRank<=S1Choice,S1Amount,0),0)) -> 750 | G49: =SUM(IF(S_2AccNO=$B49,IF(S_2FieldRank<=S_2Choice,S_2Amount,0),0)) -> 250 | H49: =SUM(IF(S_3AccNO=$B49,IF(S_3FieldRank<=S_3Choice,S_3Amount,0),0)) -> 0 | I49: =SUM(IF(S_4AccNO=$B49,IF(S_4FieldRank<=S_4Choice,S_4Amount,0),0)) -> 250 | J49: =SUM(IF(S_5AccNO=$B49,IF(S_5FieldRank<=S_5Choice,S_5Amount,0),0)) -> 0 | K49: =SUM(IF(S_11AccNO=$B49,IF(S_11FieldRank<=S_11Choice,S_11Amount,0),0)) -> 300 | L49: =SUM(IF(S_13AccNO=$B49,IF(S_13FieldRank<=S_13Choice,S_13Amount,0),0)) -> 0 | M49: =SUM(IF(S_14AccNO=$B49,IF(S_14FieldRank<=S_14Choice,S_14Amount,0),0)) -> 0 | N49: Motel/Hotel | O49: =SUM(IF(S_6AccNO=$B49,IF(S_6FieldRank<=S_6Choice,S_6Amount,0),0)) -> 500 | P49: =SUM(IF(S_7AccNO=$B49,IF(S_7FieldRank<=S_7Choice,S_7Amount,0),0)) -> 160 | Q49: =SUM(IF(S_8AccNO=$B49,IF(S_8FieldRank<=S_8Choice,S_8Amount,0),0)) -> 250 | R49: =SUM(IF(S_9AccNO=$B49,IF(S_9FieldRank<=S_9Choice,S_9Amount,0),0)) -> 8350 | S49: =SUM(IF(S_10AccNO=$B49,IF(S_10FieldRank<=S_10Choice,S_10Amount,0),0)) -> 5470 | T49: =SUM(IF(S_12AccNO=$B49,IF(S_12FieldRank<=S_12Choice,S_12Amount,0),0)) -> 0
A50: 8201 | B50: 547 | C50: Telephone | D50: 3980 | E50: 4200 | F50: =SUM(IF(S1AccNO=B50,IF(S1FieldRank<=S1Choice,S1Amount,0),0)) -> 0 | G50: =SUM(IF(S_2AccNO=$B50,IF(S_2FieldRank<=S_2Choice,S_2Amount,0),0)) -> 0 | H50: =SUM(IF(S_3AccNO=$B50,IF(S_3FieldRank<=S_3Choice,S_3Amount,0),0)) -> 0 | I50: =SUM(IF(S_4AccNO=$B50,IF(S_4FieldRank<=S_4Choice,S_4Amount,0),0)) -> 0 | J50: =SUM(IF(S_5AccNO=$B50,IF(S_5FieldRank<=S_5Choice,S_5Amount,0),0)) -> 0 | K50: =SUM(IF(S_11AccNO=$B50,IF(S_11FieldRank<=S_11Choice,S_11Amount,0),0)) -> 2200 | L50: =SUM(IF(S_13AccNO=$B50,IF(S_13FieldRank<=S_13Choice,S_13Amount,0),0)) -> 0 | M50: =SUM(IF(S_14AccNO=$B50,IF(S_14FieldRank<=S_14Choice,S_14Amount,0),0)) -> 0 | N50: Telephone | O50: =SUM(IF(S_6AccNO=$B50,IF(S_6FieldRank<=S_6Choice,S_6Amount,0),0)) -> 25 | P50: =SUM(IF(S_7AccNO=$B50,IF(S_7FieldRank<=S_7Choice,S_7Amount,0),0)) -> 0 | Q50: =SUM(IF(S_8AccNO=$B50,IF(S_8FieldRank<=S_8Choice,S_8Amount,0),0)) -> 0 | R50: =SUM(IF(S_9AccNO=$B50,IF(S_9FieldRank<=S_9Choice,S_9Amount,0),0)) -> 1975 | S50: =SUM(IF(S_10AccNO=$B50,IF(S_10FieldRank<=S_10Choice,S_10Amount,0),0)) -> 0 | T50: =SUM(IF(S_12AccNO=$B50,IF(S_12FieldRank<=S_12Choice,S_12Amount,0),0)) -> 0
B51: 548 | C51: Field Director Expense Reimb | D51: 0 | E51: =SUM(F51:T51) -> 0 | F51: =SUM(IF(S1AccNO=B51,IF(S1FieldRank<=S1Choice,S1Amount,0),0)) -> 0 | G51: =SUM(IF(S_2AccNO=$B51,IF(S_2FieldRank<=S_2Choice,S_2Amount,0),0)) -> 0 | H51: =SUM(IF(S_3AccNO=$B51,IF(S_3FieldRank<=S_3Choice,S_3Amount,0),0)) -> 0 | I51: =SUM(IF(S_4AccNO=$B51,IF(S_4FieldRank<=S_4Choice,S_4Amount,0),0)) -> 0 | J51: =SUM(IF(S_5AccNO=$B51,IF(S_5FieldRank<=S_5Choice,S_5Amount,0),0)) -> 0 | K51: =SUM(IF(S_11AccNO=$B51,IF(S_11FieldRank<=S_11Choice,S_11Amount,0),0)) -> 0 | L51: =SUM(IF(S_13AccNO=$B51,IF(S_13FieldRank<=S_13Choice,S_13Amount,0),0)) -> 0 | M51: =SUM(IF(S_14AccNO=$B51,IF(S_14FieldRank<=S_14Choice,S_14Amount,0),0)) -> 0 | N51: Field Director Expense Reimb | O51: =SUM(IF(S_6AccNO=$B51,IF(S_6FieldRank<=S_6Choice,S_6Amount,0),0)) -> 0 | P51: =SUM(IF(S_7AccNO=$B51,IF(S_7FieldRank<=S_7Choice,S_7Amount,0),0)) -> 0 | Q51: =SUM(IF(S_8AccNO=$B51,IF(S_8FieldRank<=S_8Choice,S_8Amount,0),0)) -> 0 | R51: =SUM(IF(S_9AccNO=$B51,IF(S_9FieldRank<=S_9Choice,S_9Amount,0),0)) -> 0 | S51: =SUM(IF(S_10AccNO=$B51,IF(S_10FieldRank<=S_10Choice,S_10Amount,0),0)) -> 0 | T51: =SUM(IF(S_12AccNO=$B51,IF(S_12FieldRank<=S_12Choice,S_12Amount,0),0)) -> 0
A52: 8702 | B52: 549 | C52: Gas & Oil Auto | D52: 31880 | E52: 42240 | F52: =SUM(IF(S1AccNO=B52,IF(S1FieldRank<=S1Choice,S1Amount,0),0)) -> 2725 | G52: =SUM(IF(S_2AccNO=$B52,IF(S_2FieldRank<=S_2Choice,S_2Amount,0),0)) -> 1600 | H52: =SUM(IF(S_3AccNO=$B52,IF(S_3FieldRank<=S_3Choice,S_3Amount,0),0)) -> 0 | I52: =SUM(IF(S_4AccNO=$B52,IF(S_4FieldRank<=S_4Choice,S_4Amount,0),0)) -> 750 | J52: =SUM(IF(S_5AccNO=$B52,IF(S_5FieldRank<=S_5Choice,S_5Amount,0),0)) -> 1840 | K52: =SUM(IF(S_11AccNO=$B52,IF(S_11FieldRank<=S_11Choice,S_11Amount,0),0)) -> 28500 | L52: =SUM(IF(S_13AccNO=$B52,IF(S_13FieldRank<=S_13Choice,S_13Amount,0),0)) -> 0 | M52: =SUM(IF(S_14AccNO=$B52,IF(S_14FieldRank<=S_14Choice,S_14Amount,0),0)) -> 0 | N52: Gas & Oil Auto | O52: =SUM(IF(S_6AccNO=$B52,IF(S_6FieldRank<=S_6Choice,S_6Amount,0),0)) -> 340 | P52: =SUM(IF(S_7AccNO=$B52,IF(S_7FieldRank<=S_7Choice,S_7Amount,0),0)) -> 500 | Q52: =SUM(IF(S_8AccNO=$B52,IF(S_8FieldRank<=S_8Choice,S_8Amount,0),0)) -> 825 | R52: =SUM(IF(S_9AccNO=$B52,IF(S_9FieldRank<=S_9Choice,S_9Amount,0),0)) -> 1850 | S52: =SUM(IF(S_10AccNO=$B52,IF(S_10FieldRank<=S_10Choice,S_10Amount,0),0)) -> 3310 | T52: =SUM(IF(S_12AccNO=$B52,IF(S_12FieldRank<=S_12Choice,S_12Amount,0),0)) -> 0
B53: 550 | C53: Auto Maintenance | D53: 11100 | E53: =SUM(F53:T53) -> 8600 | F53: =SUM(IF(S1AccNO=B53,IF(S1FieldRank<=S1Choice,S1Amount,0),0)) -> 0 | G53: =SUM(IF(S_2AccNO=$B53,IF(S_2FieldRank<=S_2Choice,S_2Amount,0),0)) -> 0 | H53: =SUM(IF(S_3AccNO=$B53,IF(S_3FieldRank<=S_3Choice,S_3Amount,0),0)) -> 0 | I53: =SUM(IF(S_4AccNO=$B53,IF(S_4FieldRank<=S_4Choice,S_4Amount,0),0)) -> 0 | J53: =SUM(IF(S_5AccNO=$B53,IF(S_5FieldRank<=S_5Choice,S_5Amount,0),0)) -> 5600 | K53: =SUM(IF(S_11AccNO=$B53,IF(S_11FieldRank<=S_11Choice,S_11Amount,0),0)) -> 3000 | L53: =SUM(IF(S_13AccNO=$B53,IF(S_13FieldRank<=S_13Choice,S_13Amount,0),0)) -> 0 | M53: =SUM(IF(S_14AccNO=$B53,IF(S_14FieldRank<=S_14Choice,S_14Amount,0),0)) -> 0 | N53: Auto Maintenance | O53: =SUM(IF(S_6AccNO=$B53,IF(S_6FieldRank<=S_6Choice,S_6Amount,0),0)) -> 0 | P53: =SUM(IF(S_7AccNO=$B53,IF(S_7FieldRank<=S_7Choice,S_7Amount,0),0)) -> 0 | Q53: =SUM(IF(S_8AccNO=$B53,IF(S_8FieldRank<=S_8Choice,S_8Amount,0),0)) -> 0 | R53: =SUM(IF(S_9AccNO=$B53,IF(S_9FieldRank<=S_9Choice,S_9Amount,0),0)) -> 0 | S53: =SUM(IF(S_10AccNO=$B53,IF(S_10FieldRank<=S_10Choice,S_10Amount,0),0)) -> 0 | T53: =SUM(IF(S_12AccNO=$B53,IF(S_12FieldRank<=S_12Choice,S_12Amount,0),0)) -> 0
A54: 8710 | B54: 551 | C54: Commercial Travel | D54: 15600 | E54: 14695 | F54: =SUM(IF(S1AccNO=B54,IF(S1FieldRank<=S1Choice,S1Amount,0),0)) -> 1300 | G54: =SUM(IF(S_2AccNO=$B54,IF(S_2FieldRank<=S_2Choice,S_2Amount,0),0)) -> 600 | H54: =SUM(IF(S_3AccNO=$B54,IF(S_3FieldRank<=S_3Choice,S_3Amount,0),0)) -> 0 | I54: =SUM(IF(S_4AccNO=$B54,IF(S_4FieldRank<=S_4Choice,S_4Amount,0),0)) -> 650 | J54: =SUM(IF(S_5AccNO=$B54,IF(S_5FieldRank<=S_5Choice,S_5Amount,0),0)) -> 0 | K54: =SUM(IF(S_11AccNO=$B54,IF(S_11FieldRank<=S_11Choice,S_11Amount,0),0)) -> 0 | L54: =SUM(IF(S_13AccNO=$B54,IF(S_13FieldRank<=S_13Choice,S_13Amount,0),0)) -> 0 | M54: =SUM(IF(S_14AccNO=$B54,IF(S_14FieldRank<=S_14Choice,S_14Amount,0),0)) -> 0 | N54: Commercial Travel | O54: =SUM(IF(S_6AccNO=$B54,IF(S_6FieldRank<=S_6Choice,S_6Amount,0),0)) -> 0 | P54: =SUM(IF(S_7AccNO=$B54,IF(S_7FieldRank<=S_7Choice,S_7Amount,0),0)) -> 0 | Q54: =SUM(IF(S_8AccNO=$B54,IF(S_8FieldRank<=S_8Choice,S_8Amount,0),0)) -> 4500 | R54: =SUM(IF(S_9AccNO=$B54,IF(S_9FieldRank<=S_9Choice,S_9Amount,0),0)) -> 6600 | S54: =SUM(IF(S_10AccNO=$B54,IF(S_10FieldRank<=S_10Choice,S_10Amount,0),0)) -> 1045 | T54: =SUM(IF(S_12AccNO=$B54,IF(S_12FieldRank<=S_12Choice,S_12Amount,0),0)) -> 0
A55: 8709 | B55: 553 | C55: Meal & Entertainment | D55: 6918 | E55: 8280 | F55: =SUM(IF(S1AccNO=B55,IF(S1FieldRank<=S1Choice,S1Amount,0),0)) -> 1760 | G55: =SUM(IF(S_2AccNO=$B55,IF(S_2FieldRank<=S_2Choice,S_2Amount,0),0)) -> 5600 | H55: =SUM(IF(S_3AccNO=$B55,IF(S_3FieldRank<=S_3Choice,S_3Amount,0),0)) -> 0 | I55: =SUM(IF(S_4AccNO=$B55,IF(S_4FieldRank<=S_4Choice,S_4Amount,0),0)) -> 0 | J55: =SUM(IF(S_5AccNO=$B55,IF(S_5FieldRank<=S_5Choice,S_5Amount,0),0)) -> 0 | K55: =SUM(IF(S_11AccNO=$B55,IF(S_11FieldRank<=S_11Choice,S_11Amount,0),0)) -> 0 | L55: =SUM(IF(S_13AccNO=$B55,IF(S_13FieldRank<=S_13Choice,S_13Amount,0),0)) -> 0 | M55: =SUM(IF(S_14AccNO=$B55,IF(S_14FieldRank<=S_14Choice,S_14Amount,0),0)) -> 0 | N55: Meal & Entertainment | O55: =SUM(IF(S_6AccNO=$B55,IF(S_6FieldRank<=S_6Choice,S_6Amount,0),0)) -> 0 | P55: =SUM(IF(S_7AccNO=$B55,IF(S_7FieldRank<=S_7Choice,S_7Amount,0),0)) -> 0 | Q55: =SUM(IF(S_8AccNO=$B55,IF(S_8FieldRank<=S_8Choice,S_8Amount,0),0)) -> 0 | R55: =SUM(IF(S_9AccNO=$B55,IF(S_9FieldRank<=S_9Choice,S_9Amount,0),0)) -> 500 | S55: =SUM(IF(S_10AccNO=$B55,IF(S_10FieldRank<=S_10Choice,S_10Amount,0),0)) -> 420 | T55: =SUM(IF(S_12AccNO=$B55,IF(S_12FieldRank<=S_12Choice,S_12Amount,0),0)) -> 0
A56: 8805 | B56: 557 | C56: Missionary Conference | D56: 46750 | E56: 42350 | F56: =SUM(IF(S1AccNO=B56,IF(S1FieldRank<=S1Choice,S1Amount,0),0)) -> 0 | G56: =SUM(IF(S_2AccNO=$B56,IF(S_2FieldRank<=S_2Choice,S_2Amount,0),0)) -> 0 | H56: =SUM(IF(S_3AccNO=$B56,IF(S_3FieldRank<=S_3Choice,S_3Amount,0),0)) -> 0 | I56: =SUM(IF(S_4AccNO=$B56,IF(S_4FieldRank<=S_4Choice,S_4Amount,0),0)) -> 0 | J56: =SUM(IF(S_5AccNO=$B56,IF(S_5FieldRank<=S_5Choice,S_5Amount,0),0)) -> 0 | K56: =SUM(IF(S_11AccNO=$B56,IF(S_11FieldRank<=S_11Choice,S_11Amount,0),0)) -> 0 | L56: =SUM(IF(S_13AccNO=$B56,IF(S_13FieldRank<=S_13Choice,S_13Amount,0),0)) -> 0 | M56: =SUM(IF(S_14AccNO=$B56,IF(S_14FieldRank<=S_14Choice,S_14Amount,0),0)) -> 0 | N56: Missionary Conference | O56: =SUM(IF(S_6AccNO=$B56,IF(S_6FieldRank<=S_6Choice,S_6Amount,0),0)) -> 0 | P56: =SUM(IF(S_7AccNO=$B56,IF(S_7FieldRank<=S_7Choice,S_7Amount,0),0)) -> 0 | Q56: =SUM(IF(S_8AccNO=$B56,IF(S_8FieldRank<=S_8Choice,S_8Amount,0),0)) -> 42350 | R56: =SUM(IF(S_9AccNO=$B56,IF(S_9FieldRank<=S_9Choice,S_9Amount,0),0)) -> 0 | S56: =SUM(IF(S_10AccNO=$B56,IF(S_10FieldRank<=S_10Choice,S_10Amount,0),0)) -> 0 | T56: =SUM(IF(S_12AccNO=$B56,IF(S_12FieldRank<=S_12Choice,S_12Amount,0),0)) -> 0
A57: 8804 | B57: 559 | C57: Speaker Honorarium | D57: 3570 | E57: 5900 | F57: =SUM(IF(S1AccNO=B57,IF(S1FieldRank<=S1Choice,S1Amount,0),0)) -> 3400 | G57: =SUM(IF(S_2AccNO=$B57,IF(S_2FieldRank<=S_2Choice,S_2Amount,0),0)) -> 0 | H57: =SUM(IF(S_3AccNO=$B57,IF(S_3FieldRank<=S_3Choice,S_3Amount,0),0)) -> 0 | I57: =SUM(IF(S_4AccNO=$B57,IF(S_4FieldRank<=S_4Choice,S_4Amount,0),0)) -> 0 | J57: =SUM(IF(S_5AccNO=$B57,IF(S_5FieldRank<=S_5Choice,S_5Amount,0),0)) -> 0 | K57: =SUM(IF(S_11AccNO=$B57,IF(S_11FieldRank<=S_11Choice,S_11Amount,0),0)) -> 2500 | L57: =SUM(IF(S_13AccNO=$B57,IF(S_13FieldRank<=S_13Choice,S_13Amount,0),0)) -> 0 | M57: =SUM(IF(S_14AccNO=$B57,IF(S_14FieldRank<=S_14Choice,S_14Amount,0),0)) -> 0 | N57: Speaker Honorarium | O57: =SUM(IF(S_6AccNO=$B57,IF(S_6FieldRank<=S_6Choice,S_6Amount,0),0)) -> 0 | P57: =SUM(IF(S_7AccNO=$B57,IF(S_7FieldRank<=S_7Choice,S_7Amount,0),0)) -> 0 | Q57: =SUM(IF(S_8AccNO=$B57,IF(S_8FieldRank<=S_8Choice,S_8Amount,0),0)) -> 0 | R57: =SUM(IF(S_9AccNO=$B57,IF(S_9FieldRank<=S_9Choice,S_9Amount,0),0)) -> 0 | S57: =SUM(IF(S_10AccNO=$B57,IF(S_10FieldRank<=S_10Choice,S_10Amount,0),0)) -> 0 | T57: =SUM(IF(S_12AccNO=$B57,IF(S_12FieldRank<=S_12Choice,S_12Amount,0),0)) -> 0
A58: 8707 | B58: 563 | C58: Auto Reimbursement | D58: 11860 | E58: 15625 | F58: =SUM(IF(S1AccNO=B58,IF(S1FieldRank<=S1Choice,S1Amount,0),0)) -> 350 | G58: =SUM(IF(S_2AccNO=$B58,IF(S_2FieldRank<=S_2Choice,S_2Amount,0),0)) -> 300 | H58: =SUM(IF(S_3AccNO=$B58,IF(S_3FieldRank<=S_3Choice,S_3Amount,0),0)) -> 0 | I58: =SUM(IF(S_4AccNO=$B58,IF(S_4FieldRank<=S_4Choice,S_4Amount,0),0)) -> 250 | J58: =SUM(IF(S_5AccNO=$B58,IF(S_5FieldRank<=S_5Choice,S_5Amount,0),0)) -> 8735 | K58: =SUM(IF(S_11AccNO=$B58,IF(S_11FieldRank<=S_11Choice,S_11Amount,0),0)) -> 5500 | L58: =SUM(IF(S_13AccNO=$B58,IF(S_13FieldRank<=S_13Choice,S_13Amount,0),0)) -> 0 | M58: =SUM(IF(S_14AccNO=$B58,IF(S_14FieldRank<=S_14Choice,S_14Amount,0),0)) -> 0 | N58: Auto Reimbursement | O58: =SUM(IF(S_6AccNO=$B58,IF(S_6FieldRank<=S_6Choice,S_6Amount,0),0)) -> 0 | P58: =SUM(IF(S_7AccNO=$B58,IF(S_7FieldRank<=S_7Choice,S_7Amount,0),0)) -> 0 | Q58: =SUM(IF(S_8AccNO=$B58,IF(S_8FieldRank<=S_8Choice,S_8Amount,0),0)) -> 0 | R58: =SUM(IF(S_9AccNO=$B58,IF(S_9FieldRank<=S_9Choice,S_9Amount,0),0)) -> 490 | S58: =SUM(IF(S_10AccNO=$B58,IF(S_10FieldRank<=S_10Choice,S_10Amount,0),0)) -> 0 | T58: =SUM(IF(S_12AccNO=$B58,IF(S_12FieldRank<=S_12Choice,S_12Amount,0),0)) -> 0
A59: 8999 | B59: 580 | C59: Special Projects | D59: 770177 | E59: 597580 | F59: =SUM(IF(S1AccNO=B59,IF(S1FieldRank<=S1Choice,S1Amount,0),0)) -> 34025 | G59: =SUM(IF(S_2AccNO=$B59,IF(S_2FieldRank<=S_2Choice,S_2Amount,0),0)) -> 1500 | H59: =SUM(IF(S_3AccNO=$B59,IF(S_3FieldRank<=S_3Choice,S_3Amount,0),0)) -> 1800 | I59: =SUM(IF(S_4AccNO=$B59,IF(S_4FieldRank<=S_4Choice,S_4Amount,0),0)) -> 18175 | J59: =SUM(IF(S_5AccNO=$B59,IF(S_5FieldRank<=S_5Choice,S_5Amount,0),0)) -> 2550 | K59: =SUM(IF(S_11AccNO=$B59,IF(S_11FieldRank<=S_11Choice,S_11Amount,0),0)) -> 510600 | L59: =SUM(IF(S_13AccNO=$B59,IF(S_13FieldRank<=S_13Choice,S_13Amount,0),0)) -> 10700 | M59: =SUM(IF(S_14AccNO=$B59,IF(S_14FieldRank<=S_14Choice,S_14Amount,0),0)) -> 4200 | N59: Special Projects | O59: =SUM(IF(S_6AccNO=$B59,IF(S_6FieldRank<=S_6Choice,S_6Amount,0),0)) -> 0 | P59: =SUM(IF(S_7AccNO=$B59,IF(S_7FieldRank<=S_7Choice,S_7Amount,0),0)) -> 500 | Q59: =SUM(IF(S_8AccNO=$B59,IF(S_8FieldRank<=S_8Choice,S_8Amount,0),0)) -> 11680 | R59: =SUM(IF(S_9AccNO=$B59,IF(S_9FieldRank<=S_9Choice,S_9Amount,0),0)) -> 750 | S59: =SUM(IF(S_10AccNO=$B59,IF(S_10FieldRank<=S_10Choice,S_10Amount,0),0)) -> 1100 | T59: =SUM(IF(S_12AccNO=$B59,IF(S_12FieldRank<=S_12Choice,S_12Amount,0),0)) -> 0
B60: 585 | C60: Canada Pension Plan | D60: 3814 | E60: 3531 | F60: =SUM(IF(S1AccNO=B60,IF(S1FieldRank<=S1Choice,S1Amount,0),0)) -> 0 | G60: =SUM(IF(S_2AccNO=$B60,IF(S_2FieldRank<=S_2Choice,S_2Amount,0),0)) -> 0 | H60: =SUM(IF(S_3AccNO=$B60,IF(S_3FieldRank<=S_3Choice,S_3Amount,0),0)) -> 0 | I60: =SUM(IF(S_4AccNO=$B60,IF(S_4FieldRank<=S_4Choice,S_4Amount,0),0)) -> 0 | J60: =SUM(IF(S_5AccNO=$B60,IF(S_5FieldRank<=S_5Choice,S_5Amount,0),0)) -> 0 | K60: =SUM(IF(S_11AccNO=$B60,IF(S_11FieldRank<=S_11Choice,S_11Amount,0),0)) -> 0 | L60: =SUM(IF(S_13AccNO=$B60,IF(S_13FieldRank<=S_13Choice,S_13Amount,0),0)) -> 0 | M60: =SUM(IF(S_14AccNO=$B60,IF(S_14FieldRank<=S_14Choice,S_14Amount,0),0)) -> 0 | N60: Canada Pension Plan | O60: =SUM(IF(S_6AccNO=$B60,IF(S_6FieldRank<=S_6Choice,S_6Amount,0),0)) -> 0 | P60: =SUM(IF(S_7AccNO=$B60,IF(S_7FieldRank<=S_7Choice,S_7Amount,0),0)) -> 0 | Q60: =SUM(IF(S_8AccNO=$B60,IF(S_8FieldRank<=S_8Choice,S_8Amount,0),0)) -> 0 | R60: =SUM(IF(S_9AccNO=$B60,IF(S_9FieldRank<=S_9Choice,S_9Amount,0),0)) -> 3531 | S60: =SUM(IF(S_10AccNO=$B60,IF(S_10FieldRank<=S_10Choice,S_10Amount,0),0)) -> 0 | T60: =SUM(IF(S_12AccNO=$B60,IF(S_12FieldRank<=S_12Choice,S_12Amount,0),0)) -> 0
B61: 586 | C61: Employment Insurance | D61: 31622 | E61: 29525 | F61: =SUM(IF(S1AccNO=B61,IF(S1FieldRank<=S1Choice,S1Amount,0),0)) -> 0 | G61: =SUM(IF(S_2AccNO=$B61,IF(S_2FieldRank<=S_2Choice,S_2Amount,0),0)) -> 0 | H61: =SUM(IF(S_3AccNO=$B61,IF(S_3FieldRank<=S_3Choice,S_3Amount,0),0)) -> 0 | I61: =SUM(IF(S_4AccNO=$B61,IF(S_4FieldRank<=S_4Choice,S_4Amount,0),0)) -> 0 | J61: =SUM(IF(S_5AccNO=$B61,IF(S_5FieldRank<=S_5Choice,S_5Amount,0),0)) -> 0 | K61: =SUM(IF(S_11AccNO=$B61,IF(S_11FieldRank<=S_11Choice,S_11Amount,0),0)) -> 0 | L61: =SUM(IF(S_13AccNO=$B61,IF(S_13FieldRank<=S_13Choice,S_13Amount,0),0)) -> 0 | M61: =SUM(IF(S_14AccNO=$B61,IF(S_14FieldRank<=S_14Choice,S_14Amount,0),0)) -> 0 | N61: Employment Insurance | O61: =SUM(IF(S_6AccNO=$B61,IF(S_6FieldRank<=S_6Choice,S_6Amount,0),0)) -> 0 | P61: =SUM(IF(S_7AccNO=$B61,IF(S_7FieldRank<=S_7Choice,S_7Amount,0),0)) -> 0 | Q61: =SUM(IF(S_8AccNO=$B61,IF(S_8FieldRank<=S_8Choice,S_8Amount,0),0)) -> 0 | R61: =SUM(IF(S_9AccNO=$B61,IF(S_9FieldRank<=S_9Choice,S_9Amount,0),0)) -> 29525 | S61: =SUM(IF(S_10AccNO=$B61,IF(S_10FieldRank<=S_10Choice,S_10Amount,0),0)) -> 0 | T61: =SUM(IF(S_12AccNO=$B61,IF(S_12FieldRank<=S_12Choice,S_12Amount,0),0)) -> 0
B62: 587 | C62: Ministry Expense | D62: 189240 | E62: 145535 | F62: =SUM(IF(S1AccNO=B62,IF(S1FieldRank<=S1Choice,S1Amount,0),0)) -> 120985 | G62: =SUM(IF(S_2AccNO=$B62,IF(S_2FieldRank<=S_2Choice,S_2Amount,0),0)) -> 0 | H62: =SUM(IF(S_3AccNO=$B62,IF(S_3FieldRank<=S_3Choice,S_3Amount,0),0)) -> 500 | I62: =SUM(IF(S_4AccNO=$B62,IF(S_4FieldRank<=S_4Choice,S_4Amount,0),0)) -> 4550 | J62: =SUM(IF(S_5AccNO=$B62,IF(S_5FieldRank<=S_5Choice,S_5Amount,0),0)) -> 0 | K62: =SUM(IF(S_11AccNO=$B62,IF(S_11FieldRank<=S_11Choice,S_11Amount,0),0)) -> 0 | L62: =SUM(IF(S_13AccNO=$B62,IF(S_13FieldRank<=S_13Choice,S_13Amount,0),0)) -> 0 | M62: =SUM(IF(S_14AccNO=$B62,IF(S_14FieldRank<=S_14Choice,S_14Amount,0),0)) -> 0 | N62: Ministry Expense | O62: =SUM(IF(S_6AccNO=$B62,IF(S_6FieldRank<=S_6Choice,S_6Amount,0),0)) -> 0 | P62: =SUM(IF(S_7AccNO=$B62,IF(S_7FieldRank<=S_7Choice,S_7Amount,0),0)) -> 0 | Q62: =SUM(IF(S_8AccNO=$B62,IF(S_8FieldRank<=S_8Choice,S_8Amount,0),0)) -> 0 | R62: =SUM(IF(S_9AccNO=$B62,IF(S_9FieldRank<=S_9Choice,S_9Amount,0),0)) -> 19500 | S62: =SUM(IF(S_10AccNO=$B62,IF(S_10FieldRank<=S_10Choice,S_10Amount,0),0)) -> 0 | T62: =SUM(IF(S_12AccNO=$B62,IF(S_12FieldRank<=S_12Choice,S_12Amount,0),0)) -> 0
B63: 591 | C63: Salary Expense | D63: 1377515.5 | E63: 1194600.5 | F63: =SUM(IF(S1AccNO=B63,IF(S1FieldRank<=S1Choice,S1Amount,0),0)) -> 877088.5 | G63: =SUM(IF(S_2AccNO=$B63,IF(S_2FieldRank<=S_2Choice,S_2Amount,0),0)) -> 0 | H63: =SUM(IF(S_3AccNO=$B63,IF(S_3FieldRank<=S_3Choice,S_3Amount,0),0)) -> 59800 | I63: =SUM(IF(S_4AccNO=$B63,IF(S_4FieldRank<=S_4Choice,S_4Amount,0),0)) -> 86495 | J63: =SUM(IF(S_5AccNO=$B63,IF(S_5FieldRank<=S_5Choice,S_5Amount,0),0)) -> 0 | K63: =SUM(IF(S_11AccNO=$B63,IF(S_11FieldRank<=S_11Choice,S_11Amount,0),0)) -> 15000 | L63: =SUM(IF(S_13AccNO=$B63,IF(S_13FieldRank<=S_13Choice,S_13Amount,0),0)) -> 0 | M63: =SUM(IF(S_14AccNO=$B63,IF(S_14FieldRank<=S_14Choice,S_14Amount,0),0)) -> 38192 | N63: Salary Expense | O63: =SUM(IF(S_6AccNO=$B63,IF(S_6FieldRank<=S_6Choice,S_6Amount,0),0)) -> 25078.5 | P63: =SUM(IF(S_7AccNO=$B63,IF(S_7FieldRank<=S_7Choice,S_7Amount,0),0)) -> 0 | Q63: =SUM(IF(S_8AccNO=$B63,IF(S_8FieldRank<=S_8Choice,S_8Amount,0),0)) -> 29898 | R63: =SUM(IF(S_9AccNO=$B63,IF(S_9FieldRank<=S_9Choice,S_9Amount,0),0)) -> 63048.5 | S63: =SUM(IF(S_10AccNO=$B63,IF(S_10FieldRank<=S_10Choice,S_10Amount,0),0)) -> 0 | T63: =SUM(IF(S_12AccNO=$B63,IF(S_12FieldRank<=S_12Choice,S_12Amount,0),0)) -> 0
B64: 592 | C64: Executive Salaries | D64: 90290 | E64: 97548 | F64: =SUM(IF(S1AccNO=B64,IF(S1FieldRank<=S1Choice,S1Amount,0),0)) -> 12000 | G64: =SUM(IF(S_2AccNO=$B64,IF(S_2FieldRank<=S_2Choice,S_2Amount,0),0)) -> 0 | H64: =SUM(IF(S_3AccNO=$B64,IF(S_3FieldRank<=S_3Choice,S_3Amount,0),0)) -> 0 | I64: =SUM(IF(S_4AccNO=$B64,IF(S_4FieldRank<=S_4Choice,S_4Amount,0),0)) -> 0 | J64: =SUM(IF(S_5AccNO=$B64,IF(S_5FieldRank<=S_5Choice,S_5Amount,0),0)) -> 0 | K64: =SUM(IF(S_11AccNO=$B64,IF(S_11FieldRank<=S_11Choice,S_11Amount,0),0)) -> 0 | L64: =SUM(IF(S_13AccNO=$B64,IF(S_13FieldRank<=S_13Choice,S_13Amount,0),0)) -> 0 | M64: =SUM(IF(S_14AccNO=$B64,IF(S_14FieldRank<=S_14Choice,S_14Amount,0),0)) -> 0 | N64: Executive Salaries | O64: =SUM(IF(S_6AccNO=$B64,IF(S_6FieldRank<=S_6Choice,S_6Amount,0),0)) -> 0 | P64: =SUM(IF(S_7AccNO=$B64,IF(S_7FieldRank<=S_7Choice,S_7Amount,0),0)) -> 0 | Q64: =SUM(IF(S_8AccNO=$B64,IF(S_8FieldRank<=S_8Choice,S_8Amount,0),0)) -> 0 | R64: =SUM(IF(S_9AccNO=$B64,IF(S_9FieldRank<=S_9Choice,S_9Amount,0),0)) -> 85548 | S64: =SUM(IF(S_10AccNO=$B64,IF(S_10FieldRank<=S_10Choice,S_10Amount,0),0)) -> 0 | T64: =SUM(IF(S_12AccNO=$B64,IF(S_12FieldRank<=S_12Choice,S_12Amount,0),0)) -> 0
B65: 593 | C65: Retirement Allowance | D65: 8027.5 | E65: 180670 | F65: =SUM(IF(S1AccNO=B65,IF(S1FieldRank<=S1Choice,S1Amount,0),0)) -> 104115 | G65: =SUM(IF(S_2AccNO=$B65,IF(S_2FieldRank<=S_2Choice,S_2Amount,0),0)) -> 0 | H65: =SUM(IF(S_3AccNO=$B65,IF(S_3FieldRank<=S_3Choice,S_3Amount,0),0)) -> 40280 | I65: =SUM(IF(S_4AccNO=$B65,IF(S_4FieldRank<=S_4Choice,S_4Amount,0),0)) -> 0 | J65: =SUM(IF(S_5AccNO=$B65,IF(S_5FieldRank<=S_5Choice,S_5Amount,0),0)) -> 0 | K65: =SUM(IF(S_11AccNO=$B65,IF(S_11FieldRank<=S_11Choice,S_11Amount,0),0)) -> 0 | L65: =SUM(IF(S_13AccNO=$B65,IF(S_13FieldRank<=S_13Choice,S_13Amount,0),0)) -> 0 | M65: =SUM(IF(S_14AccNO=$B65,IF(S_14FieldRank<=S_14Choice,S_14Amount,0),0)) -> 0 | N65: Retirement Allowance | O65: =SUM(IF(S_6AccNO=$B65,IF(S_6FieldRank<=S_6Choice,S_6Amount,0),0)) -> 36275 | P65: =SUM(IF(S_7AccNO=$B65,IF(S_7FieldRank<=S_7Choice,S_7Amount,0),0)) -> 0 | Q65: =SUM(IF(S_8AccNO=$B65,IF(S_8FieldRank<=S_8Choice,S_8Amount,0),0)) -> 0 | R65: =SUM(IF(S_9AccNO=$B65,IF(S_9FieldRank<=S_9Choice,S_9Amount,0),0)) -> 0 | S65: =SUM(IF(S_10AccNO=$B65,IF(S_10FieldRank<=S_10Choice,S_10Amount,0),0)) -> 0 | T65: =SUM(IF(S_12AccNO=$B65,IF(S_12FieldRank<=S_12Choice,S_12Amount,0),0)) -> 0

Sheet S1
B1: Native Ministries | C1: 50 | D1: Choose Rank Number --------> | G1: 10 | I1: Amount of 23/24 budget spent by Oct 31 | J1: Total From Last 12 Months - Nov22-Oct23 | K1: Last Budget
D2: Total Income | E2: =SUM(IF(S1FieldRank<=S1Choice,IF(S1AccNO<=LastIncome,S1Amount,0),0)) -> 1169990.5 | K2: 23/24
D3: Total Expense | E3: =SUM(IF(S1FieldRank<=S1Choice,IF(S1AccNO>LastIncome,S1Amount,0),0)) -> 1162738.5
D4: Difference | E4: =E2-E3 -> 7252
A5: Line | B5: Account Description | C5: Acc_NO | D5: Field Detail | E5: Amount
B6: =IF(C6<1," ",VLOOKUP(C6,MainAccountNO:MainAccounts,2,FALSE)) -> 
A7: 1 | D7: Supervision and Misc.
A8: 2 | B8: =IF(C8<1," ",VLOOKUP(C8,MainAccountNO:MainAccounts,2,FALSE)) -> Staff Training | C8: 537 | D8: staff training - resources (27 @ $20) | E8: 540 | H8: =IF(G8<=$G$1,"","OUT") ->  | K8: 435
A9: 3 | B9: =IF(C9<1," ",VLOOKUP(C9,MainAccountNO:MainAccounts,2,FALSE)) -> Commercial Travel | C9: 551 | D9: supervision visits - 2 flights @ $650 | E9: 1300 | K9: 1000
A10: 4 | B10: =IF(C10<1," ",VLOOKUP(C10,MainAccountNO:MainAccounts,2,FALSE)) -> Meal & Entertainment | C10: 553 | D10: staff visits | E10: 600 | J10: 583 | K10: 250
A11: 5 | B11: =IF(C11<1," ",VLOOKUP(C11,MainAccountNO:MainAccounts,2,FALSE)) -> Motel/Hotel | C11: 546 | D11: staff visits - 4 nights x $125 | E11: 500 | K11: 500
A12: 6 | B12: =IF(C12<1," ",VLOOKUP(C12,MainAccountNO:MainAccounts,2,FALSE)) -> Gas & Oil Auto | C12: 549 | D12: BC 2500km, YT 4500km, SK 1500km, MB 3000km; (500km/tank, $100/tank) | E12: 2500 | J12: 1013 | K12: 2500
A13: 7 | B13: =IF(C13<1," ",VLOOKUP(C13,MainAccountNO:MainAccounts,2,FALSE)) -> Auto Reimbursement | C13: 563 | D13: car rental - supervision | E13: 350 | K13: 350
A14: 8 | B14: =IF(C14<1," ",VLOOKUP(C14,MainAccountNO:MainAccounts,2,FALSE)) -> Royalties/Fees | C14: 530 | D14: background checks - teams to Canada | E14: 50 | K14: 150
A15: 9 | B15: =IF(C15<1," ",VLOOKUP(C15,MainAccountNO:MainAccounts,2,FALSE)) -> Special Projects | C15: 580 | D15: native church development (BC, AB, SK, MB, YT) | E15: 1500 | H15: =IF(G15<=$G$1,"","OUT") ->  | K15: 1500
A16: 10
A17: 11 | D17: Native Youth Conference (950)
A18: 12 | B18: =IF(C18<1," ",VLOOKUP(C18,MainAccountNO:MainAccounts,2,FALSE)) -> Project Income - CND Ind | C18: 440 | D18: CAN individuals | E18: 2000 | H18: =IF(G18<=$G$1,"","OUT") ->  | I18: 2058 | J18: 2058 | K18: 1500
A19: 13 | B19: =IF(C19<1," ",VLOOKUP(C19,MainAccountNO:MainAccounts,2,FALSE)) -> Project Income - CDN Churches | C19: 441 | D19: CAN Churches | E19: 3500 | I19: 3500 | J19: 3500 | K19: 2500
A20: 14 | B20: =IF(C20<1," ",VLOOKUP(C20,MainAccountNO:MainAccounts,2,FALSE)) -> Operations Assessment | C20: 484 | D20: assessment on donations | E20: -550 | K20: -400
A21: 15 | B21: =IF(C21<1," ",VLOOKUP(C21,MainAccountNO:MainAccounts,2,FALSE)) -> Special Projects | C21: 580 | D21: Native Youth Conference | E21: 4200 | I21: 560 | J21: 560 | K21: 3600
A22: 16 | B22: =IF(C22<1," ",VLOOKUP(C22,MainAccountNO:MainAccounts,2,FALSE)) -> Bldg, Equip & Liab. Ins. | C22: 519 | D22: Insurance for special events | E22: 750
A23: 17
A24: 18 | D24: WayMaker Conference (954)
A25: 19 | B25: =IF(C25<1," ",VLOOKUP(C25,MainAccountNO:MainAccounts,2,FALSE)) -> Gifts in hand | C25: 400 | D25: apx balance on hand @ 03/31/2024 | E25: 9550
A26: 20 | B26: =IF(C26<1," ",VLOOKUP(C26,MainAccountNO:MainAccounts,2,FALSE)) -> Project Income - CND Ind | C26: 440 | D26: CAN Individuals | E26: 2500 | K26: 600
A27: 21 | B27: =IF(C27<1," ",VLOOKUP(C27,MainAccountNO:MainAccounts,2,FALSE)) -> Project Income - CDN Churches | C27: 441 | D27: CAN churches | E27: 1500 | J27: 1409 | K27: 200
A28: 22 | B28: =IF(C28<1," ",VLOOKUP(C28,MainAccountNO:MainAccounts,2,FALSE)) -> Operations Assessment | C28: 484 | D28: Assessment on donations | E28: =-0.1*(E26+E27) -> -400 | K28: -80
A29: 23 | B29: =IF(C29<1,,VLOOKUP(C29,MainAccountNO:MainAccounts,2,FALSE)) -> Other income | C29: 455 | D29: Registrations | E29: 30625 | I29: 21510 | J29: 29870 | K29: 13950
A30: 24 | B30: =IF(C30<1,,VLOOKUP(C30,MainAccountNO:MainAccounts,2,FALSE)) -> Other income | C30: 455 | D30: Merchandise sales | E30: 500 | K30: 5800
A31: 25 | B31: =IF(C31<1,,VLOOKUP(C31,MainAccountNO:MainAccounts,2,FALSE)) -> Special Projects | C31: 580 | D31: Facility rental (Meals and Accomodations) | E31: 27125 | I31: 14567 | J31: 22202 | K31: 16650
A32: 26 | B32: =IF(C32<1,,VLOOKUP(C32,MainAccountNO:MainAccounts,2,FALSE)) -> Special Projects | C32: 580 | D32: Facility rental(Speaker meals/accomodations) | E32: 700 | K32: 275
A33: 27 | B33: =IF(C33<1,,VLOOKUP(C33,MainAccountNO:MainAccounts,2,FALSE)) -> Speaker Honorarium | C33: 559 | D33: Speaker/Entertainment (honoraiums) | E33: 3000 | I33: 1475 | J33: 1475 | K33: 2000
A34: 28 | B34: =IF(C34<1,,VLOOKUP(C34,MainAccountNO:MainAccounts,2,FALSE)) -> Speaker Honorarium | C34: 559 | D34: Honorarium/elder gift | E34: 400 | K34: 200
A35: 29 | B35: =IF(C35<1,,VLOOKUP(C35,MainAccountNO:MainAccounts,2,FALSE)) -> General Supply & Service | C35: 545 | D35: Activities | E35: 550 | K35: 675
A36: 30 | B36: =IF(C36<1,,VLOOKUP(C36,MainAccountNO:MainAccounts,2,FALSE)) -> General Supply & Service | C36: 545 | D36: Game supplies | E36: 300 | K36: 150
A37: 31 | B37: =IF(C37<1,,VLOOKUP(C37,MainAccountNO:MainAccounts,2,FALSE)) -> Meal & Entertainment | C37: 553 | D37: Friday supper | E37: 1000
A38: 32 | B38: =IF(C38<1,,VLOOKUP(C38,MainAccountNO:MainAccounts,2,FALSE)) -> General Supply & Service | C38: 545 | D38: Merchandise, Prizes and MISC | E38: 1300 | K38: 300
A39: 33 | B39: =IF(C39<1,,VLOOKUP(C39,MainAccountNO:MainAccounts,2,FALSE)) -> Bldg, Equip & Liab. Ins. | C39: 519 | D39: Insurance for special events | E39: 750 | K39: 150
A40: 34 | H40: =IF(G40<=$G$1,"","OUT") -> 
A41: 35 | D41: Community Research/Relational Development (942)
A42: 36 | B42: =IF(C42<1," ",VLOOKUP(C42,MainAccountNO:MainAccounts,2,FALSE)) -> Gas & Oil Auto | C42: 549 | D42: apx. 1500 km | E42: 225 | K42: 225
A43: 37 | B43: =IF(C43<1," ",VLOOKUP(C43,MainAccountNO:MainAccounts,2,FALSE)) -> Motel/Hotel | C43: 546 | D43: 2 nights x $125 | E43: 250 | K43: 250
A44: 38 | B44: =IF(C44<1," ",VLOOKUP(C44,MainAccountNO:MainAccounts,2,FALSE)) -> Meal & Entertainment | C44: 553 | D44: 4 meals ($20/meal) relationship development x 2 | E44: 160 | K44: 160
A45: 39 | B45: =IF(C45<1," ",VLOOKUP(C45,MainAccountNO:MainAccounts,2,FALSE)) -> Special Projects | C45: 580 | D45: value added for believers/community (training, events, scholarships, etc.) | E45: 300 | K45: 300
A46: 40 | B46: =IF(C46<1," ",VLOOKUP(C46,MainAccountNO:MainAccounts,2,FALSE)) -> Special Projects | C46: 580 | D46: community resourcing | E46: 200 | K46: 200
A47: 41
A48: 42 | D48: Native Ministry Staffing
A49: 43 | B49: =IF(C49<1," ",VLOOKUP(C49,MainAccountNO:MainAccounts,2,FALSE)) -> US Gifts | C49: 430 | D49: Beutler US support | E49: 0 | H49: =IF(G49<=$G$1,"","OUT") ->  | K49: 1050
A50: 44 | B50: =IF(C50<1," ",VLOOKUP(C50,MainAccountNO:MainAccounts,2,FALSE)) -> Canadian Gifts-Staff | C50: 410 | D50: Beutler CDN support | E50: 107100 | K50: 86075
A51: 45 | B51: =IF(C51<1," ",VLOOKUP(C51,MainAccountNO:MainAccounts,2,FALSE)) -> Ministry Expense | C51: 587 | D51: Beutler MER | E51: 11250 | K51: 10000
A52: 46 | B52: =IF(C52<1," ",VLOOKUP(C52,MainAccountNO:MainAccounts,2,FALSE)) -> Salary Expense | C52: 591 | D52: Beutler salary | E52: =0.9*(E49+E50)-E51 -> 85140 | K52: 68412.5
A53: 47 | B53: =IF(C53<1," ",VLOOKUP(C53,MainAccountNO:MainAccounts,2,FALSE)) -> US Gifts | C53: 430 | D53: Browning, Dick US Support | E53: 38150 | K53: 34180
A54: 48 | B54: =IF(C54<1," ",VLOOKUP(C54,MainAccountNO:MainAccounts,2,FALSE)) -> Canadian Gifts-Staff | C54: 410 | D54: Browning, Dick CDN Support | E54: 20850 | K54: 21850
A55: 49 | B55: =IF(C55<1," ",VLOOKUP(C55,MainAccountNO:MainAccounts,2,FALSE)) -> Ministry Expense | C55: 587 | D55: Browning, Dick MER | E55: 0 | K55: 0
A56: 50 | B56: =IF(C56<1," ",VLOOKUP(C56,MainAccountNO:MainAccounts,2,FALSE)) -> Salary Expense | C56: 591 | D56: Browning, Dick Salary | E56: =0.9*(E53+E54)-E55 -> 53100 | K56: 50427
A57: 51 | B57: =IF(C57<1," ",VLOOKUP(C57,MainAccountNO:MainAccounts,2,FALSE)) -> US Gifts | C57: 430 | D57: Chinn US Support | E57: 83250 | K57: 70000
A58: 52 | B58: =IF(C58<1," ",VLOOKUP(C58,MainAccountNO:MainAccounts,2,FALSE)) -> Canadian Gifts-Staff | C58: 410 | D58: Chinn CDN Support | E58: 1950 | K58: 0
A59: 53 | B59: =IF(C59<1," ",VLOOKUP(C59,MainAccountNO:MainAccounts,2,FALSE)) -> Ministry Expense | C59: 587 | D59: Chinn MER | E59: 11000 | K59: 7200
A60: 54 | B60: =IF(C60<1," ",VLOOKUP(C60,MainAccountNO:MainAccounts,2,FALSE)) -> Salary Expense | C60: 591 | D60: Chinn Salary | E60: 48375 | K60: 38450
A61: 55 | B61: =IF(C61<1," ",VLOOKUP(C61,MainAccountNO:MainAccounts,2,FALSE)) -> US Gifts | C61: 430 | D61: Colwell US support | E61: 134625 | K61: 107240
A62: 56 | B62: =IF(C62<1," ",VLOOKUP(C62,MainAccountNO:MainAccounts,2,FALSE)) -> Canadian Gifts-Staff | C62: 410 | D62: Colwell CDN suport | E62: 17800 | K62: 22415
A63: 57 | B63: =IF(C63<1," ",VLOOKUP(C63,MainAccountNO:MainAccounts,2,FALSE)) -> Ministry Expense | C63: 587 | D63: Colwell MER | E63: 7000 | K63: 7200
A64: 58 | B64: =IF(C64<1," ",VLOOKUP(C64,MainAccountNO:MainAccounts,2,FALSE)) -> Salary Expense | C64: 591 | D64: Colwell salary | E64: =0.9*(E61+E62)-E63 -> 130182.5 | K64: 109489.5
A65: 59 | B65: =IF(C65<1," ",VLOOKUP(C65,MainAccountNO:MainAccounts,2,FALSE)) -> US Gifts | C65: 430 | D65: Cross US support | E65: 15500 | K65: 8630
A66: 60 | B66: =IF(C66<1,,VLOOKUP(C66,MainAccountNO:MainAccounts,2,FALSE)) -> Canadian Gifts-Staff | C66: 410 | D66: Cross CDN Support | E66: 22275 | K66: 30065
A67: 61 | B67: =IF(C67<1,,VLOOKUP(C67,MainAccountNO:MainAccounts,2,FALSE)) -> Ministry Expense | C67: 587 | D67: Cross MER | E67: 550 | K67: 6800
A68: 62 | B68: =IF(C68<1,,VLOOKUP(C68,MainAccountNO:MainAccounts,2,FALSE)) -> Salary Expense | C68: 591 | D68: Cross Salary | E68: =0.9*(E66+E65)-E67 -> 33447.5 | K68: 28025.5
A69: 63 | B69: =IF(C69<1," ",VLOOKUP(C69,MainAccountNO:MainAccounts,2,FALSE)) -> US Gifts | C69: 430 | D69: Kasten US Support | E69: 42400 | K69: 38340
A70: 64 | B70: =IF(C70<1," ",VLOOKUP(C70,MainAccountNO:MainAccounts,2,FALSE)) -> Canadian Gifts-Staff | C70: 410 | D70: Kasten CDN Support | E70: 500 | K70: 0
A71: 65 | B71: =IF(C71<1," ",VLOOKUP(C71,MainAccountNO:MainAccounts,2,FALSE)) -> Ministry Expense | C71: 587 | D71: Kasten MER | E71: 3500 | K71: 4500
A72: 66 | B72: =IF(C72<1," ",VLOOKUP(C72,MainAccountNO:MainAccounts,2,FALSE)) -> Salary Expense | C72: 591 | D72: Kasten Salary | E72: =0.95*(E69+E70)-E71 -> 37255 | K72: 31923
A73: 67 | B73: =IF(C73<1," ",VLOOKUP(C73,MainAccountNO:MainAccounts,2,FALSE)) -> Canadian Gifts-Staff | C73: 410 | D73: Mayerle CDN Support | E73: 55450 | K73: 53465
A74: 68 | B74: =IF(C74<1," ",VLOOKUP(C74,MainAccountNO:MainAccounts,2,FALSE)) -> US Gifts | C74: 430 | D74: Mayerle US Support | E74: 24750 | K74: 19820
A75: 69 | B75: =IF(C75<1," ",VLOOKUP(C75,MainAccountNO:MainAccounts,2,FALSE)) -> Ministry Expense | C75: 587 | D75: Mayerle MER | E75: 33450 | K75: 23600
A76: 70 | B76: =IF(C76<1," ",VLOOKUP(C76,MainAccountNO:MainAccounts,2,FALSE)) -> Salary Expense | C76: 591 | D76: Mayerle Salary | E76: =0.9*(E73+E74)-E75 -> 38730 | K76: 42356.5
A77: 71 | B77: =IF(C77<1," ",VLOOKUP(C77,MainAccountNO:MainAccounts,2,FALSE)) -> US Gifts | C77: 430 | D77: Olney US Support | E77: 0 | H77: =IF(G77<=$G$1,"","OUT") ->  | K77: 0
A78: 72 | B78: =IF(C78<1," ",VLOOKUP(C78,MainAccountNO:MainAccounts,2,FALSE)) -> Canadian Gifts-Staff | C78: 410 | D78: Olney CDN Support | E78: 82450 | K78: 81400
A79: 73 | B79: =IF(C79<1," ",VLOOKUP(C79,MainAccountNO:MainAccounts,2,FALSE)) -> Ministry Expense | C79: 587 | D79: Olney MER | E79: 2700 | K79: 3800
A80: 74 | B80: =IF(C80<1," ",VLOOKUP(C80,MainAccountNO:MainAccounts,2,FALSE)) -> Salary Expense | C80: 591 | D80: Olney Salary | E80: =0.9*(E77+E78)-E79 -> 71505 | K80: 69460
A81: 75 | B81: =IF(C81<1," ",VLOOKUP(C81,MainAccountNO:MainAccounts,2,FALSE)) -> US Gifts | C81: 430 | D81: Plett US Support | E81: 175 | K81: 255
A82: 76 | B82: =IF(C82<1," ",VLOOKUP(C82,MainAccountNO:MainAccounts,2,FALSE)) -> Canadian Gifts-Staff | C82: 410 | D82: Plett CDN Support | E82: 64225 | K82: 55825
A83: 77 | B83: =IF(C83<1," ",VLOOKUP(C83,MainAccountNO:MainAccounts,2,FALSE)) -> Ministry Expense | C83: 587 | D83: Plett MER | E83: 8300 | K83: 8300
A84: 78 | B84: =IF(C84<1," ",VLOOKUP(C84,MainAccountNO:MainAccounts,2,FALSE)) -> Salary Expense | C84: 591 | D84: Plett Salary | E84: =0.9*(E81+E82)-E83 -> 49660 | K84: 42172
A85: 79 | B85: =IF(C85<1," ",VLOOKUP(C85,MainAccountNO:MainAccounts,2,FALSE)) -> US Gifts | C85: 430 | D85: Sayer US support | E85: 0 | K85: 7215
A86: 80 | B86: =IF(C86<1," ",VLOOKUP(C86,MainAccountNO:MainAccounts,2,FALSE)) -> Canadian Gifts-Staff | C86: 410 | D86: Sayer CDN support | E86: 88825 | K86: 82935
A87: 81 | B87: =IF(C87<1," ",VLOOKUP(C87,MainAccountNO:MainAccounts,2,FALSE)) -> Ministry Expense | C87: 587 | D87: Sayer MER | E87: 11800 | K87: 16480
A88: 82 | B88: =IF(C88<1," ",VLOOKUP(C88,MainAccountNO:MainAccounts,2,FALSE)) -> Salary Expense | C88: 591 | D88: Sayer Salary | E88: =0.9*(E85+E86)-E87 -> 68142.5 | K88: 64655
A89: 83 | B89: =IF(C89<1," ",VLOOKUP(C89,MainAccountNO:MainAccounts,2,FALSE)) -> US Gifts | C89: 430 | D89: Schulz US Support | E89: 11200 | K89: 10690
A90: 84 | B90: =IF(C90<1," ",VLOOKUP(C90,MainAccountNO:MainAccounts,2,FALSE)) -> Canadian Gifts-Staff | C90: 410 | D90: Schulz CDN Support | E90: 60165 | K90: 55450
A91: 85 | B91: =IF(C91<1," ",VLOOKUP(C91,MainAccountNO:MainAccounts,2,FALSE)) -> Executive Salaries | C91: 592 | D91: Schulz - subsidy (12x$1000) | E91: 12000 | L91: From Restora Profits
A92: 86 | B92: =IF(C92<1," ",VLOOKUP(C92,MainAccountNO:MainAccounts,2,FALSE)) -> Ministry Expense | C92: 587 | D92: Schulz MER | E92: 12060 | K92: 9750
A93: 87 | B93: =IF(C93<1," ",VLOOKUP(C93,MainAccountNO:MainAccounts,2,FALSE)) -> Salary Expense | C93: 591 | D93: Schulz Salary | E93: =0.9*(E89+E90)-E92 -> 52168.5 | K93: 49776
A94: 88 | B94: =IF(C94<1," ",VLOOKUP(C94,MainAccountNO:MainAccounts,2,FALSE)) -> US Gifts | C94: 430 | D94: Sebald US support | E94: 99485 | K94: 80035
A95: 89 | B95: =IF(C95<1," ",VLOOKUP(C95,MainAccountNO:MainAccounts,2,FALSE)) -> Canadian Gifts-Staff | C95: 410 | D95: Sebald CDN support | E95: 3265 | K95: 3380
A96: 90 | B96: =IF(C96<1," ",VLOOKUP(C96,MainAccountNO:MainAccounts,2,FALSE)) -> Ministry Expense | C96: 587 | D96: Sebald MER | E96: 9400 | K96: 22400
A97: 91 | B97: =IF(C97<1," ",VLOOKUP(C97,MainAccountNO:MainAccounts,2,FALSE)) -> Salary Expense | C97: 591 | D97: Sebald salary | E97: =0.9*(E94+E95)-E96 -> 83075 | K97: 52673.5
A98: 92 | B98: =IF(C98<1," ",VLOOKUP(C98,MainAccountNO:MainAccounts,2,FALSE)) -> US Gifts | C98: 430 | D98: Serger US Support | E98: 0 | K98: 0
A99: 93 | B99: =IF(C99<1," ",VLOOKUP(C99,MainAccountNO:MainAccounts,2,FALSE)) -> Canadian Gifts-Staff | C99: 410 | D99: Serger CDN Support | E99: 88060 | K99: 86170
A100: 94 | B100: =IF(C100<1," ",VLOOKUP(C100,MainAccountNO:MainAccounts,2,FALSE)) -> Ministry Expense | C100: 587 | D100: Serger MER | E100: 9475 | K100: 14400
A101: 95 | B101: =IF(C101<1," ",VLOOKUP(C101,MainAccountNO:MainAccounts,2,FALSE)) -> Salary Expense | C101: 591 | D101: Serger Salary | E101: =0.9*(E98+E99)-E100 -> 69779 | K101: 63153
A102: 96 | B102: =IF(C102<1," ",VLOOKUP(C102,MainAccountNO:MainAccounts,2,FALSE)) -> US Gifts | C102: 430 | D102: Straley US Support | E102: 35350 | H102: =IF(G102<=$G$1,"","OUT") ->  | K102: 37800
A103: 97 | B103: =IF(C103<1," ",VLOOKUP(C103,MainAccountNO:MainAccounts,2,FALSE)) -> Canadian Gifts-Staff | C103: 410 | D103: Straley CDN Support | E103: 28015 | K103: 26675
A104: 98 | B104: =IF(C104<1," ",VLOOKUP(C104,MainAccountNO:MainAccounts,2,FALSE)) -> Ministry Expense | C104: 587 | D104: Straley MER | E104: 500 | K104: 6000
A105: 99 | B105: =IF(C105<1," ",VLOOKUP(C105,MainAccountNO:MainAccounts,2,FALSE)) -> Salary Expense | C105: 591 | D105: Straley Salary | E105: =0.9*(E102+E103)-E104 -> 56528.5 | K105: 52027.5
A106: 100 | B106: =IF(C106<1," ",VLOOKUP(C106,MainAccountNO:MainAccounts,2,FALSE)) -> Operations Assessment | C106: 484 | D106: operations assessment | E106: =-0.1*(E49+E50+E53+E54+E57+E58+E61+E62+E65+E66+E73+E74+E77+E78+E81+E82+E85+E86+E89+E90+E94+E95+E98+E99+E102+E103-2145) -> -108077 | K106: -121233.5
A107: 101
A108: 102 | D108: Retired Staff (5% assessment)
A109: 103 | B109: =IF(C109<1," ",VLOOKUP(C109,MainAccountNO:MainAccounts,2,FALSE)) -> Canadian Gifts-Staff | C109: 410 | D109: Hamilton, J CDN Support | E109: 16850
A110: 104 | B110: =IF(C110<1," ",VLOOKUP(C110,MainAccountNO:MainAccounts,2,FALSE)) -> US Gifts | C110: 430 | D110: Hamilton, J US Support | E110: 37325
A111: 105 | B111: =IF(C111<1," ",VLOOKUP(C111,MainAccountNO:MainAccounts,2,FALSE)) -> Retirement Allowance | C111: 593 | D111: Hamilton, J Salary | E111: 45360
A112: 106 | B112: =IF(C112<1,,VLOOKUP(C112,MainAccountNO:MainAccounts,2,FALSE)) -> Canadian Gifts-Staff | C112: 410 | D112: Kees CDN Support | E112: 3200 | H112: =IF(G112<=$G$1,"","OUT") ->  | K112: 100
A113: 107 | B113: =IF(C113<1,,VLOOKUP(C113,MainAccountNO:MainAccounts,2,FALSE)) -> US Gifts | C113: 430 | D113: Kees US Support | E113: 10900 | F113: =0.05*(E113+E112) -> 705 | H113: =IF(G113<=$G$1,"","OUT") ->  | K113: 8350
A114: 108 | B114: =IF(C114<1,,VLOOKUP(C114,MainAccountNO:MainAccounts,2,FALSE)) -> Retirement Allowance | C114: 593 | D114: Kees Salary | E114: =0.95*(E112+E113) -> 13395 | H114: =IF(G114<=$G$1,"","OUT") ->  | K114: 8027.5
A115: 109 | B115: =IF(C115<1,,VLOOKUP(C115,MainAccountNO:MainAccounts,2,FALSE)) -> Canadian Gifts-Staff | C115: 410 | D115: Kenyon CDN Support | E115: 18050
A116: 110 | B116: =IF(C116<1,,VLOOKUP(C116,MainAccountNO:MainAccounts,2,FALSE)) -> US Gifts | C116: 430 | D116: Kenyon US Support | E116: 22125
A117: 111 | B117: =IF(C117<1,,VLOOKUP(C117,MainAccountNO:MainAccounts,2,FALSE)) -> Retirement Allowance | C117: 593 | D117: Kenyon Salary | E117: 45360
A118: 112 | B118: =IF(C118<1,,VLOOKUP(C118,MainAccountNO:MainAccounts,2,FALSE)) -> Operations Assessment | C118: 484 | D118: operations assessment | E118: =-0.05*(E109+E110+E112+E113+E115+E116) -> -5422.5 | H118: =IF(G118<=$G$1,"","OUT") ->  | K118: -422.5

Sheet S2
B1: EnGage! | C1: 40 | D1: Choose Rank Number --------> | G1: 10
D2: Total Income | E2: =SUM(IF(S_2FieldRank<=S_2Choice,IF(S_2AccNO<=LastIncome,S_2Amount,0),0)) -> 12150
D3: Total Expense | E3: =SUM(IF(S_2FieldRank<=S_2Choice,IF(S_2AccNO>LastIncome,S_2Amount,0),0)) -> 11750
D4: Difference | E4: =E2-E3 -> 400
A5: Line | B5: Account Description | C5: Acc_NO | D5: Field Detail | E5: Amount
A7: 1 | B7: =IF(C7<1," ",VLOOKUP(C7,MainAccountNO:MainAccounts,2,FALSE)) -> Project Income - CDN Churches | C7: 441 | D7: 6 participants @ $1350 less scholarships | E7: 8100 | H7: =IF(G7<=$G$1,"","OUT") -> 
A8: 2 | B8: =IF(C8<1," ",VLOOKUP(C8,MainAccountNO:MainAccounts,2,FALSE)) -> Special Projects | C8: 580 | D8: mobilization scholarships | E8: 1500
A9: 3 | B9: =IF(C9<1," ",VLOOKUP(C9,MainAccountNO:MainAccounts,2,FALSE)) -> Operations Assessment | C9: 484 | D9: assessment on fees | E9: -810
A10: 4 | B10: =IF(C10<1," ",VLOOKUP(C10,MainAccountNO:MainAccounts,2,FALSE)) -> Project Income - CDN Churches | C10: 441 | D10: 4 participants ESL EnGage! @ $1350 | E10: 5400
A11: 5 | B11: =IF(C11<1," ",VLOOKUP(C11,MainAccountNO:MainAccounts,2,FALSE)) -> Operations Assessment | C11: 484 | D11: assessment on fees | E11: -540
A12: 6 | B12: =IF(C12<1," ",VLOOKUP(C12,MainAccountNO:MainAccounts,2,FALSE)) -> Bldg, Equip & Liab. Ins. | C12: 519 | D12: liability insurance | E12: 150
A13: 7
A14: 8 | D14: First Nations EnGage!
A15: 9 | B15: =IF(C15<1," ",VLOOKUP(C15,MainAccountNO:MainAccounts,2,FALSE)) -> Royalties/Fees | C15: 530 | D15: background checks | E15: 170
A16: 10 | B16: =IF(C16<1," ",VLOOKUP(C16,MainAccountNO:MainAccounts,2,FALSE)) -> Equip. Maint. | C16: 527 | D16: printing | E16: 50
A17: 11 | B17: =IF(C17<1," ",VLOOKUP(C17,MainAccountNO:MainAccounts,2,FALSE)) -> Staff Training | C17: 537 | D17: training materials and supplies | E17: 500
A18: 12 | B18: =IF(C18<1," ",VLOOKUP(C18,MainAccountNO:MainAccounts,2,FALSE)) -> General Supply & Service | C18: 545 | D18: ministry supplies | E18: 300
A19: 13 | B19: =IF(C19<1," ",VLOOKUP(C19,MainAccountNO:MainAccounts,2,FALSE)) -> Meal & Entertainment | C19: 553 | D19: food & living expenses | E19: 3400
A20: 14 | B20: =IF(C20<1," ",VLOOKUP(C20,MainAccountNO:MainAccounts,2,FALSE)) -> Gas & Oil Auto | C20: 549 | D20: travel re. supervision | E20: 750
A21: 15
A22: 16 | D22: ESL EnGage!
A23: 17 | B23: =IF(C23<1," ",VLOOKUP(C23,MainAccountNO:MainAccounts,2,FALSE)) -> Royalties/Fees | C23: 530 | D23: background checks | E23: 110
A24: 18 | B24: =IF(C24<1," ",VLOOKUP(C24,MainAccountNO:MainAccounts,2,FALSE)) -> Equip. Maint. | C24: 527 | D24: printing | E24: 20
A25: 19 | B25: =IF(C25<1," ",VLOOKUP(C25,MainAccountNO:MainAccounts,2,FALSE)) -> Staff Training | C25: 537 | D25: training materials and supplies | E25: 400
A26: 20 | B26: =IF(C26<1," ",VLOOKUP(C26,MainAccountNO:MainAccounts,2,FALSE)) -> General Supply & Service | C26: 545 | D26: ministry supplies | E26: 200
A27: 21 | B27: =IF(C27<1," ",VLOOKUP(C27,MainAccountNO:MainAccounts,2,FALSE)) -> Motel/Hotel | C27: 546 | D27: hotel re. supervision | E27: 250
A28: 22 | B28: =IF(C28<1," ",VLOOKUP(C28,MainAccountNO:MainAccounts,2,FALSE)) -> Meal & Entertainment | C28: 553 | D28: food & living expenses | E28: 2200
A29: 23 | B29: =IF(C29<1," ",VLOOKUP(C29,MainAccountNO:MainAccounts,2,FALSE)) -> Gas & Oil Auto | C29: 549 | D29: travel re. supervision | E29: 850
A30: 24 | B30: =IF(C30<1," ",VLOOKUP(C30,MainAccountNO:MainAccounts,2,FALSE)) -> Commercial Travel | C30: 551 | D30: travel re. orientation | E30: 600
A31: 25 | B31: =IF(C31<1," ",VLOOKUP(C31,MainAccountNO:MainAccounts,2,FALSE)) -> Auto Reimbursement | C31: 563 | D31: car rental re. supervision | E31: 300

Sheet S3
B1: Muslim Ministries | C1: 85 | D1: Choose Rank Number --------> | G1: 10 | I1: Amount of 23/24 budget spent by Oct 31 | J1: Total From Last 12 Months - Nov22-Oct23 | K1: Last Budget
D2: Total Income | E2: =SUM(IF(S_3FieldRank<=S_3Choice,IF(S_3AccNO<=LastIncome,S_3Amount,0),0)) -> 102560 | K2: 23/24
D3: Total Expense | E3: =SUM(IF(S_3FieldRank<=S_3Choice,IF(S_3AccNO>LastIncome,S_3Amount,0),0)) -> 102590
D4: Difference | E4: =E2-E3 -> -30
A5: Line | B5: Account Description | C5: Acc_NO | D5: Field Detail | E5: Amount
B6: =IF(C6<1," ",VLOOKUP(C6,MainAccountNO:MainAccounts,2,FALSE)) ->  | H6: =IF(G6<=$G$1,"","OUT") -> 
A7: 1 | B7: =IF(C7<1," ",VLOOKUP(C7,MainAccountNO:MainAccounts,2,FALSE)) -> Project Income - CDN Churches | C7: 441 | D7: donations | E7: 200 | K7: 200
A8: 2 | B8: =IF(C8<1," ",VLOOKUP(C8,MainAccountNO:MainAccounts,2,FALSE)) -> Operations Assessment | C8: 484 | D8: assessment on donations | E8: -20 | K8: -20
A9: 3 | B9: =IF(C9<1," ",VLOOKUP(C9,MainAccountNO:MainAccounts,2,FALSE)) -> Staff Training | C9: 537 | D9: staff training - resources (3 @ $20) | E9: 60 | K9: 75
A10: 5 | B10: =IF(C10<1," ",VLOOKUP(C10,MainAccountNO:MainAccounts,2,FALSE)) -> General Supply & Service | C10: 545 | D10: Scripture, DVDs, literature, etc. to give away | E10: 150 | K10: 150
A11: 6
A12: 7 | D12: Fundraising Project for Arabic Bibles
A13: 8 | B13: =IF(C13<1," ",VLOOKUP(C13,MainAccountNO:MainAccounts,2,FALSE)) -> Project Income - CND Ind | C13: 440 | D13: donations | E13: 1400 | K13: 1400
A14: 9 | B14: =IF(C14<1," ",VLOOKUP(C14,MainAccountNO:MainAccounts,2,FALSE)) -> Project Income - CDN Churches | C14: 441 | D14: donations | E14: 600 | K14: 600
A15: 10 | B15: =IF(C15<1," ",VLOOKUP(C15,MainAccountNO:MainAccounts,2,FALSE)) -> Operations Assessment | C15: 484 | D15: assessment on donations | E15: -200 | K15: -200
A16: 11 | B16: =IF(C16<1," ",VLOOKUP(C16,MainAccountNO:MainAccounts,2,FALSE)) -> Special Projects | C16: 580 | D16: Bibles | E16: 1800 | K16: 1800
A17: 12
A18: 13 | D18: MM Staffing
A19: 14 | B19: =IF(C19<1," ",VLOOKUP(C19,MainAccountNO:MainAccounts,2,FALSE)) -> US Gifts | C19: 430 | D19: Narooz US Support | E19: 450 | K19: 100
A20: 15 | B20: =IF(C20<1," ",VLOOKUP(C20,MainAccountNO:MainAccounts,2,FALSE)) -> Canadian Gifts-Staff | C20: 410 | D20: Narooz CDN Support | E20: 19800 | K20: 18825
A21: 16 | B21: =IF(C21<1," ",VLOOKUP(C21,MainAccountNO:MainAccounts,2,FALSE)) -> Ministry Expense | C21: 587 | D21: Narooz MER | E21: 0 | K21: 0
A22: 17 | B22: =IF(C22<1," ",VLOOKUP(C22,MainAccountNO:MainAccounts,2,FALSE)) -> Salary Expense | C22: 591 | D22: Narooz Salary | E22: =0.9*(E19+E20)-E21 -> 18225 | K22: 17032.5
A23: 18 | B23: =IF(C23<1," ",VLOOKUP(C23,MainAccountNO:MainAccounts,2,FALSE)) -> US Gifts | C23: 430 | D23: Wortham US Support | E23: 44610 | K23: 35025
A24: 19 | B24: =IF(C24<1," ",VLOOKUP(C24,MainAccountNO:MainAccounts,2,FALSE)) -> Canadian Gifts-Staff | C24: 410 | D24: Wortham CDN Support | E24: 2140 | K24: 1500
A25: 20 | B25: =IF(C25<1," ",VLOOKUP(C25,MainAccountNO:MainAccounts,2,FALSE)) -> Ministry Expense | C25: 587 | D25: Wortham MER | E25: 500 | K25: 1000
A26: 21 | B26: =IF(C26<1," ",VLOOKUP(C26,MainAccountNO:MainAccounts,2,FALSE)) -> Salary Expense | C26: 591 | D26: Wortham Salary | E26: =0.9*(E23+E24)-E25 -> 41575 | K26: 31872.5
A27: 22 | B27: =IF(C27<1," ",VLOOKUP(C27,MainAccountNO:MainAccounts,2,FALSE)) -> Operations Assessment | C27: 484 | D27: operations assessment | E27: =-0.1*(E19+E20+E23+E24) -> -6700 | K27: -10702
A28: 23 | B28: =IF(C28<1," ",VLOOKUP(C28,MainAccountNO:MainAccounts,2,FALSE)) -> 
A29: 24 | B29: =IF(C29<1," ",VLOOKUP(C29,MainAccountNO:MainAccounts,2,FALSE)) ->  | D29: Retired Staff (5% assessment)
A30: 25 | B30: =IF(C30<1," ",VLOOKUP(C30,MainAccountNO:MainAccounts,2,FALSE)) -> US Gifts | C30: 430 | D30: Nelson US Support | E30: 4500
A31: 26 | B31: =IF(C31<1," ",VLOOKUP(C31,MainAccountNO:MainAccounts,2,FALSE)) -> Canadian Gifts-Staff | C31: 410 | D31: Nelson CDN Support | E31: 37900
A32: 27 | B32: =IF(C32<1," ",VLOOKUP(C32,MainAccountNO:MainAccounts,2,FALSE)) -> Retirement Allowance | C32: 593 | D32: Nelson Salary | E32: =0.95*(E30+E31) -> 40280
A33: 28 | B33: =IF(C33<1," ",VLOOKUP(C33,MainAccountNO:MainAccounts,2,FALSE)) -> Operations Assessment | C33: 484 | D33: operations assessment | E33: =-0.05*(E30+E31) -> -2120

Sheet S4
B1: East Indian | C1: 20 | D1: Choose Rank Number --------> | G1: 10 | I1: Amount of 23/24 budget spent by Oct 31 | J1: Total From Last 12 Months - Nov22-Oct23 | K1: Last Budget
D2: Total Income | E2: =SUM(IF(S_4FieldRank<=S_4Choice,IF(S_4AccNO<=LastIncome,S_4Amount,0),0)) -> 110984 | K2: 23/24
D3: Total Expense | E3: =SUM(IF(S_4FieldRank<=S_4Choice,IF(S_4AccNO>LastIncome,S_4Amount,0),0)) -> 111240
D4: Total Expense | E4: =E2-E3 -> -256
A5: Line | B5: Account Description | C5: Acc_NO | D5: Field Detail | E5: Amount
B6: =IF(C6<1," ",VLOOKUP(C6,MainAccountNO:MainAccounts,2,FALSE)) ->  | H6: =IF(G6<=$G$1,"","OUT") -> 
A7: 1 | D7: Supervision & Misc.
A8: 2 | B8: =IF(C8<1," ",VLOOKUP(C8,MainAccountNO:MainAccounts,2,FALSE)) -> Motel/Hotel | C8: 546 | D8: supervisor travel 2 nights @ $125 | E8: 250 | K8: 250
A9: 3 | B9: =IF(C9<1," ",VLOOKUP(C9,MainAccountNO:MainAccounts,2,FALSE)) -> Gas & Oil Auto | C9: 549 | D9: supervisor travel - 1 visit BC & MB - 5000km | E9: 750 | K9: 750
A10: 4 | B10: =IF(C10<1," ",VLOOKUP(C10,MainAccountNO:MainAccounts,2,FALSE)) -> Commercial Travel | C10: 551 | D10: supervisor/coach travel - 1 flight as needed | E10: 650 | K10: 400
A11: 5 | B11: =IF(C11<1," ",VLOOKUP(C11,MainAccountNO:MainAccounts,2,FALSE)) -> Auto Reimbursement | C11: 563 | D11: car rental | E11: 250 | K11: 250
A12: 6 | B12: =IF(C12<1," ",VLOOKUP(C12,MainAccountNO:MainAccounts,2,FALSE)) -> Staff Training | C12: 537 | D12: staff training - resources (6 @ $20) | E12: 120 | K12: 90
A13: 7
A14: 8 | D14: Punjabi Outreach (929)
A15: 9 | B15: =IF(C15<1," ",VLOOKUP(C15,MainAccountNO:MainAccounts,2,FALSE)) -> Gifts in hand | C15: 400 | D15: apx balance on hand @ 03/31/2024 | E15: 30 | K15: 30
A16: 10 | B16: =IF(C16<1," ",VLOOKUP(C16,MainAccountNO:MainAccounts,2,FALSE)) -> Project Income - CND Ind | C16: 440 | D16: For Punjabi outreach (fundraising by missionary) | E16: 7260 | K16: 7260
A17: 11 | B17: =IF(C17<1," ",VLOOKUP(C17,MainAccountNO:MainAccounts,2,FALSE)) -> Project Income - US | C17: 442 | D17: For Punjabi outreach (fundraising by missionary) | E17: 0 | K17: 0
A18: 12 | B18: =IF(C18<1," ",VLOOKUP(C18,MainAccountNO:MainAccounts,2,FALSE)) -> Special Projects | C18: 580 | D18: Christmas celebrations/outreach | E18: 1800 | K18: 1800
A19: 13 | B19: =IF(C19<1," ",VLOOKUP(C19,MainAccountNO:MainAccounts,2,FALSE)) -> Special Projects | C19: 580 | D19: Other Punjabi outreach (i.e. ESL) | E19: 1500 | K19: 1500
A20: 14 | B20: =IF(C20<1," ",VLOOKUP(C20,MainAccountNO:MainAccounts,2,FALSE)) -> Special Projects | C20: 580 | D20: Punjabi church development | E20: 1500 | K20: 1500
A21: 15 | B21: =IF(C21<1," ",VLOOKUP(C21,MainAccountNO:MainAccounts,2,FALSE)) -> Operations Assessment | C21: 484 | D21: operations assessment | E21: -726 | K21: -726
A22: 16
A23: 17 | D23: Punjabi Literature (928)
A24: 18 | B24: =IF(C24<1," ",VLOOKUP(C24,MainAccountNO:MainAccounts,2,FALSE)) -> Gifts in hand | C24: 400 | D24: apx balance on hand @ 03/31/2024 | E24: 13375 | K24: 13375
A25: 19 | B25: =IF(C25<1," ",VLOOKUP(C25,MainAccountNO:MainAccounts,2,FALSE)) -> Special Projects | C25: 580 | D25: Punjabi Literature | E25: 13375 | K25: 13375
A26: 20
A27: 21 | D27: EIM Staffing
A28: 22 | B28: =IF(C28<1," ",VLOOKUP(C28,MainAccountNO:MainAccounts,2,FALSE)) -> US Gifts | C28: 430 | D28: Erastus US support | E28: 600 | K28: 600
A29: 23 | B29: =IF(C29<1," ",VLOOKUP(C29,MainAccountNO:MainAccounts,2,FALSE)) -> Canadian Gifts-Staff | C29: 410 | D29: Erastus CDN support | E29: 40825 | K29: 51400
A30: 24 | B30: =IF(C30<1," ",VLOOKUP(C30,MainAccountNO:MainAccounts,2,FALSE)) -> Ministry Expense | C30: 587 | D30: Erastus MER | E30: 0 | K30: 0
A31: 25 | B31: =IF(C31<1," ",VLOOKUP(C31,MainAccountNO:MainAccounts,2,FALSE)) -> Salary Expense | C31: 591 | D31: Erastus salary | E31: =0.9*(E28+E29)-E30 -> 37282.5 | K31: 46800
A32: 26 | B32: =IF(C32<1," ",VLOOKUP(C32,MainAccountNO:MainAccounts,2,FALSE)) -> US Gifts | C32: 430 | D32: Paras US Support | E32: 0 | K32: 0
A33: 27 | B33: =IF(C33<1," ",VLOOKUP(C33,MainAccountNO:MainAccounts,2,FALSE)) -> Canadian Gifts-Staff | C33: 410 | D33: Paras CDN Support | E33: 14425 | K33: 11270
A34: 28 | B34: =IF(C34<1," ",VLOOKUP(C34,MainAccountNO:MainAccounts,2,FALSE)) -> Ministry Expense | C34: 587 | D34: Paras MER | E34: 4550 | K34: 3100
A35: 29 | B35: =IF(C35<1," ",VLOOKUP(C35,MainAccountNO:MainAccounts,2,FALSE)) -> Salary Expense | C35: 591 | D35: Paras Salary | E35: =(E32+E33)-E34-1500 -> 8375 | K35: 6670
A36: 30 | B36: =IF(C36<1," ",VLOOKUP(C36,MainAccountNO:MainAccounts,2,FALSE)) -> US Gifts | C36: 430 | D36: Tobin US Support | E36: 20650 | K36: 12455
A37: 31 | B37: =IF(C37<1," ",VLOOKUP(C37,MainAccountNO:MainAccounts,2,FALSE)) -> Canadian Gifts-Staff | C37: 410 | D37: Tobin CDN Support | E37: 24725 | K37: 33215
A38: 32 | B38: =IF(C38<1," ",VLOOKUP(C38,MainAccountNO:MainAccounts,2,FALSE)) -> Ministry Expense | C38: 587 | D38: Tobin MER | E38: 0 | K38: 0
A39: 33 | B39: =IF(C39<1," ",VLOOKUP(C39,MainAccountNO:MainAccounts,2,FALSE)) -> Salary Expense | C39: 591 | D39: Tobin Salary | E39: =0.9*(E36+E37)-E38 -> 40837.5 | K39: 41103
A40: 34 | B40: =IF(C40<1," ",VLOOKUP(C40,MainAccountNO:MainAccounts,2,FALSE)) -> Operations Assessment | C40: 484 | D40: operations assessment | E40: =-0.1*(E28+E29+E36+E37)-1500 -> -10180 | K40: -11267

Sheet S5
B1: Anchored Warriors | C1: 15 | D1: Choose Rank Number --------> | G1: 10 | I1: Amount of 23/24 budget spent by Oct 31 | J1: Total From Last 12 Months - Nov22-Oct23 | K1: Last Budget
D2: Total Income | E2: =SUM(IF(S_5FieldRank<=S_5Choice,IF(S_5AccNO<=LastIncome,S_5Amount,0),0)) -> 29138 | K2: 23/24
D3: Total Expense | E3: =SUM(IF(S_5FieldRank<=S_5Choice,IF(S_5AccNO>LastIncome,S_5Amount,0),0)) -> 28249
D4: Difference | E4: =E2-E3 -> 889
A5: Line | B5: Account Description | C5: Acc_NO | D5: Field Detail | E5: Amount | F5: Month | G5: Rank | H5: Out
A7: 1 | D7: AW Ministry (957)
A8: 2 | B8: =IF(C8<1," ",VLOOKUP(C8,MainAccountNO:MainAccounts,2,FALSE)) -> Gifts in hand | C8: 400 | D8: apx balance on hand @ 03/31/2024 | E8: 5000 | H8: =IF(G8<=$G$1,"","OUT") ->  | K8: 16500
A9: 3 | B9: =IF(C9<1," ",VLOOKUP(C9,MainAccountNO:MainAccounts,2,FALSE)) -> Project Income - CND Ind | C9: 440 | D9: CAN individuals | E9: 2500 | H9: =IF(G9<=$G$1,"","OUT") ->  | J9: 2369.45 | K9: 7000
A10: 4 | B10: =IF(C10<1," ",VLOOKUP(C10,MainAccountNO:MainAccounts,2,FALSE)) -> Project Income - CDN Churches | C10: 441 | D10: CAN churches | E10: 2500 | H10: =IF(G10<=$G$1,"","OUT") ->  | J10: 285 | K10: 9500
A11: 5 | B11: =IF(C11<1," ",VLOOKUP(C11,MainAccountNO:MainAccounts,2,FALSE)) -> Operations Assessment | C11: 484 | D11: assessment on donations | E11: -50 | H11: =IF(G11<=$G$1,"","OUT") ->  | K11: -1685
A12: 6 | B12: =IF(C12<1," ",VLOOKUP(C12,MainAccountNO:MainAccounts,2,FALSE)) -> 
A13: 7 | B13: =IF(C13<1," ",VLOOKUP(C13,MainAccountNO:MainAccounts,2,FALSE)) ->  | D13: Admin
A14: 8 | B14: =IF(C14<1," ",VLOOKUP(C14,MainAccountNO:MainAccounts,2,FALSE)) -> Royalties/Fees | C14: 530 | D14: domain & web page | E14: 100 | I14: 77 | J14: 77 | K14: 350
A15: 9 | B15: =IF(C15<1," ",VLOOKUP(C15,MainAccountNO:MainAccounts,2,FALSE)) -> Royalties/Fees | C15: 530 | D15: Police checks | E15: 55 | I15: 55 | J15: 55 | K15: 45
A16: 10 | B16: =IF(C16<1," ",VLOOKUP(C16,MainAccountNO:MainAccounts,2,FALSE)) -> Advertising | C16: 503 | D16: general advertising | E16: 100 | K16: 150
A17: 11 | B17: =IF(C17<1," ",VLOOKUP(C17,MainAccountNO:MainAccounts,2,FALSE)) -> Office Supply | C17: 532 | D17: office supplies | E17: 50 | K17: 50
A18: 12 | B18: =IF(C18<1," ",VLOOKUP(C18,MainAccountNO:MainAccounts,2,FALSE)) -> General Supply & Service | C18: 545 | D18: general supplies | E18: 500 | K18: 500
A19: 13 | B19: =IF(C19<1," ",VLOOKUP(C19,MainAccountNO:MainAccounts,2,FALSE)) -> Bldg, Equip & Liab. Ins. | C19: 519 | D19: insurance for events | E19: 750
A20: 14 | B20: =IF(C20<1," ",VLOOKUP(C20,MainAccountNO:MainAccounts,2,FALSE)) -> 
A21: 15 | B21: =IF(C21<1," ",VLOOKUP(C21,MainAccountNO:MainAccounts,2,FALSE)) ->  | D21: AW Van Lease | H21: =IF(G21<=$G$1,"","OUT") -> 
A22: 16 | B22: =IF(C22<1," ",VLOOKUP(C22,MainAccountNO:MainAccounts,2,FALSE)) -> Auto Maintenance | C22: 550 | D22: Vehicle repairs and maintenance | E22: 5000
A23: 17 | B23: =IF(C23<1," ",VLOOKUP(C23,MainAccountNO:MainAccounts,2,FALSE)) -> Bldg, Equip & Liab. Ins. | C23: 519 | D23: Insurance for Van | E23: 1825
A24: 18 | B24: =IF(C24<1," ",VLOOKUP(C24,MainAccountNO:MainAccounts,2,FALSE)) -> Auto Maintenance | C24: 550 | D24: B.C Safety Inspection | E24: 600
A25: 19
A26: 20 | B26: =IF(C26<1," ",VLOOKUP(C26,MainAccountNO:MainAccounts,2,FALSE)) ->  | D26: AW Network Training
A27: 21 | B27: =IF(C27<1," ",VLOOKUP(C27,MainAccountNO:MainAccounts,2,FALSE)) -> Food for Outreach/Meetings | C27: 515 | D27: Food | J27: 171
A28: 22 | B28: =IF(C28<1," ",VLOOKUP(C28,MainAccountNO:MainAccounts,2,FALSE)) -> Special Projects | C28: 580 | D28: facility rental
A29: 23 | B29: =IF(C29<1," ",VLOOKUP(C29,MainAccountNO:MainAccounts,2,FALSE)) -> General Supply & Service | C29: 545 | D29: Supplies | J29: 307
A30: 24 | B30: =IF(C30<1," ",VLOOKUP(C30,MainAccountNO:MainAccounts,2,FALSE)) -> Gas & Oil Auto | C30: 549 | D30: Gas | J30: 121
A31: 25 | B31: =IF(C31<1," ",VLOOKUP(C31,MainAccountNO:MainAccounts,2,FALSE)) -> Food for Outreach/Meetings | C31: 515 | D31: Food | J31: 150
A32: 26 | B32: =IF(C32<1," ",VLOOKUP(C32,MainAccountNO:MainAccounts,2,FALSE)) -> 
A33: 27 | B33: =IF(C33<1," ",VLOOKUP(C33,MainAccountNO:MainAccounts,2,FALSE)) ->  | D33: Regular Community Outreach
A34: 28 | B34: =IF(C34<1," ",VLOOKUP(C34,MainAccountNO:MainAccounts,2,FALSE)) ->  | D34: Eden Valley (965)
A35: 29 | B35: =IF(C35<1," ",VLOOKUP(C35,MainAccountNO:MainAccounts,2,FALSE)) -> Gifts in hand | C35: 400 | D35: Transfer from Restora Project | E35: 4200
A36: 30 | B36: =IF(C36<1," ",VLOOKUP(C36,MainAccountNO:MainAccounts,2,FALSE)) -> Gifts in hand | C36: 400 | D36: apx balance on hand @ 03/31/2024 | E36: 0
A37: 31 | B37: =IF(C37<1," ",VLOOKUP(C37,MainAccountNO:MainAccounts,2,FALSE)) -> Project Income - CND Ind | C37: 440 | D37: CAN individuals | E37: 5000
A38: 32 | B38: =IF(C38<1," ",VLOOKUP(C38,MainAccountNO:MainAccounts,2,FALSE)) -> Project Income - CDN Churches | C38: 441 | D38: CAN churches | E38: 5200
A39: 33 | B39: =IF(C39<1," ",VLOOKUP(C39,MainAccountNO:MainAccounts,2,FALSE)) -> Operations Assessment | C39: 484 | D39: assessment on donations | E39: -102
A40: 34 | B40: =IF(C40<1," ",VLOOKUP(C40,MainAccountNO:MainAccounts,2,FALSE)) -> Auto Reimbursement | C40: 563 | D40: Vehicle rental | E40: 3740 | H40: =IF(G40<=$G$1,"","OUT") ->  | I40: 3270 | J40: 5920
A41: 35 | B41: =IF(C41<1," ",VLOOKUP(C41,MainAccountNO:MainAccounts,2,FALSE)) -> Gas & Oil Auto | C41: 549 | D41: Fuel rental vehicles | E41: 870 | H41: =IF(G41<=$G$1,"","OUT") ->  | I41: 485 | J41: 725
A42: 36 | B42: =IF(C42<1," ",VLOOKUP(C42,MainAccountNO:MainAccounts,2,FALSE)) -> Food for Outreach/Meetings | C42: 515 | D42: snacks (12 x $75) | E42: 1080 | H42: =IF(G42<=$G$1,"","OUT") ->  | I42: 650 | J42: 882
A43: 37 | B43: =IF(C43<1," ",VLOOKUP(C43,MainAccountNO:MainAccounts,2,FALSE)) -> General Supply & Service | C43: 545 | D43: misc resources | E43: 1650 | I43: 128 | J43: =50+420 -> 470
A44: 38 | B44: =IF(C44<1," ",VLOOKUP(C44,MainAccountNO:MainAccounts,2,FALSE)) -> Royalties/Fees | C44: 530 | D44: $120 x 21 participant fees (balance from fundraising/band) | E44: 2530 | J44: 280
A45: 39 | B45: =IF(C45<1," ",VLOOKUP(C45,MainAccountNO:MainAccounts,2,FALSE)) -> Food for Outreach/Meetings | C45: 515 | D45: Youth Conference trip - meals | E45: 884
A46: 40 | B46: =IF(C46<1," ",VLOOKUP(C46,MainAccountNO:MainAccounts,2,FALSE)) -> Auto Reimbursement | C46: 563 | D46: Youth Conference trip - van rental | E46: 4995
A47: 41 | B47: =IF(C47<1," ",VLOOKUP(C47,MainAccountNO:MainAccounts,2,FALSE)) -> Gas & Oil Auto | C47: 549 | D47: Youth Conference trip - gas | E47: 970
A48: 42 | B48: =IF(C48<1," ",VLOOKUP(C48,MainAccountNO:MainAccounts,2,FALSE)) -> 
A49: 43 | B49: =IF(C49<1," ",VLOOKUP(C49,MainAccountNO:MainAccounts,2,FALSE)) ->  | D49: Kamloops
A50: 44 | B50: =IF(C50<1," ",VLOOKUP(C50,MainAccountNO:MainAccounts,2,FALSE)) -> Gifts in hand | C50: 400 | D50: apx balance on hand @ 03/31/2024
A51: 45 | B51: =IF(C51<1," ",VLOOKUP(C51,MainAccountNO:MainAccounts,2,FALSE)) -> Project Income - CND Ind | C51: 440 | D51: CAN individuals
A52: 46 | B52: =IF(C52<1," ",VLOOKUP(C52,MainAccountNO:MainAccounts,2,FALSE)) -> Project Income - CDN Churches | C52: 441 | D52: CAN churches
A53: 47 | B53: =IF(C53<1," ",VLOOKUP(C53,MainAccountNO:MainAccounts,2,FALSE)) -> Operations Assessment | C53: 484 | D53: assessment on donations
A54: 48 | B54: =IF(C54<1," ",VLOOKUP(C54,MainAccountNO:MainAccounts,2,FALSE)) -> Gas & Oil Auto | C54: 549 | D54: Youth Conference trip - gas | J54: =50+255 -> 305
A55: 49 | B55: =IF(C55<1," ",VLOOKUP(C55,MainAccountNO:MainAccounts,2,FALSE)) -> Food for Outreach/Meetings | C55: 515 | D55: Youth Conference trip - meals | J55: =162+80 -> 242
A56: 50 | B56: =IF(C56<1," ",VLOOKUP(C56,MainAccountNO:MainAccounts,2,FALSE)) -> Auto Reimbursement | C56: 563 | D56: Youth Conference trip - vehicle rental
A57: 51 | B57: =IF(C57<1," ",VLOOKUP(C57,MainAccountNO:MainAccounts,2,FALSE)) -> Special Projects | C57: 580 | D57: Youth Conference trip- facility rental
A58: 52 | B58: =IF(C58<1," ",VLOOKUP(C58,MainAccountNO:MainAccounts,2,FALSE)) -> Special Projects | C58: 580 | D58: Winter retreat | E58: 550 | I58: 1800 | J58: 1800
A59: 53 | B59: =IF(C59<1," ",VLOOKUP(C59,MainAccountNO:MainAccounts,2,FALSE)) -> 
A60: 54 | B60: =IF(C60<1," ",VLOOKUP(C60,MainAccountNO:MainAccounts,2,FALSE)) ->  | D60: Lethbridge
A61: 55 | B61: =IF(C61<1," ",VLOOKUP(C61,MainAccountNO:MainAccounts,2,FALSE)) -> Gifts in hand | C61: 400 | D61: apx balance on hand @ 03/31/2024
A62: 56 | B62: =IF(C62<1," ",VLOOKUP(C62,MainAccountNO:MainAccounts,2,FALSE)) -> Project Income - CND Ind | C62: 440 | D62: CAN individuals
A63: 57 | B63: =IF(C63<1," ",VLOOKUP(C63,MainAccountNO:MainAccounts,2,FALSE)) -> Project Income - CDN Churches | C63: 441 | D63: CAN churches
A64: 58 | B64: =IF(C64<1," ",VLOOKUP(C64,MainAccountNO:MainAccounts,2,FALSE)) -> Operations Assessment | C64: 484 | D64: assessment on donations
A65: 59 | B65: =IF(C65<1," ",VLOOKUP(C65,MainAccountNO:MainAccounts,2,FALSE)) -> Gas & Oil Auto | C65: 549 | D65: Youth Conference trip- gas
A66: 60 | B66: =IF(C66<1," ",VLOOKUP(C66,MainAccountNO:MainAccounts,2,FALSE)) -> Auto Reimbursement | C66: 563 | D66: Youth Conference trip - vehicle rental
A67: 61 | B67: =IF(C67<1," ",VLOOKUP(C67,MainAccountNO:MainAccounts,2,FALSE)) -> Royalties/Fees | C67: 530 | D67: Participant fees
A68: 62 | B68: =IF(C68<1," ",VLOOKUP(C68,MainAccountNO:MainAccounts,2,FALSE)) -> General Supply & Service | C68: 545 | D68: General youth supplies
A69: 63 | B69: =IF(C69<1," ",VLOOKUP(C69,MainAccountNO:MainAccounts,2,FALSE)) -> 
A70: 64 | B70: =IF(C70<1," ",VLOOKUP(C70,MainAccountNO:MainAccounts,2,FALSE)) ->  | D70: Mentoring Trips (963)
A71: 65 | B71: =IF(C71<1," ",VLOOKUP(C71,MainAccountNO:MainAccounts,2,FALSE)) -> Gifts in hand | C71: 400 | D71: apx balance on hand @ 03/31/2024 | E71: 4890
A72: 66 | B72: =IF(C72<1," ",VLOOKUP(C72,MainAccountNO:MainAccounts,2,FALSE)) -> Special Projects | C72: 580 | D72: Youth conference trip | E72: 2000 | H72: =IF(G72<=$G$1,"","OUT") -> 

Sheet S6
B1: Native Bible Centre | C1: 10 | D1: Choose Rank Number --------> | G1: 10 | I1: Amount of 23/24 budget spent by Oct 31 | J1: Total From Last 12 Months - Nov22-Oct23 | K1: Last Budget
D2: Total Income | E2: =SUM(IF(S_6FieldRank<=S_6Choice,IF(S_6AccNO<=LastIncome,S_6Amount,0),0)) -> 87881 | K2: 23/24
D3: Total Expense | E3: =SUM(IF(S_6FieldRank<=S_6Choice,IF(S_6AccNO>LastIncome,S_6Amount,0),0)) -> 64158.5
D4: Difference | E4: =E2-E3 -> 23722.5
A5: Line | B5: Account Description | C5: Acc_NO | D5: Field Detail | E5: Amount
A7: 1 | B7: =IF(C7<1," ",VLOOKUP(C7,MainAccountNO:MainAccounts,2,FALSE)) -> Gifts in hand | C7: 400 | D7: apx balance on hand @ 03/31/2024 | E7: 11000 | H7: =IF(G7<=$G$1,"","OUT") -> 
A8: 2 | B8: =IF(C8<1," ",VLOOKUP(C8,MainAccountNO:MainAccounts,2,FALSE)) -> Project Income - CND Ind | C8: 440 | D8: Canadian donations | E8: 600 | H8: =IF(G8<=$G$1,"","OUT") ->  | J8: 600 | K8: 600
A9: 3 | B9: =IF(C9<1," ",VLOOKUP(C9,MainAccountNO:MainAccounts,2,FALSE)) -> Project Income - CDN Churches | C9: 441 | D9: Canadian donations | E9: 300 | J9: 271 | K9: 500
A10: 4 | B10: =IF(C10<1," ",VLOOKUP(C10,MainAccountNO:MainAccounts,2,FALSE)) -> US Gifts | C10: 430 | D10: US donations | E10: 250 | J10: 335 | K10: 200
A11: 5 | B11: =IF(C11<1," ",VLOOKUP(C11,MainAccountNO:MainAccounts,2,FALSE)) -> Tuition Income | C11: 445 | D11: student tuition fees | E11: 50 | K11: 50
A12: 6 | B12: =IF(C12<1," ",VLOOKUP(C12,MainAccountNO:MainAccounts,2,FALSE)) -> Operations Assessment | C12: 484 | D12: operations assessment | E12: -115 | K12: -130
A13: 7 | B13: =IF(C13<1," ",VLOOKUP(C13,MainAccountNO:MainAccounts,2,FALSE)) -> Sales | C13: 460 | D13: course sales | E13: 700 | J13: 893 | K13: 200
A14: 8 | B14: =IF(C14<1," ",VLOOKUP(C14,MainAccountNO:MainAccounts,2,FALSE)) -> Gas & Oil Auto | C14: 549 | D14: supervision/staff visits (2 visits) | E14: 100 | K14: 100
A15: 9 | B15: =IF(C15<1," ",VLOOKUP(C15,MainAccountNO:MainAccounts,2,FALSE)) -> Staff Training | C15: 537 | D15: staff training (2 @ $20) | E15: 40 | K15: 45
A16: 10
A17: 11 | D17: NBC Operation (010)
A18: 12 | B18: =IF(C18<1," ",VLOOKUP(C18,MainAccountNO:MainAccounts,2,FALSE)) -> Equip. Maint. | C18: 527 | D18: copier costs | E18: 400 | J18: 312 | K18: 850
A19: 13 | B19: =IF(C19<1," ",VLOOKUP(C19,MainAccountNO:MainAccounts,2,FALSE)) -> Royalties/Fees | C19: 530 | D19: domain renewal | E19: 150 | J19: 138.69 | K19: 150
A20: 14 | B20: =IF(C20<1," ",VLOOKUP(C20,MainAccountNO:MainAccounts,2,FALSE)) -> Office Supply | C20: 532 | D20: paper, binding materials, etc. | E20: 600 | J20: 626 | K20: 1000
A21: 15 | B21: =IF(C21<1," ",VLOOKUP(C21,MainAccountNO:MainAccounts,2,FALSE)) -> Postage & Parcels | C21: 533 | D21: Mailing books to students | E21: 450 | J21: 371 | K21: 250
A22: 16 | B22: =IF(C22<1," ",VLOOKUP(C22,MainAccountNO:MainAccounts,2,FALSE)) -> Seminars & Registration | C22: 538 | D22: representation & fundraising | E22: 100 | K22: 200
A23: 17 | B23: =IF(C23<1," ",VLOOKUP(C23,MainAccountNO:MainAccounts,2,FALSE)) -> General Supply & Service | C23: 545 | D23: texts, commentaries | E23: 200 | J23: 53 | K23: 600
A24: 18 | B24: =IF(C24<1," ",VLOOKUP(C24,MainAccountNO:MainAccounts,2,FALSE)) -> Motel/Hotel | C24: 546 | D24: representation & fundraising travel (8 nights @ $125) | E24: 500 | K24: 1000
A25: 19 | B25: =IF(C25<1," ",VLOOKUP(C25,MainAccountNO:MainAccounts,2,FALSE)) -> Telephone | C25: 547 | D25: telephone | E25: 25 | K25: 25
A26: 20 | B26: =IF(C26<1," ",VLOOKUP(C26,MainAccountNO:MainAccounts,2,FALSE)) -> Gas & Oil Auto | C26: 549 | D26: representation & fundraising (apx 6000 km) | E26: 240 | K26: 720
A27: 21
A28: 22 | D28: NBC Staffing
A29: 23 | B29: =IF(C29<1," ",VLOOKUP(C29,MainAccountNO:MainAccounts,2,FALSE)) -> US Gifts | C29: 430 | D29: Dabrowski US Support | E29: 4050 | K29: 4000
A30: 24 | B30: =IF(C30<1," ",VLOOKUP(C30,MainAccountNO:MainAccounts,2,FALSE)) -> Canadian Gifts-Staff | C30: 410 | D30: Dabrowski CDN Support | E30: 23815 | F30: =0.1*(E29+E30) -> 2786.5 | K30: 22250
A31: 25 | B31: =IF(C31<1," ",VLOOKUP(C31,MainAccountNO:MainAccounts,2,FALSE)) -> Ministry Expense | C31: 587 | D31: Dabrowski MER | E31: 0 | K31: 0
A32: 26 | B32: =IF(C32<1," ",VLOOKUP(C32,MainAccountNO:MainAccounts,2,FALSE)) -> Salary Expense | C32: 591 | D32: Dabrowski Salary | E32: =0.9*(E29+E30)-E31 -> 25078.5 | K32: 23625
A33: 27 | B33: =IF(C33<1," ",VLOOKUP(C33,MainAccountNO:MainAccounts,2,FALSE)) -> Operations Assessment | C33: 484 | D33: operations assessment | E33: =-0.1*(E29+E30) -> -2786.5 | K33: -13972
A34: 28 | B34: =IF(C34<1," ",VLOOKUP(C34,MainAccountNO:MainAccounts,2,FALSE)) -> 
A35: 29 | B35: =IF(C35<1," ",VLOOKUP(C35,MainAccountNO:MainAccounts,2,FALSE)) ->  | D35: Retired Staff (5% assessment)
A36: 30 | B36: =IF(C36<1," ",VLOOKUP(C36,MainAccountNO:MainAccounts,2,FALSE)) -> US Gifts | C36: 430 | D36: Houston US Support | E36: 45450
A37: 31 | B37: =IF(C37<1," ",VLOOKUP(C37,MainAccountNO:MainAccounts,2,FALSE)) -> Canadian Gifts-Staff | C37: 410 | D37: Houston CDN Support | E37: 7200
A38: 32 | B38: =IF(C38<1," ",VLOOKUP(C38,MainAccountNO:MainAccounts,2,FALSE)) -> Retirement Allowance | C38: 593 | D38: Houston Salary | E38: 36275
A39: 33 | B39: =IF(C39<1," ",VLOOKUP(C39,MainAccountNO:MainAccounts,2,FALSE)) -> Operations Assessment | C39: 484 | D39: operations assessment | E39: =-0.05*(E36+E37) -> -2632.5

Sheet S7
A1: Collaborative Ministries | C1: 60 | D1: Choose Rank Number --------> | G1: 10 | I1: Amount of 23/24 budget spent by Oct 31 | J1: Total From Last 12 Months - Nov22-Oct23 | K1: Last Budget
D2: Total Income | E2: =SUM(IF(S_7FieldRank<=S_7Choice,IF(S_7AccNO<=LastIncome,S_7Amount,0),0)) -> 115000 | K2: 23/24
D3: Total Expense | E3: =SUM(IF(S_7FieldRank<=S_7Choice,IF(S_7AccNO>LastIncome,S_7Amount,0),0)) -> 116160
D4: Difference | E4: =E2-E3 -> -1160
A5: Line | B5: Account Description | C5: Acc_NO | D5: Field Detail | E5: Amount
A7: 1 | D7: Opportunity Development (942) | H7: =IF(G7<=$G$1,"","OUT") -> 
A8: 2 | B8: =IF(C8<1," ",VLOOKUP(C8,MainAccountNO:MainAccounts,2,FALSE)) -> Special Projects | C8: 580 | D8: new ministry research & development | E8: 500 | K8: 500
A9: 3
A10: 4 | D10: Native Ministry Networking (951)
A11: 5 | B11: =IF(C11<1," ",VLOOKUP(C11,MainAccountNO:MainAccounts,2,FALSE)) -> Motel/Hotel | C11: 546 | D11: Registrations - Field Director | E11: 160 | K11: 160
A12: 6 | B12: =IF(C12<1," ",VLOOKUP(C12,MainAccountNO:MainAccounts,2,FALSE)) -> Gas & Oil Auto | C12: 549 | D12: 2600 km (Houston, BC) | E12: 500 | H12: =IF(G12<=$G$1,"","OUT") ->  | K12: 500
A13: 7
A14: 8 | D14: Centre for Intercultural Training (CIT)
A15: 9 | B15: =IF(C15<1," ",VLOOKUP(C15,MainAccountNO:MainAccounts,2,FALSE)) -> Commercial Travel | C15: 551 | D15: IMC leadership - travel to CIT | K15: 750
A16: 10 | B16: =IF(C16<1," ",VLOOKUP(C16,MainAccountNO:MainAccounts,2,FALSE)) -> Auto Reimbursement | C16: 563 | D16: vehicle rental | K16: 400
A17: 11 | B17: =IF(C17<1," ",VLOOKUP(C17,MainAccountNO:MainAccounts,2,FALSE)) -> Royalties/Fees | C17: 530 | D17: annual member fee | J17: 503 | K17: 800 | L17: Did we end our membership? Yes, we are no longer members.
A18: 12 | B18: =IF(C18<1," ",VLOOKUP(C18,MainAccountNO:MainAccounts,2,FALSE)) -> Gas & Oil Auto | C18: 549 | D18: gas for rental vehicle | K18: 150
A19: 13 | B19: =IF(C19<1," ",VLOOKUP(C19,MainAccountNO:MainAccounts,2,FALSE)) -> Motel/Hotel | C19: 546 | D19: 1 night | K19: 125
A20: 14
A21: 15 | D21: Joint Ministries Agreement (dept 90)
A22: 16 | B22: =IF(C22<1," ",VLOOKUP(C22,MainAccountNO:MainAccounts,2,FALSE)) -> Canadian Gifts-Staff | C22: 410 | D22: gifts for IMI personnel | E22: 115000 | K22: 115000 | L22: based on the 12 months of 2023, including Smith CAD donations
A23: 17 | B23: =IF(C23<1," ",VLOOKUP(C23,MainAccountNO:MainAccounts,2,FALSE)) -> Gifts to Affiliated Org. | C23: 517 | D23: to IMI for joint ministries | E23: 115000 | K23: 115000

Sheet S8
B1: Member Care | C1: 30 | D1: Choose Rank Number --------> | G1: 10 | I1: Amount of 23/24 budget spent by Oct 31 | J1: Total From Last 12 Months - Nov22-Oct23 | K1: Last Budget
D2: Total Income | E2: =SUM(IF(S_8FieldRank<=S_8Choice,IF(S_8AccNO<=LastIncome,S_8Amount,0),0)) -> 106158 | K2: 23/24
D3: Total Expense | E3: =SUM(IF(S_8FieldRank<=S_8Choice,IF(S_8AccNO>LastIncome,S_8Amount,0),0)) -> 104703
D4: Difference | E4: =E2-E3 -> 1455
A5: Line | B5: Account Description | C5: Acc_NO | D5: Field Detail | E5: Amount | G5: Rank | H5: Out
B6: =IF(C6<1," ",VLOOKUP(C6,MainAccountNO:MainAccounts,2,FALSE)) ->  | H6: =IF(G6<=$G$1,"","OUT") -> 
A7: 1 | B7: =IF(C7<1," ",VLOOKUP(C7,MainAccountNO:MainAccounts,2,FALSE)) -> Member Care | C7: 542 | D7: cards, flowers, etc - bereavement & birthdays | E7: 600 | H7: =IF(G7<=$G$1,"","OUT") ->  | I7: 80 | J7: 80 | K7: 600
A8: 2 | B8: =IF(C8<1," ",VLOOKUP(C8,MainAccountNO:MainAccounts,2,FALSE)) -> Member Care | C8: 542 | D8: member care as needed ED or FD emergency travel etc. | E8: 600 | K8: 600
A9: 3 | B9: =IF(C9<1," ",VLOOKUP(C9,MainAccountNO:MainAccounts,2,FALSE)) -> Member Care | C9: 542 | D9: FD random acts of kindness | E9: 400 | K9: 400
A10: 4 | B10: =IF(C10<1," ",VLOOKUP(C10,MainAccountNO:MainAccounts,2,FALSE)) -> Member Care | C10: 542 | D10: ED random acts of kindness | E10: 400 | K10: 400
A11: 5 | B11: =IF(C11<1," ",VLOOKUP(C11,MainAccountNO:MainAccounts,2,FALSE)) -> Motel/Hotel | C11: 546 | D11: 2 nights lodging | E11: 250 | K11: 250
A12: 6 | B12: =IF(C12<1," ",VLOOKUP(C12,MainAccountNO:MainAccounts,2,FALSE)) -> Gas & Oil Auto | C12: 549 | D12: gas reimbursement (apx. 1500 km) | E12: 225 | K12: 225
A13: 7 | B13: =IF(C13<1," ",VLOOKUP(C13,MainAccountNO:MainAccounts,2,FALSE)) -> Member Care | C13: 542 | D13: Mentoring expenses at ED & FD joint decision | E13: 300 | K13: 300
A14: 8 | B14: =IF(C14<1," ",VLOOKUP(C14,MainAccountNO:MainAccounts,2,FALSE)) -> Gifts in hand | C14: 400 | D14: Memorial Fund (apx balance on hand @ 03/31/2024) | E14: 1200 | K14: 1200
A15: 9 | B15: =IF(C15<1," ",VLOOKUP(C15,MainAccountNO:MainAccounts,2,FALSE)) -> Special Projects | C15: 580 | D15: Memorial Fund expenses | E15: 1200 | K15: 1200
A16: 10 | B16: =IF(C16<1," ",VLOOKUP(C16,MainAccountNO:MainAccounts,2,FALSE)) -> Gifts in hand | C16: 400 | D16: Staff Assistance Fund (apx balance on hand @ 03/31/2024) | E16: 8980 | K16: 8980
A17: 11 | B17: =IF(C17<1," ",VLOOKUP(C17,MainAccountNO:MainAccounts,2,FALSE)) -> Special Projects | C17: 580 | D17: Staff Assistance Fund expenses | E17: 8980 | K17: 8980
A18: 12
A19: 13 | D19: Annual Conference (979)
A20: 14 | B20: =IF(C20<1," ",VLOOKUP(C20,MainAccountNO:MainAccounts,2,FALSE)) -> Project Income - CND Ind | C20: 440 | D20: Conference offering | E20: 1200 | I20: 1460 | J20: 1460 | K20: 1200
A21: 15 | B21: =IF(C21<1," ",VLOOKUP(C21,MainAccountNO:MainAccounts,2,FALSE)) -> Operations Assessment | C21: 484 | D21: operations assessment | E21: -120 | K21: -120
A22: 16 | B22: =IF(C22<1," ",VLOOKUP(C22,MainAccountNO:MainAccounts,2,FALSE)) -> Missionary Conference | C22: 557 | D22: fee payments for conference | E22: -2000 | I22: -8515 | J22: -8515 | K22: -2000
A23: 17 | B23: =IF(C23<1," ",VLOOKUP(C23,MainAccountNO:MainAccounts,2,FALSE)) -> Missionary Conference | C23: 557 | D23: conference speaker travel | E23: 1000 | I23: 885 | J23: 885 | K23: 1000
A24: 18 | B24: =IF(C24<1," ",VLOOKUP(C24,MainAccountNO:MainAccounts,2,FALSE)) -> Missionary Conference | C24: 557 | D24: conference travel | E24: 8500 | I24: 6358 | J24: 6358 | K24: 10000
A25: 19 | B25: =IF(C25<1," ",VLOOKUP(C25,MainAccountNO:MainAccounts,2,FALSE)) -> Missionary Conference | C25: 557 | D25: conference facility fees - staff/speaker/board/child care/other | E25: 30000 | I25: =25753+500+2000 -> 28253 | J25: 28253 | K25: 32000
A26: 20 | B26: =IF(C26<1," ",VLOOKUP(C26,MainAccountNO:MainAccounts,2,FALSE)) -> Missionary Conference | C26: 557 | D26: speaker honorarium | E26: 1500 | I26: 1491 | J26: 1491 | K26: 1500
A27: 21 | B27: =IF(C27<1," ",VLOOKUP(C27,MainAccountNO:MainAccounts,2,FALSE)) -> Missionary Conference | C27: 557 | D27: child & youth care expenses & honorarium | E27: 2150 | I27: =1788 -> 1788 | J27: 1788 | K27: 3500
A28: 22 | B28: =IF(C28<1," ",VLOOKUP(C28,MainAccountNO:MainAccounts,2,FALSE)) -> Missionary Conference | C28: 557 | D28: other conference expenses | E28: 1200 | I28: 1847 | J28: =1847-305 -> 1542 | K28: 750
A29: 23 | D29: Retreat
A30: 24 | B30: =IF(C30<1," ",VLOOKUP(C30,MainAccountNO:MainAccounts,2,FALSE)) -> Special Projects | C30: 580 | D30: Staff Retreat | E30: 1500 | K30: 1500
A31: 25
A32: 26 | D32: Advanced Ministry Training (962)
A33: 27 | B33: =IF(C33<1," ",VLOOKUP(C33,MainAccountNO:MainAccounts,2,FALSE)) -> Gifts in hand | C33: 400 | D33: Aproximate funds in hand (Sewell residual) | E33: 65000 | K33: 65000
A34: 28 | B34: =IF(C34<1," ",VLOOKUP(C34,MainAccountNO:MainAccounts,2,FALSE)) -> Commercial Travel | C34: 551 | D34: travel for leadership development | E34: 1500 | K34: 1500
A35: 29 | B35: =IF(C35<1," ",VLOOKUP(C35,MainAccountNO:MainAccounts,2,FALSE)) -> Staff Training | C35: 537 | D35: Leadership Development | E35: 2500 | K35: 2500
A36: 30 | B36: =IF(C36<1," ",VLOOKUP(C36,MainAccountNO:MainAccounts,2,FALSE)) -> Staff Training | C36: 537 | D36: General missionary training | E36: 4500 | J36: 250 | K36: 4500
A37: 31 | B37: =IF(C37<1," ",VLOOKUP(C37,MainAccountNO:MainAccounts,2,FALSE)) -> Staff Training | C37: 537 | D37: staff training scholarships (1 course/unit, max $500) | E37: 5000 | K37: 5000
A38: 32 | B38: =IF(C38<1," ",VLOOKUP(C38,MainAccountNO:MainAccounts,2,FALSE)) -> Commercial Travel | C38: 551 | D38: Worldview Training | E38: 3000 | K38: 3000
A39: 33 | B39: =IF(C39<1," ",VLOOKUP(C39,MainAccountNO:MainAccounts,2,FALSE)) -> Gas & Oil Auto | C39: 549 | D39: Gas - Worldview Training | E39: 600 | K39: 600
A40: 34 | B40: =IF(C40<1," ",VLOOKUP(C40,MainAccountNO:MainAccounts,2,FALSE)) -> Food for Outreach/Meetings | C40: 515 | D40: Food for meetings - Worldview Training | E40: 900 | K40: 900
A41: 35
A42: 36 | D42: Member Care Staffing
A43: 37 | B43: =IF(C43<1," ",VLOOKUP(C43,MainAccountNO:MainAccounts,2,FALSE)) -> Canadian Gifts-Staff | C43: 410 | D43: Gonzales CDN Support | E43: 16700 | K43: 15250
A44: 38 | B44: =IF(C44<1," ",VLOOKUP(C44,MainAccountNO:MainAccounts,2,FALSE)) -> US Gifts | C44: 430 | D44: Gonzales US Support | E44: 16520 | K44: 15830
A45: 39 | B45: =IF(C45<1," ",VLOOKUP(C45,MainAccountNO:MainAccounts,2,FALSE)) -> Ministry Expense | C45: 587 | D45: Gonzales MER | E45: 0 | K45: 0
A46: 40 | B46: =IF(C46<1," ",VLOOKUP(C46,MainAccountNO:MainAccounts,2,FALSE)) -> Salary Expense | C46: 591 | D46: Gonzales Salary | E46: =0.9*(E43+E44)-E45 -> 29898 | K46: 27972
A47: 41 | B47: =IF(C47<1," ",VLOOKUP(C47,MainAccountNO:MainAccounts,2,FALSE)) -> Operations Assessment | C47: 484 | D47: operations assessment | E47: =-0.1*(E43+E44) -> -3322 | K47: -3108

Sheet S9
B1: Admin & General | C1: 70 | D1: Choose Rank Number --------> | G1: 10 | I1: Amount of 23/24 budget spent by Oct 31 | J1: Total From Last 12 Months - Nov22-Oct23 | K1: Last Budget
D2: Total Income | E2: =SUM(IF(S_9FieldRank<=S_9Choice,IF(S_9AccNO<=LastIncome,S_9Amount,0),0)) -> 360318.5 | K2: 23/24
D3: Total Expense | E3: =SUM(IF(S_9FieldRank<=S_9Choice,IF(S_9AccNO>LastIncome,S_9Amount,0),0)) -> 290647.5
D4: Difference | E4: =E2-E3 -> 69671
A5: Line | B5: Account Description | C5: Acc_NO | D5: Field Detail | E5: Amount
A7: 1 | B7: =IF(C7<1," ",VLOOKUP(C7,MainAccountNO:MainAccounts,2,FALSE)) -> Project Income - CND Ind | C7: 440 | D7: CDN gifts | E7: 65000 | H7: =IF(G7<=$G$1,"","OUT") ->  | J7: 70037 | K7: 60000
A8: 2 | B8: =IF(C8<1," ",VLOOKUP(C8,MainAccountNO:MainAccounts,2,FALSE)) -> Project Income - CDN Churches | C8: 441 | D8: CDN gifts - churches | E8: 15000 | J8: 19923 | K8: 10000
A9: 3 | B9: =IF(C9<1," ",VLOOKUP(C9,MainAccountNO:MainAccounts,2,FALSE)) -> Project Income - US | C9: 442 | D9: US gifts | E9: 10000 | J9: 15957 | K9: 3000
A10: 4 | B10: =IF(C10<1," ",VLOOKUP(C10,MainAccountNO:MainAccounts,2,FALSE)) -> Interest Income | C10: 450 | D10: gain on investments | E10: 400 | J10: =99+22970 -> 23069 | K10: 400
A11: 5 | B11: =IF(C11<1," ",VLOOKUP(C11,MainAccountNO:MainAccounts,2,FALSE)) -> Other income | C11: 455 | D11: gasoline tax refund | E11: 500 | J11: 311 | K11: 500
A12: 6 | B12: =IF(C12<1," ",VLOOKUP(C12,MainAccountNO:MainAccounts,2,FALSE)) -> Other income | C12: 455 | D12: GST refund | E12: 6500 | J12: 7700 | K12: 6500
A13: 7 | B13: =IF(C13<1," ",VLOOKUP(C13,MainAccountNO:MainAccounts,2,FALSE)) -> Operations Assessment | C13: 484 | D13: assessment transfer | E13: 185370 | K13: 224263
A14: 8
A15: 9 | B15: =IF(C15<1," ",VLOOKUP(C15,MainAccountNO:MainAccounts,2,FALSE)) -> Small Equip. Purchase | C15: 511 | D15: technology hardware | E15: 4500 | I15: 995 | J15: 995 | K15: 4500
A16: 10 | B16: =IF(C16<1," ",VLOOKUP(C16,MainAccountNO:MainAccounts,2,FALSE)) -> Small Equip. Purchase | C16: 511 | D16: software licenses - Sage,Office 365 (admin) | E16: 3000 | I16: 85 | J16: 1990 | K16: 3000
A17: 11 | B17: =IF(C17<1," ",VLOOKUP(C17,MainAccountNO:MainAccounts,2,FALSE)) -> Small Equip. Purchase | C17: 511 | D17: Donor Perfect installation, training, fee | E17: 3500 | I17: 1945 | J17: 3402 | K17: 2800
A18: 12 | B18: =IF(C18<1," ",VLOOKUP(C18,MainAccountNO:MainAccounts,2,FALSE)) -> Food for Outreach/Meetings | C18: 515 | D18: water, coffee, food supplies for office | E18: 200 | I18: 7 | J18: 13 | K18: 200
A19: 13 | B19: =IF(C19<1," ",VLOOKUP(C19,MainAccountNO:MainAccounts,2,FALSE)) -> Bldg, Equip & Liab. Ins. | C19: 519 | D19: board & staff liability, officer facilities (package) | E19: 7050 | J19: 10577 | K19: 9700
A20: 14 | B20: =IF(C20<1," ",VLOOKUP(C20,MainAccountNO:MainAccounts,2,FALSE)) -> Audit & Legal Fees | C20: 521 | D20: audit @ $13K | E20: 15000 | I20: 14606 | J20: 14606 | K20: 15000
A21: 15 | B21: =IF(C21<1," ",VLOOKUP(C21,MainAccountNO:MainAccounts,2,FALSE)) -> Bldg. Maint. | C21: 525 | D21: office cleaning & maintenance | E21: 1800 | I21: 725 | J21: 1550 | K21: 1800
A22: 16 | B22: =IF(C22<1," ",VLOOKUP(C22,MainAccountNO:MainAccounts,2,FALSE)) -> Bldg. Maint. | C22: 525 | D22: yard maintenance (mowing, snow removal) | E22: 1000 | K22: 1000
A23: 17 | B23: =IF(C23<1," ",VLOOKUP(C23,MainAccountNO:MainAccounts,2,FALSE)) -> Equip. Maint. | C23: 527 | D23: copier contract ($177/month plus printer fees) | E23: 2600 | I23: 1006 | J23: 1739 | K23: 1800
A24: 18 | B24: =IF(C24<1," ",VLOOKUP(C24,MainAccountNO:MainAccounts,2,FALSE)) -> Equip. Maint. | C24: 527 | D24: technology maintenance/repairs, security camera fee | E24: 2600 | I24: 920 | J24: 2100 | K24: 1000
A25: 19 | B25: =IF(C25<1," ",VLOOKUP(C25,MainAccountNO:MainAccounts,2,FALSE)) -> Equip. Maint. | C25: 527 | D25: yard equipment repair | E25: 500 | J25: 0 | K25: 500
A26: 20 | B26: =IF(C26<1," ",VLOOKUP(C26,MainAccountNO:MainAccounts,2,FALSE)) -> Banking Charges | C26: 529 | D26: bank charges | E26: 600 | I26: 332 | J26: 483 | K26: 600
A27: 21 | B27: =IF(C27<1," ",VLOOKUP(C27,MainAccountNO:MainAccounts,2,FALSE)) -> Banking Charges | C27: 529 | D27: Paysafe charges (debit and credit card) | E27: 750 | I27: 520 | J27: 4638 | K27: 9600
A28: 22 | B28: =IF(C28<1," ",VLOOKUP(C28,MainAccountNO:MainAccounts,2,FALSE)) -> Royalties/Fees | C28: 530 | D28: background checks for members | E28: 150 | K28: 150
A29: 23 | B29: =IF(C29<1," ",VLOOKUP(C29,MainAccountNO:MainAccounts,2,FALSE)) -> Royalties/Fees | C29: 530 | D29: CCCC dues - Certified Membership, Steer Membership | E29: 2000 | J29: 1830 | K29: 2000
A30: 24 | B30: =IF(C30<1," ",VLOOKUP(C30,MainAccountNO:MainAccounts,2,FALSE)) -> Royalties/Fees | C30: 530 | D30: Missio Nexus dues split 50/50 with IMI | E30: 675
A31: 25 | B31: =IF(C31<1," ",VLOOKUP(C31,MainAccountNO:MainAccounts,2,FALSE)) -> Royalties/Fees | C31: 530 | D31: annual government summary, registry | E31: 150 | I31: 40 | J31: 145 | K31: 150
A32: 26 | B32: =IF(C32<1," ",VLOOKUP(C32,MainAccountNO:MainAccounts,2,FALSE)) -> Royalties/Fees | C32: 530 | D32: CCLI License | E32: 175 | J32: 165 | K32: 175
A33: 27 | B33: =IF(C33<1," ",VLOOKUP(C33,MainAccountNO:MainAccounts,2,FALSE)) -> Office Supply | C33: 532 | D33: paper supplies, envelopes, etc. | E33: 1000 | I33: 893 | J33: 1136 | K33: 1500
A34: 28 | B34: =IF(C34<1," ",VLOOKUP(C34,MainAccountNO:MainAccounts,2,FALSE)) -> Office Supply | C34: 532 | D34: general supplies | E34: 500 | I34: 167 | K34: 500
A35: 29 | B35: =IF(C35<1," ",VLOOKUP(C35,MainAccountNO:MainAccounts,2,FALSE)) -> Postage & Parcels | C35: 533 | D35: receipts & staff mailings | E35: 2500 | I35: 1400 | J35: 2775 | K35: 3500
A36: 30 | B36: =IF(C36<1," ",VLOOKUP(C36,MainAccountNO:MainAccounts,2,FALSE)) -> Staff Training | C36: 537 | D36: staff training (4 @ $20) | E36: 80 | K36: 30
A37: 31 | B37: =IF(C37<1," ",VLOOKUP(C37,MainAccountNO:MainAccounts,2,FALSE)) -> Staff Training | C37: 537 | D37: Plan to Protect membership | E37: 500 | I37: 453 | J37: 453 | K37: 350
A38: 32 | B38: =IF(C38<1," ",VLOOKUP(C38,MainAccountNO:MainAccounts,2,FALSE)) -> Seminars & Registration | C38: 538 | D38: bookkeeping/admin seminars | E38: 500 | K38: 500 | L38: Training in DP?
A39: 33 | B39: =IF(C39<1," ",VLOOKUP(C39,MainAccountNO:MainAccounts,2,FALSE)) -> Rent Expense | C39: 543 | D39: 12 @ 600 - lease | E39: 7200 | I39: 4200 | J39: 7200 | K39: 7200
A40: 34 | B40: =IF(C40<1," ",VLOOKUP(C40,MainAccountNO:MainAccounts,2,FALSE)) -> Rent Expense | C40: 543 | D40: utilities | E40: 5500 | I40: 2440 | J40: 4203 | K40: 5500
A41: 35 | B41: =IF(C41<1," ",VLOOKUP(C41,MainAccountNO:MainAccounts,2,FALSE)) -> Telephone | C41: 547 | D41: telephone/Internet | E41: 1500 | I41: 730 | J41: 1314 | K41: 1500
A42: 36 | B42: =IF(C42<1," ",VLOOKUP(C42,MainAccountNO:MainAccounts,2,FALSE)) -> Telephone | C42: 547 | D42: MyFax - internet - 1 year | E42: 175 | J42: 164 | K42: 155
A43: 37 | B43: =IF(C43<1," ",VLOOKUP(C43,MainAccountNO:MainAccounts,2,FALSE)) -> Employment Insurance | C43: 586 | D43: employer portion of employment insurance | E43: 28000 | J43: 32200 | K43: 30000 | L43: consider base salary increase, decrease for retirees
A44: 38 | B44: =IF(C44<1," ",VLOOKUP(C44,MainAccountNO:MainAccounts,2,FALSE)) -> Executive Salaries | C44: 592 | D44: Finance Assistant salary | E44: 39890 | I44: 23267 | J44: 38180 | K44: 39890
A45: 39 | B45: =IF(C45<1," ",VLOOKUP(C45,MainAccountNO:MainAccounts,2,FALSE)) -> Canada Pension Plan | C45: 585 | D45: Finance Assistant employer CPP | E45: 2166 | K45: 2166
A46: 40 | B46: =IF(C46<1," ",VLOOKUP(C46,MainAccountNO:MainAccounts,2,FALSE)) -> Employment Insurance | C46: 586 | D46: Finance Assistant employer EI | E46: 910 | K46: 910
A47: 41 | B47: =IF(C47<1," ",VLOOKUP(C47,MainAccountNO:MainAccounts,2,FALSE)) -> Auto Reimbursement | C47: 563 | D47: Finance Assistant mileage reimbursement | E47: 90 | I47: 40 | J47: 70 | K47: 125
A48: 42 | B48: =IF(C48<1," ",VLOOKUP(C48,MainAccountNO:MainAccounts,2,FALSE)) -> Executive Salaries | C48: 592 | D48: NEW Position salary (Part time Admin 24 hours x $20) | E48: 26458 | K48: 31200
A49: 43 | B49: =IF(C49<1," ",VLOOKUP(C49,MainAccountNO:MainAccounts,2,FALSE)) -> Canada Pension Plan | C49: 585 | D49: New Postion employer CPP | E49: 1365 | K49: 1648
A50: 44 | B50: =IF(C50<1," ",VLOOKUP(C50,MainAccountNO:MainAccounts,2,FALSE)) -> Employment Insurance | C50: 586 | D50: New Position employer EI | E50: 615 | K50: 712
A51: 46
A52: 47 | D52: Office Renovations (974)
A53: 48 | B53: =IF(C53<1," ",VLOOKUP(C53,MainAccountNO:MainAccounts,2,FALSE)) -> Special Projects | C53: 580 | D53: renovations | E53: 500 | K53: 500
A54: 49 | B54: =IF(C54<1," ",VLOOKUP(C54,MainAccountNO:MainAccounts,2,FALSE)) -> Special Projects | C54: 580 | D54: yard enhancement | E54: 250 | K54: 250
A55: 50
A56: 51 | D56: CLT (978)
A57: 52 | B57: =IF(C57<1," ",VLOOKUP(C57,MainAccountNO:MainAccounts,2,FALSE)) -> Food for Outreach/Meetings | C57: 515 | D57: CLT - food - Face to face Meetings x2 | E57: 750 | I57: 200 | J57: 343 | K57: 750
A58: 53 | B58: =IF(C58<1," ",VLOOKUP(C58,MainAccountNO:MainAccounts,2,FALSE)) -> Staff Training | C58: 537 | D58: CLT - leadership development | E58: 500 | K58: 500
A59: 54 | B59: =IF(C59<1," ",VLOOKUP(C59,MainAccountNO:MainAccounts,2,FALSE)) -> Motel/Hotel | C59: 546 | D59: CLT - lodging | E59: 1200 | K59: 1200
A60: 55 | B60: =IF(C60<1," ",VLOOKUP(C60,MainAccountNO:MainAccounts,2,FALSE)) -> Gas & Oil Auto | C60: 549 | D60: CLT - gas | E60: 500 | J60: 160 | K60: 500
A61: 56 | B61: =IF(C61<1," ",VLOOKUP(C61,MainAccountNO:MainAccounts,2,FALSE)) -> Commercial Travel | C61: 551 | D61: CLT - travel | E61: 1500 | J61: 273 | K61: 1500
A62: 57 | B62: =IF(C62<1," ",VLOOKUP(C62,MainAccountNO:MainAccounts,2,FALSE)) -> Motel/Hotel | C62: 546 | D62: CLT - facility costs | E62: 100 | K62: 100
A63: 58
A64: 59 | D64: ELT
A65: 60 | B65: =IF(C65<1," ",VLOOKUP(C65,MainAccountNO:MainAccounts,2,FALSE)) -> Food for Outreach/Meetings | C65: 515 | D65: ELT - food | E65: 400 | K65: 400
A66: 61 | B66: =IF(C66<1," ",VLOOKUP(C66,MainAccountNO:MainAccounts,2,FALSE)) -> Gas & Oil Auto | C66: 549 | D66: ELT - car travel - 2600 km x $24/100km | E66: 700 | K66: 700
A67: 62 | B67: =IF(C67<1," ",VLOOKUP(C67,MainAccountNO:MainAccounts,2,FALSE)) -> Commercial Travel | C67: 551 | D67: ELT airfare to US | E67: 650 | K67: 650
A68: 63 | B68: =IF(C68<1," ",VLOOKUP(C68,MainAccountNO:MainAccounts,2,FALSE)) -> Motel/Hotel | C68: 546 | D68: ELT - car travel 2 nights motel | E68: 250 | K68: 250
A69: 64
A70: 65 | D70: Field Director (975)
A71: 66 | B71: =IF(C71<1," ",VLOOKUP(C71,MainAccountNO:MainAccounts,2,FALSE)) -> Commercial Travel | C71: 551 | D71: FD airfare to US - Board meeting | E71: 650 | K71: 650
A72: 67
A73: 68 | D73: Executive Director (980)
A74: 69 | B74: =IF(C74<1," ",VLOOKUP(C74,MainAccountNO:MainAccounts,2,FALSE)) -> Equip. Maint. | C74: 527 | D74: ED technology needs | E74: 300 | K74: 300
A75: 70 | B75: =IF(C75<1," ",VLOOKUP(C75,MainAccountNO:MainAccounts,2,FALSE)) -> Gas & Oil Auto | C75: 549 | D75: ED travel | E75: 150 | K75: 150
A76: 71 | B76: =IF(C76<1," ",VLOOKUP(C76,MainAccountNO:MainAccounts,2,FALSE)) -> Telephone | C76: 547 | D76: ED phone | E76: 300 | I76: 260 | J76: 560 | K76: 300
A77: 72 | B77: =IF(C77<1," ",VLOOKUP(C77,MainAccountNO:MainAccounts,2,FALSE)) -> Meal & Entertainment | C77: 553 | D77: ED meals while traveling | E77: 500 | I77: 545 | J77: 780 | K77: 500
A78: 73 | B78: =IF(C78<1," ",VLOOKUP(C78,MainAccountNO:MainAccounts,2,FALSE)) -> Commercial Travel | C78: 551 | D78: ED commercial travel | E78: 2000 | K78: 2000
A79: 74 | B79: =IF(C79<1," ",VLOOKUP(C79,MainAccountNO:MainAccounts,2,FALSE)) -> Motel/Hotel | C79: 546 | D79: ED hotels | E79: 1600 | I79: 270 | J79: 820 | K79: 1600
A80: 75 | B80: =IF(C80<1," ",VLOOKUP(C80,MainAccountNO:MainAccounts,2,FALSE)) -> Auto Reimbursement | C80: 563 | D80: ED car rental | E80: 400 | J80: 78 | K80: 400
A81: 76 | B81: =IF(C81<1," ",VLOOKUP(C81,MainAccountNO:MainAccounts,2,FALSE)) -> Ministry Expense | C81: 587 | D81: ED ministry expenses inc. mileage reimbursement | E81: 5000 | I81: 3675 | J81: 5580 | K81: 5000
A82: 77 | B82: =IF(C82<1," ",VLOOKUP(C82,MainAccountNO:MainAccounts,2,FALSE)) -> Staff Training | C82: 537 | D82: ED training resources | E82: 900 | I82: 42 | J82: 140 | K82: 900
A83: 78 | B83: =IF(C83<1," ",VLOOKUP(C83,MainAccountNO:MainAccounts,2,FALSE)) -> Office Supply | C83: 532 | D83: ED general supplies | E83: 200 | I83: 40 | J83: 270 | K83: 200
A84: 79 | B84: =IF(C84<1," ",VLOOKUP(C84,MainAccountNO:MainAccounts,2,FALSE)) -> Seminars & Registration | C84: 538 | D84: ED Missio Nexus | E84: 350 | K84: 350
A85: 80
A86: 81 | D86: Board of Directors (977) | H86: =IF(G86<=$G$1,"","OUT") -> 
A87: 82 | B87: =IF(C87<1," ",VLOOKUP(C87,MainAccountNO:MainAccounts,2,FALSE)) -> Food for Outreach/Meetings | C87: 515 | D87: food for board meetings | E87: 1000 | I87: 490 | J87: 1213 | K87: 1000
A88: 83 | B88: =IF(C88<1," ",VLOOKUP(C88,MainAccountNO:MainAccounts,2,FALSE)) -> Staff Training | C88: 537 | D88: training materials for board | E88: 350 | I88: 170 | J88: 320 | K88: 350
A89: 84 | B89: =IF(C89<1," ",VLOOKUP(C89,MainAccountNO:MainAccounts,2,FALSE)) -> Motel/Hotel | C89: 546 | D89: board lodging (Aug & Feb) | E89: 5200 | I89: 2480 | J89: 5260 | K89: 5200
A90: 85 | B90: =IF(C90<1," ",VLOOKUP(C90,MainAccountNO:MainAccounts,2,FALSE)) -> Gas & Oil Auto | C90: 549 | D90: board gas reimbursement | E90: 500 | J90: 412 | K90: 500
A91: 86 | B91: =IF(C91<1," ",VLOOKUP(C91,MainAccountNO:MainAccounts,2,FALSE)) -> Commercial Travel | C91: 551 | D91: airfare | E91: 1800 | I91: 1187 | J91: 1187 | K91: 1800
A92: 87 | B92: =IF(C92<1," ",VLOOKUP(C92,MainAccountNO:MainAccounts,2,FALSE)) -> General Supply & Service | C92: 545 | D92: supplies/resources | E92: 200 | K92: 200
A93: 88
A94: 89 | D94: Admin Staffing
A95: 90 | B95: =IF(C95<1," ",VLOOKUP(C95,MainAccountNO:MainAccounts,2,FALSE)) -> Canadian Gifts-Staff | C95: 410 | D95: G Hamilton CDN Support | E95: 38915 | K95: 37070
A96: 91 | B96: =IF(C96<1," ",VLOOKUP(C96,MainAccountNO:MainAccounts,2,FALSE)) -> US Gifts | C96: 430 | D96: G Hamilton US Support | E96: 47250 | K96: 41400
A97: 92 | B97: =IF(C97<1," ",VLOOKUP(C97,MainAccountNO:MainAccounts,2,FALSE)) -> Executive Salaries | C97: 592 | D97: G Hamilton Executive Salary (12 @ $1600) | E97: 19200 | K97: 19200
A98: 93 | B98: =IF(C98<1," ",VLOOKUP(C98,MainAccountNO:MainAccounts,2,FALSE)) -> Ministry Expense | C98: 587 | D98: G Hamilton MER | E98: 14500 | K98: 13500
A99: 94 | B99: =IF(C99<1," ",VLOOKUP(C99,MainAccountNO:MainAccounts,2,FALSE)) -> Salary Expense | C99: 591 | D99: G Hamilton Salary | E99: =0.9*(E95+E96)-E98 -> 63048.5 | K99: 57123
A100: 95 | B100: =IF(C100<1," ",VLOOKUP(C100,MainAccountNO:MainAccounts,2,FALSE)) -> Operations Assessment | C100: 484 | D100: operations assessments | E100: =-0.1*(E95+E96) -> -8616.5 | K100: -7847

Sheet S10
B1: Mobilization | C1: 80 | D1: Choose Rank Number --------> | G1: 4 | I1: Amount of 23/24 budget spent by Oct 31 | J1: Total From Last 12 Months - Nov22-Oct23 | K1: Last Budget 23/24
D2: Total Income | E2: =SUM(IF(S_10FieldRank<=S_10Choice,IF(S_10AccNO<=LastIncome,S_10Amount,0),0)) -> 1800
D3: Total Expense | E3: =SUM(IF(S_10FieldRank<=S_10Choice,IF(S_10AccNO>LastIncome,S_10Amount,0),0)) -> 22075
D4: Difference | E4: =E2-E3 -> -20275
A5: Line | B5: Account Description | C5: Acc_NO | D5: Field Detail | E5: Amount
A7: 1 | D7: Canada Field Mobilization
A8: 2 | B8: =IF(C8<1," ",VLOOKUP(C8,MainAccountNO:MainAccounts,2,FALSE)) -> Gifts to Affiliated Org. | C8: 517 | D8: scholarships Prairie, Millar, Steinbach, Nipawin $750 each | E8: 3000 | H8: =IF(G8<=$G$1,"","OUT") ->  | I8: 2000 | K8: 3000
A9: 3 | B9: =IF(C9<1," ",VLOOKUP(C9,MainAccountNO:MainAccounts,2,FALSE)) -> Postage & Parcels | C9: 533 | D9: shipping displays | E9: 100 | J9: 57 | K9: 100
A10: 4 | B10: =IF(C10<1," ",VLOOKUP(C10,MainAccountNO:MainAccounts,2,FALSE)) -> Royalties/Fees | C10: 530 | D10: repping fee | E10: 100 | K10: 150
A11: 5 | B11: =IF(C11<1," ",VLOOKUP(C11,MainAccountNO:MainAccounts,2,FALSE)) -> General Supply & Service | C11: 545 | D11: supplies for displays | E11: 100 | J11: 31
A12: 6 | B12: =IF(C12<1," ",VLOOKUP(C12,MainAccountNO:MainAccounts,2,FALSE)) -> Food for Outreach/Meetings | C12: 515 | D12: Food re interviews/orientation | E12: 100 | K12: 100
A13: 7 | B13: =IF(C13<1," ",VLOOKUP(C13,MainAccountNO:MainAccounts,2,FALSE)) -> Gas & Oil Auto | C13: 549 | D13: gas re ongoing connection with Cnd candidates/appointees | E13: 150 | K13: 150
A14: 8 | B14: =IF(C14<1," ",VLOOKUP(C14,MainAccountNO:MainAccounts,2,FALSE)) -> Audit & Legal Fees | C14: 521 | D14: legal consultation re. immigration | E14: 300 | K14: 300
A15: 9
A16: 10 | D16: US Mobilization
A17: 11 | B17: =IF(C17<1," ",VLOOKUP(C17,MainAccountNO:MainAccounts,2,FALSE)) -> Gifts to Affiliated Org. | C17: 517 | D17: US mobilization parity payment | E17: 6800 | I17: 6790 | J17: 13582 | K17: 6800
A18: 12
A19: 13 | B19: =IF(C19<1," ",VLOOKUP(C19,MainAccountNO:MainAccounts,2,FALSE)) ->  | D19: Canada Field Recruitment
A20: 14 | B20: Meals & Entertainment | C20: 553 | D20: Colleges, otther recrutiment | E20: 300
A21: 15 | B21: Gas & Oil Auto | C21: 549 | D21: Steinbach; Millar Winnipeg (Morgan X2) | E21: 630
A22: 16 | B22: Gas & Oil Auto | C22: 549 | D22: Nipawin Bible College (Morgan X2) | E22: 1260
A23: 17 | B23: Motel/Hotel | C23: 546 | D23: Nipawin Bible College (Morgan X2) | E23: 230
A24: 18 | B24: Gas & Oil Auto | C24: 549 | D24: Millar SK (Josh X2) | E24: 220
A25: 19 | B25: Gas & Oil Auto | C25: 549 | D25: Millar BC (Greg/Byron X2) | E25: 440
A26: 20 | B26: Motel/Hotel | C26: 546 | D26: Millar BC (Greg/Byron X2) | E26: 280
A27: 21 | B27: =IF(C27<1," ",VLOOKUP(C27,MainAccountNO:MainAccounts,2,FALSE)) -> 
A28: 22 | B28: =IF(C28<1," ",VLOOKUP(C28,MainAccountNO:MainAccounts,2,FALSE)) ->  | D28: EnGage!
A29: 23 | B29: =IF(C29<1," ",VLOOKUP(C29,MainAccountNO:MainAccounts,2,FALSE)) -> Special Projects | C29: 580 | D29: scholarship for EnGage! Alaska or Russia | E29: 500 | K29: 500
A30: 24 | B30: =IF(C30<1," ",VLOOKUP(C30,MainAccountNO:MainAccounts,2,FALSE)) -> Advertising | C30: 503 | D30: recruitment for EnGage! | E30: 100
A31: 25
A32: 26 | B32: =IF(C32<1," ",VLOOKUP(C32,MainAccountNO:MainAccounts,2,FALSE)) ->  | D32: Mobilization Follow-up
A33: 27 | B33: =IF(C33<1," ",VLOOKUP(C33,MainAccountNO:MainAccounts,2,FALSE)) -> Special Projects | C33: 580 | D33: Mobilization Follow-up | E33: 600 | K33: 600
A34: 28 | B34: =IF(C34<1," ",VLOOKUP(C34,MainAccountNO:MainAccounts,2,FALSE)) -> 
A35: 29 | B35: =IF(C35<1," ",VLOOKUP(C35,MainAccountNO:MainAccounts,2,FALSE)) ->  | D35: Mobilization Pipeline Mentoring
A36: 30 | B36: =IF(C36<1," ",VLOOKUP(C36,MainAccountNO:MainAccounts,2,FALSE)) -> Gas & Oil Auto | C36: 549 | D36: follow up connection with appointees | E36: 110 | K36: 100
A37: 31 | B37: =IF(C37<1," ",VLOOKUP(C37,MainAccountNO:MainAccounts,2,FALSE)) -> Commercial Travel | C37: 551 | D37: flight/car rental | E37: 1045 | K37: 950
A38: 32 | B38: =IF(C38<1," ",VLOOKUP(C38,MainAccountNO:MainAccounts,2,FALSE)) -> Motel/Hotel | C38: 546 | D38: motel | E38: 560 | K38: 450
A39: 33
A40: 34 | B40: =IF(C40<1," ",VLOOKUP(C40,MainAccountNO:MainAccounts,2,FALSE)) ->  | D40: Internship (925)
A41: 35 | B41: =IF(C41<1," ",VLOOKUP(C41,MainAccountNO:MainAccounts,2,FALSE)) -> Project Income - CND Ind | C41: 440 | D41: CAN individuals | E41: 1000 | K41: 1000
A42: 36 | B42: =IF(C42<1," ",VLOOKUP(C42,MainAccountNO:MainAccounts,2,FALSE)) -> Project Income - CDN Churches | C42: 441 | D42: CAN churches | E42: 1000 | K42: 1000
A43: 37 | B43: =IF(C43<1," ",VLOOKUP(C43,MainAccountNO:MainAccounts,2,FALSE)) -> Operations Assessment | C43: 484 | D43: assessment on donations | E43: -200 | K43: -200
A44: 38 | B44: =IF(C44<1," ",VLOOKUP(C44,MainAccountNO:MainAccounts,2,FALSE)) -> Motel/Hotel | C44: 546 | D44: 1 - 8 months living expenses @ $550/m | E44: 4400 | K44: 4000
A45: 39 | B45: =IF(C45<1," ",VLOOKUP(C45,MainAccountNO:MainAccounts,2,FALSE)) -> Gas & Oil Auto | C45: 549 | D45: supervision visits - gas - apx 1500 km | E45: 250 | K45: 220
A46: 40 | B46: =IF(C46<1," ",VLOOKUP(C46,MainAccountNO:MainAccounts,2,FALSE)) -> Gas & Oil Auto | C46: 549 | D46: 1 training session or retreat - gas | E46: 250 | K46: 220
A47: 41 | B47: =IF(C47<1," ",VLOOKUP(C47,MainAccountNO:MainAccounts,2,FALSE)) -> Staff Training | C47: 537 | D47: training expenses (i.e. resources) | E47: 130 | K47: 120
A48: 42 | B48: =IF(C48<1," ",VLOOKUP(C48,MainAccountNO:MainAccounts,2,FALSE)) -> Meal & Entertainment | C48: 553 | D48: 6 meals training session ($20/meal) | E48: 120 | K48: 108

Sheet S11
B1: Midway Ministries | C1: 51 | D1: Choose Rank Number --------> | G1: 10 | I1: Amount of 23/24 budget spent by Oct 31 | J1: Total From Last 12 Months - Nov22-Oct23 | K1: Last Budget
D2: Total Income | E2: =SUM(IF(S_11FieldRank<=S_11Choice,IF(S_11AccNO<=LastIncome,S_11Amount,0),0)) -> 859800 | K2: 23/24
D3: Total Expense | E3: =SUM(IF(S_11FieldRank<=S_11Choice,IF(S_11AccNO>LastIncome,S_11Amount,0),0)) -> 660050
D4: Difference | E4: =E2-E3 -> 199750
A5: Line | B5: Account Description | C5: Acc_NO | D5: Field Detail | E5: Amount
A7: 1 | D7: Midway Bible Camp & Office (946) | H7: =IF(G7<=$G$1,"","OUT") -> 
A8: 2
A9: 3 | B9: =IF(C9<1," ",VLOOKUP(C9,MainAccountNO:MainAccounts,2,FALSE)) -> Gifts in hand | C9: 400 | D9: apx balance on hand @ 03/31/2024 | E9: 125000 | K9: 100000
A10: 4 | B10: =IF(C10<1," ",VLOOKUP(C10,MainAccountNO:MainAccounts,2,FALSE)) -> Project Income - CND Ind | C10: 440 | D10: CDN gifts | E10: 52000 | J10: 51460 | K10: 56000
A11: 5 | B11: =IF(C11<1," ",VLOOKUP(C11,MainAccountNO:MainAccounts,2,FALSE)) -> Project Income - CDN Churches | C11: 441 | D11: CDN gifts | E11: 82000 | J11: 81697 | K11: 100000
A12: 6 | B12: =IF(C12<1," ",VLOOKUP(C12,MainAccountNO:MainAccounts,2,FALSE)) -> Other income | C12: 455 | D12: camp registrations | E12: 20000 | J12: 17695 | K12: 50000
A13: 7 | B13: =IF(C13<1," ",VLOOKUP(C13,MainAccountNO:MainAccounts,2,FALSE)) -> Operations Assessment | C13: 484 | D13: Operations assessment | E13: =-0.1*(E10+E11) -> -13400 | K13: -15600
A14: 8 | B14: =IF(C14<1," ",VLOOKUP(C14,MainAccountNO:MainAccounts,2,FALSE)) -> Advertising | C14: 503 | D14: camp promotion | E14: 2500 | I14: 533 | J14: 2285 | K14: 1500
A15: 9 | B15: =IF(C15<1," ",VLOOKUP(C15,MainAccountNO:MainAccounts,2,FALSE)) -> Small Equip. Purchase | C15: 511 | D15: office sports & camp equipment, tools, generator | E15: 2000 | I15: 365 | J15: 2235.82 | K15: 100
A16: 10 | B16: =IF(C16<1," ",VLOOKUP(C16,MainAccountNO:MainAccounts,2,FALSE)) -> Food for Outreach/Meetings | C16: 515 | D16: food & kitchen supplies | E16: 30000 | I16: 27394 | J16: 29189 | K16: 20000
A17: 11 | B17: =IF(C17<1," ",VLOOKUP(C17,MainAccountNO:MainAccounts,2,FALSE)) -> Bldg, Equip & Liab. Ins. | C17: 519 | D17: insurance for vehicles | E17: 4000 | I17: =142+723+2566 -> 3431 | J17: =142 -> 142 | K17: 6000
A18: 12 | B18: =IF(C18<1," ",VLOOKUP(C18,MainAccountNO:MainAccounts,2,FALSE)) -> Bldg, Equip & Liab. Ins. | C18: 519 | D18: insurance for camp and facilities & office at house | E18: 12000 | J18: =11226+12 -> 11238 | K18: 11350
A19: 13 | B19: =IF(C19<1," ",VLOOKUP(C19,MainAccountNO:MainAccounts,2,FALSE)) -> Bldg. Maint. | C19: 525 | D19: maintenance | E19: 4000 | I19: 2894 | J19: 4070 | K19: 500
A20: 14 | B20: =IF(C20<1," ",VLOOKUP(C20,MainAccountNO:MainAccounts,2,FALSE)) -> Equip. Maint. | C20: 527 | D20: equipment maintenance | E20: 2000 | I20: =1512+145 -> 1657 | J20: 1579 | K20: 3000
A21: 15 | B21: =IF(C21<1," ",VLOOKUP(C21,MainAccountNO:MainAccounts,2,FALSE)) -> Banking Charges | C21: 529 | D21: donation processing fees | E21: 250 | I21: 197
A22: 16 | B22: =IF(C22<1," ",VLOOKUP(C22,MainAccountNO:MainAccounts,2,FALSE)) -> Royalties/Fees | C22: 530 | D22: background checks | E22: 0 | J22: 0 | K22: 200
A23: 17 | B23: =IF(C23<1," ",VLOOKUP(C23,MainAccountNO:MainAccounts,2,FALSE)) -> Royalties/Fees | C23: 530 | D23: domain fee | E23: 100 | I23: 52 | J23: 52 | K23: 40
A24: 18 | B24: =IF(C24<1," ",VLOOKUP(C24,MainAccountNO:MainAccounts,2,FALSE)) -> Royalties/Fees | C24: 530 | D24: Manitoba Annual return | E24: 100 | I24: 60 | J24: 60 | K24: 280
A25: 19 | B25: =IF(C25<1," ",VLOOKUP(C25,MainAccountNO:MainAccounts,2,FALSE)) -> Office Supply | C25: 532 | D25: office supplies | E25: 1000 | I25: 613 | J25: 1094 | K25: 1050
A26: 20 | B26: =IF(C26<1," ",VLOOKUP(C26,MainAccountNO:MainAccounts,2,FALSE)) -> Postage & Parcels | C26: 533 | D26: postage | E26: 1200 | I26: 39 | J26: 937 | K26: 1400
A27: 21 | B27: =IF(C27<1," ",VLOOKUP(C27,MainAccountNO:MainAccounts,2,FALSE)) -> Staff Training | C27: 537 | D27: staff education & training resources | E27: 800 | I27: 170 | J27: 690 | K27: 1000
A28: 22 | B28: =IF(C28<1," ",VLOOKUP(C28,MainAccountNO:MainAccounts,2,FALSE)) -> Rent Expense | C28: 543 | D28: house utilities & property taxes | E28: 7000 | I28: 4891 | J28: =5890.61+794.71 -> 6685.32 | K28: 7900
A29: 23 | B29: =IF(C29<1," ",VLOOKUP(C29,MainAccountNO:MainAccounts,2,FALSE)) -> General Supply & Service | C29: 545 | D29: camp program supplies | E29: 8000 | I29: 9945 | J29: 10204 | K29: 9000
A30: 24 | B30: =IF(C30<1," ",VLOOKUP(C30,MainAccountNO:MainAccounts,2,FALSE)) -> Telephone | C30: 547 | D30: cell phone, fax | E30: 2200 | I30: 646 | J30: 2421 | K30: 2000
A31: 25 | B31: =IF(C31<1," ",VLOOKUP(C31,MainAccountNO:MainAccounts,2,FALSE)) -> Gas & Oil Auto | C31: 549 | D31: public relations, camp vehicles, generators | E31: 19000 | I31: 10684 | J31: 13475 | K31: 12000
A32: 26 | B32: =IF(C32<1," ",VLOOKUP(C32,MainAccountNO:MainAccounts,2,FALSE)) -> Auto Maintenance | C32: 550 | D32: camp vehicle registration & maintenance | E32: 4000 | I32: =136+400 -> 536 | J32: 3091 | K32: 5500
A33: 27 | B33: =IF(C33<1," ",VLOOKUP(C33,MainAccountNO:MainAccounts,2,FALSE)) -> Motel/Hotel | C33: 546 | D33: camp public relations & recruitment - hotels | E33: 0 | H33: =IF(G33<=$G$1,"","OUT") ->  | J33: 99 | K33: 6250
A34: 28 | B34: =IF(C34<1," ",VLOOKUP(C34,MainAccountNO:MainAccounts,2,FALSE)) -> Commercial Travel | C34: 551 | D34: camp public relations & recruitment - flight | E34: 0 | J34: 0 | K34: 800
A35: 29 | B35: =IF(C35<1," ",VLOOKUP(C35,MainAccountNO:MainAccounts,2,FALSE)) -> Auto Reimbursement | C35: 563 | D35: camp public relations & recruitment - car rental | E35: 1500 | H35: =IF(G35<=$G$1,"","OUT") ->  | J35: 2481 | K35: 300
A36: 30 | B36: =IF(C36<1," ",VLOOKUP(C36,MainAccountNO:MainAccounts,2,FALSE)) -> Speaker Honorarium | C36: 559 | D36: speaker honorariums | E36: 2000 | J36: 1824 | K36: 1120
A37: 31 | B37: =IF(C37<1," ",VLOOKUP(C37,MainAccountNO:MainAccounts,2,FALSE)) -> Auto Reimbursement | C37: 563 | D37: mileage use of Suburban | E37: 4000 | I37: 3828 | K37: 1000
A38: 32 | B38: =IF(C38<1," ",VLOOKUP(C38,MainAccountNO:MainAccounts,2,FALSE)) -> Salary Expense | C38: 591 | D38: salary for program director & admin director | E38: 15000 | I38: 14750 | J38: =13884+317+549 -> 14750 | K38: 12000
A39: 33 | B39: =IF(C39<1," ",VLOOKUP(C39,MainAccountNO:MainAccounts,2,FALSE)) -> Special Projects | C39: 580 | D39: Bus purchase | E39: 13600
A40: 34 | B40: =IF(C40<1," ",VLOOKUP(C40,MainAccountNO:MainAccounts,2,FALSE)) -> Special Projects | C40: 580 | D40: NYC reg/van use/meals | J40: 2748 | K40: 1500
A41: 35 | B41: =IF(C41<1," ",VLOOKUP(C41,MainAccountNO:MainAccounts,2,FALSE)) -> Special Projects | C41: 580 | D41: SALT Split Lake fuel/snacks | K41: 6400
A42: 36 | B42: =IF(C42<1," ",VLOOKUP(C42,MainAccountNO:MainAccounts,2,FALSE)) -> Special Projects | C42: 580 | D42: SALT Nelson House fuel/snacks | K42: 4600
A43: 37 | B43: =IF(C43<1," ",VLOOKUP(C43,MainAccountNO:MainAccounts,2,FALSE)) -> Special Projects | C43: 580 | D43: SALT Thompson fuel/snacks | K43: 1100
A44: 38 | B44: =IF(C44<1," ",VLOOKUP(C44,MainAccountNO:MainAccounts,2,FALSE)) -> Special Projects | C44: 580 | D44: Youth Conference (Steinbach Bible College) | K44: 800
A45: 39
A46: 40 | D46: MBC Site 6 Development (943)
A47: 41 | B47: =IF(C47<1," ",VLOOKUP(C47,MainAccountNO:MainAccounts,2,FALSE)) -> Gifts in hand | C47: 400 | D47: apx balance on hand @ 03/31/2024 | E47: 233000 | K47: 157820
A48: 42 | B48: =IF(C48<1," ",VLOOKUP(C48,MainAccountNO:MainAccounts,2,FALSE)) -> Project Income - CND Ind | C48: 440 | D48: CDN gifts | E48: 50000 | J48: 43376 | K48: 125000
A49: 43 | B49: =IF(C49<1," ",VLOOKUP(C49,MainAccountNO:MainAccounts,2,FALSE)) -> Project Income - CDN Churches | C49: 441 | D49: CDN gifts | E49: 100000 | J49: 81698 | K49: 125000
A50: 44 | B50: =IF(C50<1," ",VLOOKUP(C50,MainAccountNO:MainAccounts,2,FALSE)) -> Project Income - US | C50: 442 | D50: US gifts | E50: 2000 | J50: 1215 | K50: 50000
A51: 45 | B51: =IF(C51<1," ",VLOOKUP(C51,MainAccountNO:MainAccounts,2,FALSE)) -> Operations Assessment | C51: 484 | D51: Operations assessment | E51: =-0.1*(E48+E49+E50) -> -15200 | K51: -30000
A52: 46 | B52: =IF(C52<1," ",VLOOKUP(C52,MainAccountNO:MainAccounts,2,FALSE)) -> Other income | C52: 455 | D52: Sale of 151 Deerwood | E52: 175000 | K52: 175000
A53: 47 | B53: =IF(C53<1," ",VLOOKUP(C53,MainAccountNO:MainAccounts,2,FALSE)) -> Special Projects | C53: 580 | D53: Site Prep | E53: 45000 | K53: 45000
A54: 48 | B54: =IF(C54<1," ",VLOOKUP(C54,MainAccountNO:MainAccounts,2,FALSE)) -> Special Projects | C54: 580 | D54: Access Road | K54: 180000
A55: 49 | B55: =IF(C55<1," ",VLOOKUP(C55,MainAccountNO:MainAccounts,2,FALSE)) -> Special Projects | C55: 580 | D55: Aggregate | E55: 20000 | K55: 20000
A56: 50 | B56: =IF(C56<1," ",VLOOKUP(C56,MainAccountNO:MainAccounts,2,FALSE)) -> Special Projects | C56: 580 | D56: foundations, outhouses, floating dock | E56: 220000 | K56: 220000
A57: 51 | B57: =IF(C57<1," ",VLOOKUP(C57,MainAccountNO:MainAccounts,2,FALSE)) -> Special Projects | C57: 580 | D57: close in buildings, platforms, tents | E57: 100000 | K57: 175000
A58: 52 | B58: =IF(C58<1," ",VLOOKUP(C58,MainAccountNO:MainAccounts,2,FALSE)) -> Special Projects | C58: 580 | D58: insulating, wiring, plumbing | E58: 82000 | K58: 20000
A59: 53 | B59: =IF(C59<1," ",VLOOKUP(C59,MainAccountNO:MainAccounts,2,FALSE)) -> Special Projects | C59: 580 | D59: cabin tents | E59: 20000 | K59: 10000
A60: 54 | B60: =IF(C60<1," ",VLOOKUP(C60,MainAccountNO:MainAccounts,2,FALSE)) -> Special Projects | C60: 580 | D60: outhouses | E60: 10000
A61: 55 | B61: =IF(C61<1," ",VLOOKUP(C61,MainAccountNO:MainAccounts,2,FALSE)) -> 
A62: 56 | B62: =IF(C62<1," ",VLOOKUP(C62,MainAccountNO:MainAccounts,2,FALSE)) ->  | D62: MBC Suburban (944)
A63: 57 | B63: =IF(C63<1," ",VLOOKUP(C63,MainAccountNO:MainAccounts,2,FALSE)) -> Gifts in hand | C63: 400 | D63: apx balance on hand | E63: 12400
A64: 58 | B64: =IF(C64<1," ",VLOOKUP(C64,MainAccountNO:MainAccounts,2,FALSE)) -> Auto Maintenance | C64: 550 | D64: maintenance | E64: 4000 | I64: =1702+113 -> 1815 | J64: 2470
A65: 59 | B65: =IF(C65<1," ",VLOOKUP(C65,MainAccountNO:MainAccounts,2,FALSE)) -> Auto Maintenance | C65: 550 | D65: transfers from camp & staff for usuage | E65: -5000 | I65: =-3828-452.8-398.6 -> -4679.4
A66: 60 | B66: =IF(C66<1," ",VLOOKUP(C66,MainAccountNO:MainAccounts,2,FALSE)) -> 
A67: 61
A68: 62 | D68: Berge Lake Bible Camp (948) | L68: Budgeting for two weeks in 2024; cost overuns from 2 weeks operations in 2023
A69: 63 | B69: =IF(C69<1," ",VLOOKUP(C69,MainAccountNO:MainAccounts,2,FALSE)) -> Gifts in hand | C69: 400 | D69: apx balance on hand @ 03/31/2024 | E69: 19000 | K69: 20600
A70: 64 | B70: =IF(C70<1," ",VLOOKUP(C70,MainAccountNO:MainAccounts,2,FALSE)) -> Project Income - CND Ind | C70: 440 | D70: CDN gifts | E70: 15000 | J70: 19990 | K70: 4000
A71: 65 | B71: =IF(C71<1," ",VLOOKUP(C71,MainAccountNO:MainAccounts,2,FALSE)) -> Project Income - CDN Churches | C71: 441 | D71: CDN gifts | E71: 5000 | J71: 3433 | K71: 3500
A72: 66 | B72: =IF(C72<1," ",VLOOKUP(C72,MainAccountNO:MainAccounts,2,FALSE)) -> Other income | C72: 455 | D72: camp registrations | E72: 0 | K72: 3000
A73: 67 | B73: =IF(C73<1," ",VLOOKUP(C73,MainAccountNO:MainAccounts,2,FALSE)) -> Operations Assessment | C73: 484 | D73: Operations assessment | E73: =-0.1*(E70+E71) -> -2000 | K73: -750
A74: 68 | B74: =IF(C74<1," ",VLOOKUP(C74,MainAccountNO:MainAccounts,2,FALSE)) -> Food for Outreach/Meetings | C74: 515 | D74: Kitchen/grocery expense | E74: 9000 | H74: =IF(G74<=$G$1,"","OUT") ->  | I74: 5793 | J74: 5913 | K74: 2000
A75: 69 | B75: =IF(C75<1," ",VLOOKUP(C75,MainAccountNO:MainAccounts,2,FALSE)) -> Bldg, Equip & Liab. Ins. | C75: 519 | D75: insurance for camp and facilities | E75: 1000 | H75: =IF(G75<=$G$1,"","OUT") ->  | K75: 250
A76: 70 | B76: =IF(C76<1," ",VLOOKUP(C76,MainAccountNO:MainAccounts,2,FALSE)) -> General Supply & Service | C76: 545 | D76: camp program supplies | E76: 5200 | H76: =IF(G76<=$G$1,"","OUT") ->  | I76: 5461 | J76: 7355 | K76: 1200
A77: 71 | B77: =IF(C77<1," ",VLOOKUP(C77,MainAccountNO:MainAccounts,2,FALSE)) -> Gas & Oil Auto | C77: 549 | D77: propane/fuel/oil for camp use | E77: 800
A78: 72 | B78: =IF(C78<1," ",VLOOKUP(C78,MainAccountNO:MainAccounts,2,FALSE)) -> Gas & Oil Auto | C78: 549 | D78: gas reimbursement for Roberts | E78: 1350
A79: 73 | B79: =IF(C79<1," ",VLOOKUP(C79,MainAccountNO:MainAccounts,2,FALSE)) -> Gas & Oil Auto | C79: 549 | D79: travel reimbursement for volunteers | E79: 6000 | H79: =IF(G79<=$G$1,"","OUT") ->  | I79: =2078+5985 -> 8063 | J79: 2300 | K79: 3300
A80: 74 | B80: =IF(C80<1," ",VLOOKUP(C80,MainAccountNO:MainAccounts,2,FALSE)) -> Speaker Honorarium | C80: 559 | D80: speaker honorariums | E80: 500 | H80: =IF(G80<=$G$1,"","OUT") ->  | J80: 400 | K80: 250
A81: 75 | B81: =IF(C81<1," ",VLOOKUP(C81,MainAccountNO:MainAccounts,2,FALSE)) -> Small Equip. Purchase | C81: 511 | D81: pump/equip replacement | E81: 1200 | H81: =IF(G81<=$G$1,"","OUT") ->  | K81: 500
A82: 76 | B82: =IF(C82<1," ",VLOOKUP(C82,MainAccountNO:MainAccounts,2,FALSE)) -> Advertising | C82: 503 | D82: camp promotion - printing & pictures | E82: 100 | K82: 140
A83: 77 | B83: =IF(C83<1," ",VLOOKUP(C83,MainAccountNO:MainAccounts,2,FALSE)) -> Postage & Parcels | C83: 533 | D83: For thank you cards | E83: 150 | J83: ? | K83: 120
A84: 78 | B84: =IF(C84<1," ",VLOOKUP(C84,MainAccountNO:MainAccounts,2,FALSE)) -> General Supply & Service | C84: 545 | D84: camp program supplies, Bibles | E84: 500 | I84: 432 | J84: 432 | K84: 400
A85: 79 | B85: =IF(C85<1," ",VLOOKUP(C85,MainAccountNO:MainAccounts,2,FALSE)) -> Gas & Oil Auto | C85: 549 | D85: Follow up outreach | E85: 1350 | K85: 250
A86: 80 | B86: =IF(C86<1," ",VLOOKUP(C86,MainAccountNO:MainAccounts,2,FALSE)) -> Motel/Hotel | C86: 546 | D86: Follow up outreach (2 rooms) | E86: 300 | K86: 300
A87: 81 | B87: =IF(C87<1," ",VLOOKUP(C87,MainAccountNO:MainAccounts,2,FALSE)) -> General Supply & Service | C87: 545 | D87: Follow up outreach (Food & building rental) | E87: 350 | K87: 350

Sheet S12
B1: Development | C1: 81 | D1: Choose Rank Number --------> | G1: 10 | I1: Amount of 23/24 budget spent by Oct 31 | J1: Total From Last 12 Months - Nov22-Oct23 | K1: Last Budget
D2: Total Income | E2: =SUM(IF(S_12FieldRank<=S_12Choice,IF(S_12AccNO<=LastIncome,S_12Amount,0),0)) -> 0 | K2: 23/24
D3: Total Expense | E3: =SUM(IF(S_12FieldRank<=S_12Choice,IF(S_12AccNO>LastIncome,S_12Amount,0),0)) -> 20000
D4: Difference | E4: =E2-E3 -> -20000
A5: Line | B5: Account Description | C5: Acc_NO | D5: Field Detail | E5: Amount | F5: Month | G5: Rank | H5: Out
H6: =IF(G6<=$G$1,"","OUT") -> 
A7: 1 | D7: Mailings
A8: 2 | B8: =IF(C8<1," ",VLOOKUP(C8,MainAccountNO:MainAccounts,2,FALSE)) -> Project Income - CND Ind | C8: 440 | D8: CDN gifts | E8: 0 | K8: 0
A9: 3 | B9: =IF(C9<1," ",VLOOKUP(C9,MainAccountNO:MainAccounts,2,FALSE)) -> Project Income - CDN Churches | C9: 441 | D9: CDN giffs | E9: 0 | K9: 0
A10: 4 | B10: =IF(C10<1," ",VLOOKUP(C10,MainAccountNO:MainAccounts,2,FALSE)) -> Operations Assessment | C10: 484 | D10: assessment on donations | E10: =SUM(E8:E9)*-0.1 -> 0 | K10: 0
A11: 6 | B11: =IF(C11<1," ",VLOOKUP(C11,MainAccountNO:MainAccounts,2,FALSE)) -> Postage & Parcels | C11: 533 | D11: appeal letter postage (2 mailings) | E11: 10000 | K11: 9000
A12: 7 | B12: =IF(C12<1," ",VLOOKUP(C12,MainAccountNO:MainAccounts,2,FALSE)) -> Postage & Parcels | C12: 533 | D12: Quarterly InterActions (4 mailings) | E12: 10000 | K12: 9000

Sheet S13
B1: Urban Fire | C1: 52 | D1: Choose Rank Number --------> | G1: 10 | I1: Amount of 23/24 budget spent by Oct 31 | J1: Total From Last 12 Months - Nov22-Oct23 | K1: Last Budget
D2: Total Income | E2: =SUM(IF(S_13FieldRank<=S_13Choice,IF(S_13AccNO<=LastIncome,S_13Amount,0),0)) -> 23400 | K2: 23/24
D3: Total Expense | E3: =SUM(IF(S_13FieldRank<=S_13Choice,IF(S_13AccNO>LastIncome,S_13Amount,0),0)) -> 11450
D4: Difference | E4: =E2-E3 -> 11950
A5: Line | B5: Account Description | C5: Acc_NO | D5: Field Detail | E5: Amount | F5: Month | G5: Rank | H5: Out
D6: Community
A7: 1 | B7: =IF(C7<1," ",VLOOKUP(C7,MainAccountNO:MainAccounts,2,FALSE)) -> Gifts in hand | C7: 400 | D7: apx balance on hand @ 03/31/2024 | E7: 18000 | H7: =IF(G7<=$G$1,"","OUT") ->  | K7: 17840
A8: 2 | B8: =IF(C8<1," ",VLOOKUP(C8,MainAccountNO:MainAccounts,2,FALSE)) -> Project Income - CND Ind | C8: 440 | D8: CAN individuals | E8: 3000 | I8: 1750 | J8: 3700 | K8: 4000
A9: 3 | B9: =IF(C9<1," ",VLOOKUP(C9,MainAccountNO:MainAccounts,2,FALSE)) -> Project Income - CDN Churches | C9: 441 | D9: CAN churches | E9: 3000 | I9: 2200 | J9: 3360 | K9: 8500
A10: 4 | B10: =IF(C10<1," ",VLOOKUP(C10,MainAccountNO:MainAccounts,2,FALSE)) -> Project Income - US | C10: 442 | D10: US gifts and grants | E10: 0 | K10: 0
A11: 5 | B11: =IF(C11<1," ",VLOOKUP(C11,MainAccountNO:MainAccounts,2,FALSE)) -> Operations Assessment | C11: 484 | D11: operations assessement | E11: -600 | K11: -1250
A12: 6 | B12: =IF(C12<1," ",VLOOKUP(C12,MainAccountNO:MainAccounts,2,FALSE)) -> 
A13: 7 | B13: =IF(C13<1," ",VLOOKUP(C13,MainAccountNO:MainAccounts,2,FALSE)) ->  | D13: Community Housing
A14: 8 | B14: =IF(C14<1," ",VLOOKUP(C14,MainAccountNO:MainAccounts,2,FALSE)) -> Other income | C14: 455 | D14: Guys House rent and baseline utilities (paid by full time staff) | E14: 0 | K14: 0
A15: 9 | B15: =IF(C15<1," ",VLOOKUP(C15,MainAccountNO:MainAccounts,2,FALSE)) -> Rent Expense | C15: 543 | D15: Rent and Utilites Guys House | E15: 0 | K15: 0
A16: 10 | B16: =IF(C16<1," ",VLOOKUP(C16,MainAccountNO:MainAccounts,2,FALSE)) -> Food for Outreach/Meetings | C16: 515 | D16: Living expenses (Cost for 5 people 2 Leads, 3 youth) | E16: 0 | K16: 0
A17: 11 | B17: =IF(C17<1," ",VLOOKUP(C17,MainAccountNO:MainAccounts,2,FALSE)) -> Speaker Honorarium | C17: 559 | D17: Stipend for part time house leads (2) | E17: 0 | K17: 0
A18: 12 | B18: =IF(C18<1," ",VLOOKUP(C18,MainAccountNO:MainAccounts,2,FALSE)) -> Special Projects | C18: 580 | D18: Transfer from Restora profit | E18: 0 | K18: 0
A19: 13 | B19: =IF(C19<1," ",VLOOKUP(C19,MainAccountNO:MainAccounts,2,FALSE)) -> 
A20: 14 | B20: =IF(C20<1," ",VLOOKUP(C20,MainAccountNO:MainAccounts,2,FALSE)) ->  | D20: Urban Fire Program
A21: 15 | B21: =IF(C21<1," ",VLOOKUP(C21,MainAccountNO:MainAccounts,2,FALSE)) -> Special Projects | C21: 580 | D21: Housing supplement for youth in home | E21: 6600 | K21: 9120
A22: 16 | B22: =IF(C22<1," ",VLOOKUP(C22,MainAccountNO:MainAccounts,2,FALSE)) -> Staff Training | C22: 537 | D22: Staff Training for volunteers | E22: 0 | K22: 0
A23: 17 | B23: =IF(C23<1," ",VLOOKUP(C23,MainAccountNO:MainAccounts,2,FALSE)) -> Special Projects | C23: 580 | D23: Events, Retreats, Community Life | E23: 4100 | I23: =2204+300 -> 2504 | J23: =2391+300 -> 2691 | K23: 4760
A24: 18 | B24: =IF(C24<1," ",VLOOKUP(C24,MainAccountNO:MainAccounts,2,FALSE)) -> Bldg, Equip & Liab. Ins. | C24: 519 | D24: Liability Insurance | E24: 750 | K24: 2000

Sheet S14
B1: Restora Property Care | C1: 53 | D1: Choose Rank Number --------> | G1: 10 | I1: Amount of 23/24 budget spent by Oct 31 | J1: Total From Last 12 Months - Nov22-Oct23 | K1: Last Budget
D2: Total Income | E2: =SUM(IF(S_14FieldRank<=S_14Choice,IF(S_14AccNO<=LastIncome,S_14Amount,0),0)) -> 108620 | K2: 23/24
D3: Total Expense | E3: =SUM(IF(S_14FieldRank<=S_14Choice,IF(S_14AccNO>LastIncome,S_14Amount,0),0)) -> 89712
D4: Difference | E4: =E2-E3 -> 18908
A5: Line | B5: Account Description | C5: Acc_NO | D5: Field Detail | E5: Amount | F5: Month | G5: Rank | H5: Out
A7: 1 | B7: =IF(C7<1," ",VLOOKUP(C7,MainAccountNO:MainAccounts,2,FALSE)) -> Gifts in hand | C7: 400 | D7: apx balance on hand @ 03/31/2024 | E7: 13500 | H7: =IF(G7<=$G$1,"","OUT") -> 
A8: 2 | B8: =IF(C8<1," ",VLOOKUP(C8,MainAccountNO:MainAccounts,2,FALSE)) -> Sales | C8: 460 | D8: Sales Revenue | E8: 90000 | H8: =IF(G8<=$G$1,"","OUT") ->  | I8: 27749 | J8: 45462 | K8: 90000 | L8: Large increase?
A9: 3 | B9: =IF(C9<1," ",VLOOKUP(C9,MainAccountNO:MainAccounts,2,FALSE)) -> Project Income - CND Ind | C9: 440 | D9: CAN individuals | E9: 1600 | H9: =IF(G9<=$G$1,"","OUT") ->  | K9: 2000
A10: 4 | B10: =IF(C10<1," ",VLOOKUP(C10,MainAccountNO:MainAccounts,2,FALSE)) -> Project Income - CDN Churches | C10: 441 | D10: CAN churches | E10: 1600 | H10: =IF(G10<=$G$1,"","OUT") ->  | K10: 1000
A11: 5 | B11: =IF(C11<1," ",VLOOKUP(C11,MainAccountNO:MainAccounts,2,FALSE)) -> Project Income - US | C11: 442 | D11: US gifts and grants | E11: 1600 | H11: =IF(G11<=$G$1,"","OUT") ->  | J11: 133 | K11: 500
A12: 6 | B12: =IF(C12<1," ",VLOOKUP(C12,MainAccountNO:MainAccounts,2,FALSE)) -> Other income | C12: 455 | D12: GST Rebate | E12: 800 | K12: 800
A13: 7 | B13: =IF(C13<1," ",VLOOKUP(C13,MainAccountNO:MainAccounts,2,FALSE)) -> Operations Assessment | C13: 484 | D13: operations assessement | E13: =SUM(E9:E11)*-0.1 -> -480 | H13: =IF(G13<=$G$1,"","OUT") ->  | K13: -350
A14: 8 | B14: =IF(C14<1," ",VLOOKUP(C14,MainAccountNO:MainAccounts,2,FALSE)) -> Special Projects | C14: 580 | D14: Anchored Warriors (youth nights) | E14: 4200 | K14: 4200
A15: 9 | B15: =IF(C15<1," ",VLOOKUP(C15,MainAccountNO:MainAccounts,2,FALSE)) -> 
A16: 10 | B16: =IF(C16<1," ",VLOOKUP(C16,MainAccountNO:MainAccounts,2,FALSE)) ->  | D16: Restora Fixed Expenses
A17: 11 | B17: =IF(C17<1," ",VLOOKUP(C17,MainAccountNO:MainAccounts,2,FALSE)) -> Salary Expense | C17: 591 | D17: Salary wages | E17: 24000 | K17: 24000 | L17: Plan to transfer internally to staff accounts
A18: 12 | B18: =IF(C18<1," ",VLOOKUP(C18,MainAccountNO:MainAccounts,2,FALSE)) -> Salary Expense | C18: 591 | D18: Payroll Costs (after wages) | E18: 4000 | K18: 4000
A19: 13 | B19: =IF(C19<1," ",VLOOKUP(C19,MainAccountNO:MainAccounts,2,FALSE)) -> Bldg, Equip & Liab. Ins. | C19: 519 | D19: Vehicle Insurance | E19: 1440 | J19: 1785 | K19: 1800
A20: 14 | B20: =IF(C20<1," ",VLOOKUP(C20,MainAccountNO:MainAccounts,2,FALSE)) -> General Supply & Service | C20: 545 | D20: Transportation (Fuel, maintenance) | E20: 2960 | H20: =IF(G20<=$G$1,"","OUT") ->  | I20: 13944 | J20: 37069 | K20: 3700
A21: 15 | B21: =IF(C21<1," ",VLOOKUP(C21,MainAccountNO:MainAccounts,2,FALSE)) -> General Supply & Service | C21: 545 | D21: Marketing & Advertising | E21: 1200 | H21: =IF(G21<=$G$1,"","OUT") ->  | K21: 1500
A22: 16 | B22: =IF(C22<1," ",VLOOKUP(C22,MainAccountNO:MainAccounts,2,FALSE)) -> General Supply & Service | C22: 545 | D22: Operations (Supplies;Software;Garage Rent; Rental Equip; Permits; Phone) | E22: 13080 | K22: 16350
A23: 17 | B23: =IF(C23<1," ",VLOOKUP(C23,MainAccountNO:MainAccounts,2,FALSE)) -> General Supply & Service | C23: 545 | D23: Staff & HR (Training, Development, events) | E23: 800 | H23: =IF(G23<=$G$1,"","OUT") ->  | K23: 1000
A24: 18 | B24: =IF(C24<1," ",VLOOKUP(C24,MainAccountNO:MainAccounts,2,FALSE)) -> General Supply & Service | C24: 545 | D24: Finance (GST, depreciation) | E24: 1480 | H24: =IF(G24<=$G$1,"","OUT") ->  | K24: 1850
A25: 19 | B25: =IF(C25<1," ",VLOOKUP(C25,MainAccountNO:MainAccounts,2,FALSE)) -> Bldg, Equip & Liab. Ins. | C25: 519 | D25: Insurance for liability & garage rental | E25: 1000
A26: 20 | B26: =IF(C26<1," ",VLOOKUP(C26,MainAccountNO:MainAccounts,2,FALSE)) ->  | H26: =IF(G26<=$G$1,"","OUT") -> 
A27: 21 | B27: =IF(C27<1," ",VLOOKUP(C27,MainAccountNO:MainAccounts,2,FALSE)) ->  | D27: Restora Variable Expenses | H27: =IF(G27<=$G$1,"","OUT") -> 
A28: 22 | B28: =IF(C28<1," ",VLOOKUP(C28,MainAccountNO:MainAccounts,2,FALSE)) -> General Supply & Service | C28: 545 | D28: Materials & Supplies (Cost of Goods Sold) | E28: 8000 | H28: =IF(G28<=$G$1,"","OUT") ->  | K28: 6000
A29: 23 | B29: =IF(C29<1," ",VLOOKUP(C29,MainAccountNO:MainAccounts,2,FALSE)) -> General Supply & Service | C29: 545 | D29: Subcontractor Cost (Cost of Goods Sold) | E29: 17360 | K29: 15000
A30: 24 | B30: =IF(C30<1," ",VLOOKUP(C30,MainAccountNO:MainAccounts,2,FALSE)) -> Salary Expense | C30: 591 | D30: Wages ( hourly) | E30: 9792 | I30: 585 | J30: 598 | K30: 10000
A31: 25 | B31: =IF(C31<1," ",VLOOKUP(C31,MainAccountNO:MainAccounts,2,FALSE)) -> Salary Expense | C31: 591 | D31: Payroll Costs (after wages) | E31: 400 | I31: 30 | J31: 30 | K31: 500
